Vendor Name,Corporate Subjective Description,Invoice Payment Amount,Payment Date
2M HEATH & HOMECARE SERVICES LTD&&ISHC3873,Home Care / Domiciliary,3175.84,17/04/2020
2M HEATH & HOMECARE SERVICES LTD&&ISHC3873,Home Care / Domiciliary,15513.98,17/04/2020
2M HEATH & HOMECARE SERVICES LTD&&ISHC3873,Payments in Advance,50910,17/04/2020
36 Group Ltd,Fees & Charges (833),960,08/04/2020
36 Group Ltd,Advertising,960,28/04/2020
36 Group Ltd,Advertising,1200,23/04/2020
36 Group Ltd,Advertising,840,23/04/2020
36 Group Ltd,Advertising,960,30/04/2020
36 Group Ltd,Other Expenditure,840,20/04/2020
4-5 Grays Inn Square Barristers Chambers,Advertising,6885,30/04/2020
4PureHeart Limited,Private Contractors,15500,30/04/2020
5ab Care Ltd,Private Contractors,22120.67,03/04/2020
A1 63 Mercia Taxi,S.E.N. Taxi Hire,1540,24/04/2020
A1 63 Mercia Taxi,S.E.N. Taxi Hire,2200,24/04/2020
A1 Comfy Car LTD,Home to Sch Trans - Buses,1755.6,30/04/2020
A1 Comfy Car LTD,Home to Sch Trans - Buses,1364,30/04/2020
A1 Taxis & Private Hire,Recharge of Pooled Transp Cost,777.6,24/04/2020
REDACTED PERSONAL DATA,Home to Sch Trans - Buses,1980,27/04/2020
REDACTED PERSONAL DATA,Home to Sch Trans - Buses,1306.8,27/04/2020
REDACTED PERSONAL DATA,Home to Sch Trans - Buses,924,27/04/2020
REDACTED PERSONAL DATA,Home to Sch Trans - Buses,1848,27/04/2020
REDACTED PERSONAL DATA,Home to Sch Trans - Buses,1029.6,27/04/2020
AAA Private Hire(Shephed) Ltd,S.E.N. Taxi Hire,2916,15/04/2020
AAA Private Hire(Shephed) Ltd,Recharge of Pooled Transp Cost,652.8,09/04/2020
AAA Private Hire(Shephed) Ltd,S.E.N. Taxi Hire,2265.6,15/04/2020
AAA Private Hire(Shephed) Ltd,S.E.N. Taxi Hire,2790,15/04/2020
AAA Private Hire(Shephed) Ltd,S.E.N. Taxi Hire,2035.2,15/04/2020
AA Taxis,S.E.N. Taxi Hire,1692,24/04/2020
AA Taxis,S.E.N. Taxi Hire,1076.4,24/04/2020
ABBERDALE LIMITED&&SSAROE40419,Residential,3105.14,06/04/2020
ABBERDALE LIMITED&&SSAROE40419,Residential,1470.86,06/04/2020
Abbey Cars,Personal Accounts - Govt Depts,3375.9,09/04/2020
Abbey Cars,Recharge of Pooled Transp Cost,3375.9,09/04/2020
Abbey Cars,Home to Sch Trans - Buses,1524.6,09/04/2020
ABBEYFIELDS EXTRA CARE&&SSAROE52835,Residential,-6040.68,06/04/2020
ABBEYFIELDS EXTRA CARE&&SSAROE52835,Residential,12160.4,06/04/2020
ABBEYFIELDS EXTRA CARE&&SSAROE52835,Residential,-6040.68,06/04/2020
ABBEYFIELDS EXTRA CARE&&SSAROE52835,Residential,12160.4,06/04/2020
ABBEYFIELDS EXTRA CARE&&SSAROE52835,Residential,-9130.68,06/04/2020
ABBEYFIELDS EXTRA CARE&&SSAROE52835,Residential,-6080.2,06/04/2020
ABBEYFIELDS EXTRA CARE&&SSAROE52835,Residential,-1434.64,06/04/2020
ABBEYFIELDS EXTRA CARE&&SSAROE52835,Residential,18429.65,06/04/2020
ABBEYFIELDS EXTRA CARE&&SSAROE52835,Residential,-9130.68,06/04/2020
ABBEYFIELDS EXTRA CARE&&SSAROE52835,Residential,-9130.68,06/04/2020
ABBEYFIELDS EXTRA CARE&&SSAROE52835,Residential,-9130.68,06/04/2020
ABBEYFIELDS EXTRA CARE&&SSAROE52835,Residential,-12160.4,06/04/2020
ABBEYFIELDS EXTRA CARE&&SSAROE52835,Residential,-1324.29,06/04/2020
ABBEYFIELDS EXTRA CARE&&SSAROE52835,Residential,5959.28,06/04/2020
ABBEYFIELDS EXTRA CARE&&SSAROE52835,Residential,8455.78,06/04/2020
ABBEYFIELDS EXTRA CARE&&SSAROE52835,Residential,-12160.4,06/04/2020
ABBEYFIELDS EXTRA CARE&&SSAROE52835,Residential,-2950.68,06/04/2020
ABBEYFIELDS EXTRA CARE&&SSAROE52835,Residential,6182.4,06/04/2020
ABBEYFIELDS EXTRA CARE&&SSAROE52835,Residential,-2950.68,06/04/2020
ABBEYFIELDS EXTRA CARE&&SSAROE52835,Residential,23565.32,06/04/2020
ABBEYFIELDS EXTRA CARE&&SSAROE52835,Residential,-973.84,06/04/2020
ABBEYFIELDS EXTRA CARE&&SSAROE52835,Residential,2488.7,06/04/2020
ABBEYFIELDS EXTRA CARE&&SSAROE52835,Residential,9130.68,06/04/2020
ABBEYFIELDS EXTRA CARE&&SSAROE52835,Residential,-6040.68,06/04/2020
ABBEYFIELDS EXTRA CARE&&SSAROE52835,Residential,9130.68,06/04/2020
ABBEYFIELDS EXTRA CARE&&SSAROE52835,Residential,-6040.68,06/04/2020
ABBEYFIELDS EXTRA CARE&&SSAROE52835,Residential,9130.68,06/04/2020
ABBEYFIELDS EXTRA CARE&&SSAROE52835,Residential,4005.38,06/04/2020
ABBEY HEALTHCARE (AARON COURT) LTD&&SSARO2996,Nursing,19755.13,06/04/2020
ABBEY HEALTHCARE (AARON COURT) LTD&&SSARO2996,Private Contractors,19755.13,06/04/2020
ABBEY HEALTHCARE (AARON COURT) LTD&&SSARO2996,Residential,19755.13,06/04/2020
ABBEY HEALTHCARE (AARON COURT) LTD&&SSARO2996,Residential,4342.29,06/04/2020
ABBEY HEALTHCARE (AARON COURT) LTD&&SSARO2996,Residential,711.14,06/04/2020
ABBEY HEALTHCARE (AARON COURT) LTD&&SSARO2996,Residential,2140.71,06/04/2020
ABBEY HEALTHCARE (AARON COURT) LTD&&SSARO2996,Residential,-2431.43,06/04/2020
ABBEY HEALTHCARE (AARON COURT) LTD&&SSARO2996,Nursing,9357.75,06/04/2020
ABBEY HEALTHCARE (AARON COURT) LTD&&SSARO2996,Private Contractors,9357.75,06/04/2020
ABBEY HEALTHCARE (AARON COURT) LTD&&SSARO2996,Residential,9357.75,06/04/2020
ABBOTSFORD CARE LTD&&SSARO2339,Residential,13511.71,06/04/2020
ABBOTSFORD CARE LTD&&SSARO2339,Residential,6400.29,06/04/2020
REDACTED PERSONAL DATA,S.E.N. Taxi Hire,1735.22,16/04/2020
Abellio Group Ltd T/A East Midlands Railway,Minimum Cost Contracts,12917.77,02/04/2020
Abellio Group Ltd T/A East Midlands Railway,Minimum Cost Contracts,1788.01,17/04/2020
ABM Taxis,Home to Sch Trans - Buses,695.2,14/04/2020
ABM Taxis,Home to Sch Trans - Buses,758,14/04/2020
ABSOLUTE CARE AGENCY&&ISHC2620,Home Care / Domiciliary,1052.05,17/04/2020
ABSOLUTE CARE AGENCY&&ISHC2620,Home Care / Domiciliary,902.01,17/04/2020
ABSOLUTE CARE AGENCY&&ISHC2620,Home Care / Domiciliary,31745.78,17/04/2020
ABSOLUTE CARE AGENCY&&ISHC2620,Payments in Advance,80890,17/04/2020
ACACIA CARE (NOTTINGHAM) LTD T/A KINGSFIELD COURT&&SSARO8540,Residential,-660,06/04/2020
ACACIA CARE (NOTTINGHAM) LTD T/A KINGSFIELD COURT&&SSARO8540,Residential,17561.42,06/04/2020
ACACIA CARE (NOTTINGHAM) LTD T/A KINGSFIELD COURT&&SSARO8540,Residential,8705.7,06/04/2020
ACACIA CARE (NOTTINGHAM) LTD T/A KINGSFIELD COURT&&SSARO8540,Residential,3520,06/04/2020
ACACIA CARE (NOTTINGHAM) LTD T/A KINGSFIELD COURT&&SSARO8540,Residential,2262.86,06/04/2020
ACACIA CARE (NOTTINGHAM) LTD T/A KINGSFIELD COURT&&SSARO8540,Residential,-4525.7,06/04/2020
ACACIA CARE (NOTTINGHAM) LTD T/A KINGSFIELD COURT&&SSARO8540,Residential,8318.58,06/04/2020
Academy For Dementia Research & Education,Grants,2367,02/04/2020
ACCREDO SUPPORT AND DEVELOPMENT LTD&&CLCD3325,Day / CLC Services,6972.88,17/04/2020
ACCREDO SUPPORT AND DEVELOPMENT LTD&&CLCD3325,Payments in Advance,15720,17/04/2020
Ace Cars,S.E.N. Taxi Hire,3445.2,27/04/2020
Ace Cars,S.E.N. Taxi Hire,2583.9,27/04/2020
Ace Cars,S.E.N. Taxi Hire,4210.8,27/04/2020
ACHIEVE WITH US LIMITED&&CLCD3319,Day / CLC Services,23059.39,17/04/2020
ACHIEVE WITH US LIMITED&&CLCD3319,Managed/Traditional Services,23059.39,17/04/2020
ACHIEVE WITH US LIMITED&&CLCD3319,Payments in Advance,49230,17/04/2020
Acorn Care & Education Ltd (Sales),Payment to Ext SEN Providers,16902.44,03/04/2020
Acorn Care & Education Ltd (Sales),Payment to Ext SEN Providers,6217.68,03/04/2020
Acorn Care & Education Ltd (Sales),Private Contractors,3686.25,16/04/2020
Acorn Care & Education Ltd (Sales),Payment to Ext SEN Providers,25666.66,03/04/2020
Acorn Care & Education Ltd (Sales),Private Contractors,99893,06/04/2020
Acorn Care & Education Ltd (Sales),Payment to Ext SEN Providers,9441.67,03/04/2020
Acorn Care & Education Ltd (Sales),Payment to Ext SEN Providers,17213.33,06/04/2020
Acorn Care & Education Ltd (Sales),Private Contractors,99893,06/04/2020
Acorn Care & Education Ltd (Sales),Payment to Ext SEN Providers,9441.67,03/04/2020
Acorn Care & Education Ltd (Sales),Payment to Ext SEN Providers,17553.29,03/04/2020
Acorn Care & Education Ltd (Sales),Private Contractors,9253.08,03/04/2020
Acorn Care & Education Ltd (Sales),Payment to Ext SEN Providers,-25666.66,03/04/2020
Acorn Care & Education Ltd (Sales),Payment to Ext SEN Providers,-9441.66,03/04/2020
Acorn Care & Education Ltd (Sales),Private Contractors,-5597.65,03/04/2020
Acorn Care & Education Ltd (Sales),Payment to Ext SEN Providers,-17213.33,03/04/2020
Acorn Care & Education Ltd (Sales),Payment to Ext SEN Providers,-6217.68,03/04/2020
Acorn Care & Education Ltd (Sales),Private Contractors,-3686.25,16/04/2020
Acorn Care & Education Ltd (Sales),Private Contractors,2897,06/04/2020
Acorn Care & Education Ltd (Sales),Payment to Ext SEN Providers,35530,15/04/2020
Acorn Care & Education Ltd (Sales),Private Contractors,99893,06/04/2020
Acorn Care & Education Ltd (Sales),Private Contractors,-99893,06/04/2020
Acorn Care & Education Ltd (Sales),Private Contractors,-99893,06/04/2020
Acorn Care & Education Ltd (Sales),Private Contractors,-99893,06/04/2020
Acorn Care & Education Ltd (Sales),Private Contractors,-2897,03/04/2020
Acorn Fostering Services Ltd,Other Agency & Cont Services,3300,30/04/2020
Acorn Fostering Services Ltd,Other Agency & Cont Services,2837.87,30/04/2020
Acorn Fostering Services Ltd,Other Agency & Cont Services,2837.87,30/04/2020
Acorn Fostering Services Ltd,Private Contractors,3182.13,30/04/2020
Acorn Fostering Services Ltd,Other Agency & Cont Services,2927.58,30/04/2020
Acorn Fostering Services Ltd,Other Agency & Cont Services,3052.82,30/04/2020
Acorn Fostering Services Ltd,Other Agency & Cont Services,2899.28,30/04/2020
Acorn Fostering Services Ltd,Other Agency & Cont Services,3171.43,30/04/2020
Acorn Fostering Services Ltd,Private Contractors,3300,30/04/2020
Acorn Fostering Services Ltd,Other Agency & Cont Services,2910,30/04/2020
Acorn Fostering Services Ltd,Other Agency & Cont Services,2899.28,30/04/2020
Acorn Fostering Services Ltd,Other Agency & Cont Services,3214.28,30/04/2020
Acorn Fostering Services Ltd,Other Agency & Cont Services,3464.58,30/04/2020
Action for Children Services Ltd,Private Contractors,42497.32,09/04/2020
ADA HOMECARE LTD(&&ISHC5852),Home Care / Domiciliary,3746.75,17/04/2020
ADA HOMECARE LTD(&&ISHC5852),Payments in Advance,7670,17/04/2020
REDACTED PERSONAL DATA,Supported Living,35913.71,06/04/2020
REDACTED PERSONAL DATA,Supported Living,2158.21,20/04/2020
REDACTED PERSONAL DATA,Supported Living,2474.87,27/04/2020
REDACTED PERSONAL DATA,Supported Living,1687.81,20/04/2020
REDACTED PERSONAL DATA,Supported Living,1143.87,27/04/2020
REDACTED PERSONAL DATA,Supported Living,133423.36,17/04/2020
REDACTED PERSONAL DATA,Supported Living,6068.3,20/04/2020
REDACTED PERSONAL DATA,Supported Living,7606.96,27/04/2020
REDACTED PERSONAL DATA,Supported Living,36021.77,06/04/2020
REDACTED PERSONAL DATA,Supported Living,1675.83,17/04/2020
REDACTED PERSONAL DATA,Supported Living,1999.21,20/04/2020
REDACTED PERSONAL DATA,Supported Living,1860.56,27/04/2020
REDACTED PERSONAL DATA,Supported Living,1926.31,20/04/2020
REDACTED PERSONAL DATA,Supported Living,1143.87,27/04/2020
REDACTED PERSONAL DATA,Supported Living,127295.2,20/04/2020
REDACTED PERSONAL DATA,Supported Living,17199.72,27/04/2020
REDACTED PERSONAL DATA,Supported Living,75284.73,06/04/2020
REDACTED PERSONAL DATA,Supported Living,635.96,17/04/2020
REDACTED PERSONAL DATA,Supported Living,2078.71,20/04/2020
REDACTED PERSONAL DATA,Supported Living,1940.06,27/04/2020
REDACTED PERSONAL DATA,Supported Living,1721.17,17/04/2020
REDACTED PERSONAL DATA,Supported Living,2046.91,20/04/2020
REDACTED PERSONAL DATA,Supported Living,1143.87,27/04/2020
REDACTED PERSONAL DATA,Supported Living,134510.96,27/04/2020
REDACTED PERSONAL DATA,Supported Living,44420.84,06/04/2020
REDACTED PERSONAL DATA,Supported Living,2384.64,17/04/2020
REDACTED PERSONAL DATA,Supported Living,2158.21,20/04/2020
REDACTED PERSONAL DATA,Supported Living,1940.06,27/04/2020
REDACTED PERSONAL DATA,Supported Living,1502.98,06/04/2020
REDACTED PERSONAL DATA,Supported Living,2046.91,20/04/2020
REDACTED PERSONAL DATA,Supported Living,1143.87,27/04/2020
REDACTED PERSONAL DATA,Supported Living,-3086,17/04/2020
REDACTED PERSONAL DATA,Supported Living,-614.31,27/04/2020
REDACTED PERSONAL DATA,Supported Living,1187.97,17/04/2020
REDACTED PERSONAL DATA,Supported Living,2148.91,20/04/2020
REDACTED PERSONAL DATA,Supported Living,1143.87,27/04/2020
REDACTED PERSONAL DATA,Supported Living,163212.94,06/04/2020
REDACTED PERSONAL DATA,Supported Living,36663.79,17/04/2020
REDACTED PERSONAL DATA,Supported Living,2158.21,20/04/2020
REDACTED PERSONAL DATA,Supported Living,9364.58,27/04/2020
REDACTED PERSONAL DATA,Supported Living,53356.86,17/04/2020
REDACTED PERSONAL DATA,Supported Living,2427.29,20/04/2020
REDACTED PERSONAL DATA,Supported Living,3042.76,27/04/2020
REDACTED PERSONAL DATA,Payments in Advance,2506880,20/04/2020
REDACTED PERSONAL DATA,Payments in Advance,9150,29/04/2020
ADAPTUS CARES LTD&&ISHC5289,Home Care / Domiciliary,954.92,17/04/2020
ADAPTUS CARES LTD&&ISHC5289,Home Care / Domiciliary,2635.38,17/04/2020
ADAPTUS CARES LTD&&ISHC5289,Home Care / Domiciliary,2343.6,17/04/2020
ADAPTUS CARES LTD&&ISHC5289,Home Care / Domiciliary,2253.58,17/04/2020
ADAPTUS CARES LTD&&ISHC5289,Payments in Advance,5190,17/04/2020
ADEN HOUSE LTD&&SSARO2794,Residential,1511.23,06/04/2020
ADEN HOUSE LTD&&SSARO2794,Residential,715.85,06/04/2020
ADJUVO CARE & SUPPORT&&SSARO2208,Residential,-15753.72,06/04/2020
ADJUVO CARE & SUPPORT&&SSARO2208,Residential,-15753.72,06/04/2020
ADJUVO CARE & SUPPORT&&SSARO2208,Residential,-18009.72,06/04/2020
ADJUVO CARE & SUPPORT&&SSARO2208,Residential,-8842.86,06/04/2020
ADJUVO CARE & SUPPORT&&SSARO2208,Residential,-18009.72,06/04/2020
ADJUVO CARE & SUPPORT&&SSARO2208,Residential,-18009.72,06/04/2020
ADJUVO CARE & SUPPORT&&SSARO2208,Residential,-17928.72,06/04/2020
ADJUVO CARE & SUPPORT&&SSARO2208,Residential,-17685.72,06/04/2020
ADJUVO CARE & SUPPORT&&SSARO2208,Residential,167850.68,06/04/2020
ADJUVO CARE & SUPPORT&&SSARO2208,Residential,-17685.72,06/04/2020
ADJUVO CARE & SUPPORT&&SSARO2208,Residential,-9221.72,06/04/2020
ADJUVO CARE & SUPPORT&&SSARO2208,Residential,11715.68,06/04/2020
ADJUVO CARE & SUPPORT&&SSARO2208,Residential,-15753.72,06/04/2020
ADJUVO CARE & SUPPORT&&SSARO2208,Residential,72990.72,06/04/2020
ADJUVO CARE & SUPPORT&&SSARO2208,Residential,-15753.72,06/04/2020
ADJUVO CARE & SUPPORT&&SSARO2208,Residential,-15753.72,06/04/2020
ADJUVO CARE & SUPPORT&&SSARO2208,Residential,-1933.71,06/04/2020
ADJUVO CARE & SUPPORT&&SSARO2208,Residential,6609.74,06/04/2020
REDACTED PERSONAL DATA,Recharge of Pooled Transp Cost,849.66,27/04/2020
Adullam Homes Housing Association Ltd     1,Other Agency & Cont Services,-5936.98,09/04/2020
Adullam Homes Housing Association Ltd     1,Other Transfer Payments,2376.8,09/04/2020
Adullam Homes Housing Association Ltd     1,Other Agency & Cont Services,2413.69,09/04/2020
Adullam Homes Housing Association Ltd     1,Other Agency & Cont Services,851.89,09/04/2020
Adullam Homes Housing Association Ltd     1,Other Agency & Cont Services,2459,09/04/2020
Adullam Homes Housing Association Ltd     1,Other Agency & Cont Services,2459,09/04/2020
Adullam Homes Housing Association Ltd     1,Other Agency & Cont Services,3833.51,09/04/2020
Adullam Homes Housing Association Ltd     1,Other Agency & Cont Services,4969.37,09/04/2020
Adullam Homes Housing Association Ltd     1,Other Agency & Cont Services,4969.37,09/04/2020
Adullam Homes Housing Association Ltd     1,Other Agency & Cont Services,1750.58,09/04/2020
Adullam Homes Housing Association Ltd     1,Other Agency & Cont Services,4969.37,09/04/2020
Adullam Homes Housing Association Ltd     1,Other Agency & Cont Services,4969.37,09/04/2020
Adullam Homes Housing Association Ltd     1,Other Agency & Cont Services,2785.02,09/04/2020
Adullam Homes Housing Association Ltd     1,Other Agency & Cont Services,3123.6,09/04/2020
Adullam Homes Housing Association Ltd     1,Other Agency & Cont Services,4969.37,09/04/2020
Adullam Homes Housing Association Ltd     1,Other Agency & Cont Services,4969.37,09/04/2020
Adullam Homes Housing Association Ltd     1,Other Agency & Cont Services,636.58,09/04/2020
Adullam Homes Housing Association Ltd     1,Other Transfer Payments,2555.68,09/04/2020
Advanced Health & Care Ltd,IT Equipment,591.4,17/04/2020
Advanced Health & Care Ltd,IT Equipment,1990.45,17/04/2020
Advanced Health & Care Ltd,IT Equipment,23400,23/04/2020
Advanced Health & Care Ltd,IT Equipment,591.4,17/04/2020
Advanced Health & Care Ltd,IT Equipment,1990.45,17/04/2020
Advanced Health & Care Ltd,IT Equipment,1990.45,23/04/2020
AFFINITY TRUST&&SUPL4188,Supported Living,951.93,17/04/2020
AFFINITY TRUST&&SUPL4188,Supported Living,908.46,17/04/2020
AFFINITY TRUST&&SUPL4188,Supported Living,951.93,17/04/2020
AFFINITY TRUST&&SUPL4188,Supported Living,908.46,17/04/2020
AFFINITY TRUST&&SUPL4188,Supported Living,951.93,17/04/2020
AFFINITY TRUST&&SUPL4188,Supported Living,1968.34,17/04/2020
AFFINITY TRUST&&SUPL4188,Supported Living,951.93,17/04/2020
AFFINITY TRUST&&SUPL4188,Supported Living,1438.4,17/04/2020
AFFINITY TRUST&&SUPL4188,Supported Living,951.93,17/04/2020
AFFINITY TRUST&&SUPL4188,Supported Living,1121.92,17/04/2020
AFFINITY TRUST&&SUPL4188,Supported Living,906.6,17/04/2020
AFFINITY TRUST&&SUPL4188,Supported Living,951.93,17/04/2020
AFFINITY TRUST&&SUPL4188,Supported Living,861.27,17/04/2020
AFFINITY TRUST&&SUPL4188,Supported Living,713.94,17/04/2020
AFFINITY TRUST&&SUPL4188,Supported Living,951.93,17/04/2020
AFFINITY TRUST&&SUPL4188,Supported Living,713.94,17/04/2020
AFFINITY TRUST&&SUPL4188,Supported Living,908.46,17/04/2020
AFFINITY TRUST&&SUPL4188,Supported Living,908.46,17/04/2020
AFFINITY TRUST&&SUPL4188,Supported Living,908.46,17/04/2020
AFFINITY TRUST&&SUPL4188,Supported Living,1183.11,17/04/2020
AFFINITY TRUST&&SUPL4188,Supported Living,908.46,17/04/2020
AGE UK LEICESTERSHIRE AND RUTLAND&&CLCD3314,Day / CLC Services,24504.24,17/04/2020
AGE UK LEICESTERSHIRE AND RUTLAND&&CLCD3314,Payments in Advance,57140,17/04/2020
Age Uk Leicestershire & Rutland      1,Voluntary Associations,58111.5,21/04/2020
Age Uk Leicester Shire & Rutland Home Help Ltd,Private Contractors,2450,30/04/2020
Aggregate Industries UK Ltd,Private Contractors,200648.48,03/04/2020
AHAVAH HEALTHCARELTD&&SSARO1638,Residential,1121.68,06/04/2020
AHAVAH HEALTHCARELTD&&SSARO1638,Residential,10465.58,06/04/2020
AHAVAH HEALTHCARELTD&&SSARO1638,Residential,721.08,06/04/2020
AHAVAH HEALTHCARELTD&&SSARO1638,Residential,4957.38,06/04/2020
Airports 4 U,S.E.N. Taxi Hire,2250,23/04/2020
REDACTED PERSONAL DATA,Residential,1041.56,06/04/2020
REDACTED PERSONAL DATA,Residential,1121.68,06/04/2020
REDACTED PERSONAL DATA,Residential,3249.49,06/04/2020
REDACTED PERSONAL DATA,Residential,2260.31,06/04/2020
ALA CARE LTD&&SSAROE1044,Residential,-992.57,06/04/2020
ALA CARE LTD&&SSAROE1044,Residential,9757.85,06/04/2020
ALA CARE LTD&&SSAROE1044,Residential,4622.15,06/04/2020
ALA CARE LTD&&SSAROE182,Residential,-1075.28,06/04/2020
ALA CARE LTD&&SSAROE182,Residential,992.57,06/04/2020
ALA CARE LTD&&SSAROE182,Residential,31838.73,06/04/2020
ALA CARE LTD&&SSAROE182,Residential,5842.83,06/04/2020
ALA CARE LTD&&SSAROE182,Residential,17496.59,06/04/2020
ALA CARE LTD&&SSAROE40269,Residential,-4440,06/04/2020
ALA CARE LTD&&SSAROE40269,Residential,4632,06/04/2020
ALA CARE LTD&&SSAROE40269,Residential,-4440,06/04/2020
ALA CARE LTD&&SSAROE40269,Residential,4632,06/04/2020
ALA CARE LTD&&SSAROE40269,Residential,-555,06/04/2020
ALA CARE LTD&&SSAROE40269,Residential,579,06/04/2020
ALA CARE LTD&&SSAROE40269,Residential,-4440,06/04/2020
ALA CARE LTD&&SSAROE40269,Residential,4632,06/04/2020
ALA CARE LTD&&SSAROE40269,Residential,-2220,06/04/2020
ALA CARE LTD&&SSAROE40269,Residential,-1158,06/04/2020
ALA CARE LTD&&SSAROE40269,Residential,-4440,06/04/2020
ALA CARE LTD&&SSAROE40269,Residential,25476,06/04/2020
ALA CARE LTD&&SSAROE40269,Residential,-4440,06/04/2020
ALA CARE LTD&&SSAROE40269,Residential,-4440,06/04/2020
ALA CARE LTD&&SSAROE40269,Residential,-4440,06/04/2020
ALA CARE LTD&&SSAROE40269,Residential,20363.87,06/04/2020
ALA CARE LTD&&SSAROE40269,Residential,-4440,06/04/2020
ALA CARE LTD&&SSAROE40269,Residential,-2220,06/04/2020
ALA CARE LTD&&SSAROE40269,Residential,3535.57,06/04/2020
ALA CARE LTD&&SSAROE40269,Residential,-2220,06/04/2020
ALA CARE LTD&&SSAROE40269,Residential,2316,06/04/2020
ALA CARE LTD&&SSAROE40269,Residential,-2220,06/04/2020
ALA CARE LTD&&SSAROE40269,Residential,2150.57,06/04/2020
ALA CARE LTD&&SSAROE40269,Residential,-4440,06/04/2020
ALA CARE LTD&&SSAROE40269,Residential,4632,06/04/2020
ALA CARE LTD&&SSAROE40269,Residential,9646.07,06/04/2020
REDACTED PERSONAL DATA,Nursing,1050,09/04/2020
ALEXANDRA CARE (LEICESTER) LTD DANE VIEW CARE HOME&&SSARO5677,Private Contractors,6514.27,06/04/2020
ALEXANDRA CARE (LEICESTER) LTD DANE VIEW CARE HOME&&SSARO5677,Residential,6514.27,06/04/2020
ALEXANDRA CARE (LEICESTER) LTD DANE VIEW CARE HOME&&SSARO5677,Private Contractors,3085.73,06/04/2020
ALEXANDRA CARE (LEICESTER) LTD DANE VIEW CARE HOME&&SSARO5677,Residential,3085.73,06/04/2020
ALEXANDRA HOUSE&&SSAROE1111,Residential,-1928.57,06/04/2020
ALEXANDRA HOUSE&&SSAROE1111,Residential,4928.57,06/04/2020
ALEXANDRA HOUSE&&SSAROE1111,Residential,-3000,06/04/2020
REDACTED PERSONAL DATA,Nursing,2100,20/04/2020
ALICE HOUSE (FLOLLIE INVESTMENTS LIMITED)&&SSARO5641,Residential,1574.29,06/04/2020
ALICE HOUSE (FLOLLIE INVESTMENTS LIMITED)&&SSARO5641,Residential,745.71,06/04/2020
REDACTED PERSONAL DATA,S.E.N. Taxi Hire,940.5,09/04/2020
REDACTED PERSONAL DATA,Other Transfer Payments,500,17/04/2020
ALLAG CARE LIMITED  GWENDOLEN&&SSARO3351,Residential,3747.35,06/04/2020
ALLAG CARE LIMITED  GWENDOLEN&&SSARO3351,Residential,1775.05,06/04/2020
ALLAG CARE LTD T/A SYCAMORE COTTAGE&&SSAROE44469,Residential,-2770.72,06/04/2020
ALLAG CARE LTD T/A SYCAMORE COTTAGE&&SSAROE44469,Residential,2770.72,06/04/2020
ALLAG CARE LTD T/A SYCAMORE COTTAGE&&SSAROE44469,Residential,-2770.72,06/04/2020
ALLAG CARE LTD T/A SYCAMORE COTTAGE&&SSAROE44469,Residential,2770.72,06/04/2020
ALLAG CARE LTD T/A SYCAMORE COTTAGE&&SSAROE44469,Residential,-2770.72,06/04/2020
ALLAG CARE LTD T/A SYCAMORE COTTAGE&&SSAROE44469,Residential,2770.72,06/04/2020
ALLAG CARE LTD T/A SYCAMORE COTTAGE&&SSAROE44469,Residential,-1385.36,06/04/2020
ALLAG CARE LTD T/A SYCAMORE COTTAGE&&SSAROE44469,Residential,-2770.72,06/04/2020
ALLAG CARE LTD T/A SYCAMORE COTTAGE&&SSAROE44469,Residential,15238.96,06/04/2020
ALLAG CARE LTD T/A SYCAMORE COTTAGE&&SSAROE44469,Residential,-2770.72,06/04/2020
ALLAG CARE LTD T/A SYCAMORE COTTAGE&&SSAROE44469,Residential,-2770.72,06/04/2020
ALLAG CARE LTD T/A SYCAMORE COTTAGE&&SSAROE44469,Residential,-2770.72,06/04/2020
ALLAG CARE LTD T/A SYCAMORE COTTAGE&&SSAROE44469,Residential,7832.04,06/04/2020
ALLAG CARE LTD T/A SYCAMORE COTTAGE&&SSAROE44469,Residential,-2770.72,06/04/2020
ALLAG CARE LTD T/A SYCAMORE COTTAGE&&SSAROE44469,Residential,-2770.72,06/04/2020
ALLAG CARE LTD T/A SYCAMORE COTTAGE&&SSAROE44469,Residential,2741.16,06/04/2020
ALLAG CARE LTD T/A SYCAMORE COTTAGE&&SSAROE44469,Residential,-2770.72,06/04/2020
ALLAG CARE LTD T/A SYCAMORE COTTAGE&&SSAROE44469,Residential,2741.16,06/04/2020
ALLAG CARE LTD T/A SYCAMORE COTTAGE&&SSAROE44469,Residential,-2770.72,06/04/2020
ALLAG CARE LTD T/A SYCAMORE COTTAGE&&SSAROE44469,Residential,2741.16,06/04/2020
ALLAG CARE LTD T/A SYCAMORE COTTAGE&&SSAROE44469,Residential,-2770.72,06/04/2020
ALLAG CARE LTD T/A SYCAMORE COTTAGE&&SSAROE44469,Residential,2604.5,06/04/2020
ALLAG CARE LTD T/A SYCAMORE COTTAGE&&SSAROE44469,Residential,3709.92,06/04/2020
ALLCONTRAST LTD & GIVECARE LTD&&SSAROE2374,Residential,-1392.86,06/04/2020
ALLCONTRAST LTD & GIVECARE LTD&&SSAROE2374,Private Contractors,17524.61,06/04/2020
ALLCONTRAST LTD & GIVECARE LTD&&SSAROE2374,Residential,17524.61,06/04/2020
ALLCONTRAST LTD & GIVECARE LTD&&SSAROE2374,Residential,4139.27,06/04/2020
ALLCONTRAST LTD & GIVECARE LTD&&SSAROE2374,Private Contractors,8301.07,06/04/2020
ALLCONTRAST LTD & GIVECARE LTD&&SSAROE2374,Residential,8301.07,06/04/2020
ALLCONTRAST LTD & GIVECARE LTD&&SSAROE2374,Residential,1960.73,06/04/2020
All Saints CE Primary School Sapcote (Inspiring Primaries Academy Trust),Payment to Ext SEN Providers,2536,24/04/2020
ALPHA CARE MANAGEMENT SERVICES NO 2 LTD&&SSARO1217,Private Contractors,5942.96,06/04/2020
ALPHA CARE MANAGEMENT SERVICES NO 2 LTD&&SSARO1217,Residential,5942.96,06/04/2020
ALPHA CARE MANAGEMENT SERVICES NO 2 LTD&&SSARO1217,Private Contractors,2815.08,06/04/2020
ALPHA CARE MANAGEMENT SERVICES NO 2 LTD&&SSARO1217,Residential,2815.08,06/04/2020
REDACTED PERSONAL DATA,S.E.N. Taxi Hire,1540,24/04/2020
AMBERWOOD CARE HOME LTD&&SSAROE40398,Residential,-1830.86,06/04/2020
AMBERWOOD CARE HOME LTD&&SSAROE40398,Residential,15509.42,06/04/2020
AMBERWOOD CARE HOME LTD&&SSAROE40398,Residential,7346.58,06/04/2020
AMICARE DOMICILIRY CARE SERVICES LTD&&ISHC2524,Home Care / Domiciliary,735.77,17/04/2020
AMICARE DOMICILIRY CARE SERVICES LTD&&ISHC2524,Home Care / Domiciliary,1502.66,17/04/2020
AMICARE DOMICILIRY CARE SERVICES LTD&&ISHC2524,Home Care / Domiciliary,-1852.37,17/04/2020
AMICARE DOMICILIRY CARE SERVICES LTD&&ISHC2524,Home Care / Domiciliary,800.41,17/04/2020
AMICARE DOMICILIRY CARE SERVICES LTD&&ISHC2524,Home Care / Domiciliary,17535.36,17/04/2020
AMICARE DOMICILIRY CARE SERVICES LTD&&ISHC2524,Home Care / Domiciliary,2003.74,17/04/2020
AMICARE DOMICILIRY CARE SERVICES LTD&&ISHC2524,Payments in Advance,46420,17/04/2020
AMS CARE SERVICE LTD&&SSARO2055 T/A APRIL COTTAGE,Residential,7857.85,06/04/2020
AMS CARE SERVICE LTD&&SSARO2055 T/A APRIL COTTAGE,Residential,3722.15,06/04/2020
Anchor Foster Care Services Ltd,Other Agency & Cont Services,3571.02,30/04/2020
Anchor Foster Care Services Ltd,Private Contractors,3607.07,30/04/2020
REDACTED PERSONAL DATA,Sales-Trading,680,21/04/2020
REDACTED PERSONAL DATA,Suspense,610,16/04/2020
REDACTED PERSONAL DATA,Suspense,520,17/04/2020
ANEW Young People Services Ltd,Other Agency & Cont Services,2289.22,30/04/2020
ANEW Young People Services Ltd,Private Contractors,2347.61,30/04/2020
ANEW Young People Services Ltd,Private Contractors,2613.22,30/04/2020
ANEW Young People Services Ltd,Private Contractors,2613.22,30/04/2020
ANEW Young People Services Ltd,Other Agency & Cont Services,2122.94,02/04/2020
ANEW Young People Services Ltd,Other Agency & Cont Services,2247.18,02/04/2020
ANEW Young People Services Ltd,Private Contractors,2180.47,02/04/2020
ANEW Young People Services Ltd,Private Contractors,2428.94,02/04/2020
ANEW Young People Services Ltd,Private Contractors,2428.94,02/04/2020
ANEW Young People Services Ltd,Private Contractors,2428.94,02/04/2020
Anglia Fostering Agency Ltd,Other Agency & Cont Services,3366,30/04/2020
REDACTED PERSONAL DATA,Other Agency & Cont Services,2491.88,02/04/2020
REDACTED PERSONAL DATA,Other Agency & Cont Services,1233.25,28/04/2020
REDACTED PERSONAL DATA,Other Agency & Cont Services,1233.25,30/04/2020
REDACTED PERSONAL DATA,R & M of Buildings,566.14,07/04/2020
Anstey Community Library,Voluntary Associations,1094,09/04/2020
Anstey Martin High Academy,Payment to Ext SEN Providers,3027,24/04/2020
REDACTED PERSONAL DATA,Recharge of Pooled Transp Cost,748,27/04/2020
REDACTED PERSONAL DATA,S.E.N. Taxi Hire,2090,27/04/2020
Aon UK Ltd,Miscellaneous Insurance,2085.44,17/04/2020
Aon UK Ltd,Operational Equipment,967.68,27/04/2020
APPLE HOUSE LEICESTER LTD&&SSAROE185,Residential,4464,06/04/2020
APPLE HOUSE LEICESTER LTD&&SSAROE185,Residential,4932.04,06/04/2020
APPLE HOUSE LEICESTER LTD&&SSAROE185,Residential,5684.24,06/04/2020
ARK CARE LODGE&&SSAROE699,Residential,5822.33,06/04/2020
ARK CARE LODGE&&SSAROE699,Residential,2757.95,06/04/2020
Arkwright Society LTD,Other Transfer Payments,500,23/04/2020
REDACTED PERSONAL DATA,S.E.N. Taxi Hire,2229.48,16/04/2020
Arriva Midlands Ltd,Minimum Cost Contracts,162204.68,09/04/2020
Arriva Midlands Ltd,Minimum Cost Contracts,314021.07,09/04/2020
Arriva Midlands Ltd,Minimum Cost Contracts,938.61,09/04/2020
REDACTED PERSONAL DATA,Fees & Charges (833),6160.25,17/04/2020
Arval UK Ltd,Operational Leasing,8076.04,30/04/2020
ASA Transport Services Ltd,Home to Sch Trans - Buses,1026,15/04/2020
Asfordby Captains Close Primary School Academy T/A Discovery Schools Academies Trust,Payment to Ext SEN Providers,5474,24/04/2020
Asfordby Captains Close Primary School Academy T/A Discovery Schools Academies Trust,Payment to Ext SEN Providers,1503,24/04/2020
Asfordby Captains Close Primary School Academy T/A Discovery Schools Academies Trust,Payment to Ext SEN Providers,2974,24/04/2020
Asfordby Hill Primary School Academy,Payment to Ext SEN Providers,2335,24/04/2020
ASHBY COURT NURSING HOME&&SSAROE40195,Private Contractors,-5011.44,06/04/2020
ASHBY COURT NURSING HOME&&SSAROE40195,Residential,5011.44,06/04/2020
ASHBY COURT NURSING HOME&&SSAROE40195,Private Contractors,-5011.44,06/04/2020
ASHBY COURT NURSING HOME&&SSAROE40195,Residential,5011.44,06/04/2020
ASHBY COURT NURSING HOME&&SSAROE40195,Residential,-909.86,06/04/2020
ASHBY COURT NURSING HOME&&SSAROE40195,Private Contractors,-5011.44,06/04/2020
ASHBY COURT NURSING HOME&&SSAROE40195,Private Contractors,-2631.4,06/04/2020
ASHBY COURT NURSING HOME&&SSAROE40195,Private Contractors,-5011.44,06/04/2020
ASHBY COURT NURSING HOME&&SSAROE40195,Private Contractors,-5011.44,06/04/2020
ASHBY COURT NURSING HOME&&SSAROE40195,Private Contractors,-5011.44,06/04/2020
ASHBY COURT NURSING HOME&&SSAROE40195,Private Contractors,-4929.21,06/04/2020
ASHBY COURT NURSING HOME&&SSAROE40195,Residential,25460.12,06/04/2020
ASHBY COURT NURSING HOME&&SSAROE40195,Private Contractors,-5011.44,06/04/2020
ASHBY COURT NURSING HOME&&SSAROE40195,Private Contractors,-5011.44,06/04/2020
ASHBY COURT NURSING HOME&&SSAROE40195,Residential,7454.3,06/04/2020
ASHBY COURT NURSING HOME&&SSAROE40195,Private Contractors,-5011.44,06/04/2020
ASHBY COURT NURSING HOME&&SSAROE40195,Residential,5011.44,06/04/2020
ASHBY COURT NURSING HOME&&SSAROE40195,Private Contractors,-5011.44,06/04/2020
ASHBY COURT NURSING HOME&&SSAROE40195,Residential,42597.24,06/04/2020
ASHBY COURT NURSING HOME&&SSAROE40195,Private Contractors,-5011.44,06/04/2020
ASHBY COURT NURSING HOME&&SSAROE40195,Residential,12060.08,06/04/2020
Ashby Hill Top Primary School Academy,Payment to Ext SEN Providers,2169,24/04/2020
Ashby School Academy,Payment to Ext SEN Providers,7538,24/04/2020
Ashby Willesley Primary School Academy,Payment to Ext SEN Providers,3417,24/04/2020
REDACTED PERSONAL DATA,S.E.N. Taxi Hire,1164.6,28/04/2020
REDACTED PERSONAL DATA,S.E.N. Taxi Hire,2033.6,24/04/2020
REDACTED PERSONAL DATA,S.E.N. Taxi Hire,2652.75,24/04/2020
ASHLEIGH NURSING HOME&&SSAROE40196,Private Contractors,2931.42,06/04/2020
ASHLEIGH NURSING HOME&&SSAROE40196,Private Contractors,1388.58,06/04/2020
ASHTON LODGE&&SSAROE40467,Residential,4018.23,06/04/2020
ASHTON LODGE&&SSAROE40467,Residential,1903.37,06/04/2020
ASH TREE&&SSAROE424,Residential,12736.66,06/04/2020
ASH TREE&&SSAROE424,Residential,6033.14,06/04/2020
ASPIRE HEALTH & CARE LTD CHILLWEL HOUSE&&SSARO3332,Residential,1251.6,06/04/2020
ASPIRE HEALTH & CARE LTD CHILLWEL HOUSE&&SSARO3332,Residential,1251.6,06/04/2020
ASPIRE HEALTH & CARE LTD CHILLWEL HOUSE&&SSARO3332,Residential,1251.6,06/04/2020
ASPIRE HEALTH & CARE LTD CHILLWEL HOUSE&&SSARO3332,Residential,1251.6,06/04/2020
ASPIRE HEALTH & CARE LTD CHILLWEL HOUSE&&SSARO3332,Residential,1251.6,06/04/2020
ASPIRE HEALTH & CARE LTD CHILLWEL HOUSE&&SSARO3332,Residential,2503.2,06/04/2020
ASPIRE HEALTH & CARE LTD CHILLWEL HOUSE&&SSARO3332,Residential,1251.6,06/04/2020
ASPIRE HEALTH & CARE LTD CHILLWEL HOUSE&&SSARO3332,Residential,1251.6,06/04/2020
ASPIRE HEALTH & CARE LTD CHILLWEL HOUSE&&SSARO3332,Residential,1698.6,06/04/2020
ASPIRE HEALTH & CARE LTD CHILLWEL HOUSE&&SSARO3332,Residential,1251.6,06/04/2020
ASPIRE HEALTH & CARE LTD CHILLWEL HOUSE&&SSARO3332,Residential,938.7,06/04/2020
ASPIRE HEALTH & CARE LTD CHILLWEL HOUSE&&SSARO3332,Residential,1251.6,06/04/2020
ASPIRE HEALTH & CARE LTD CHILLWEL HOUSE&&SSARO3332,Residential,1251.6,06/04/2020
ASPIRE HEALTH & CARE LTD CHILLWEL HOUSE&&SSARO3332,Residential,1251.6,06/04/2020
ASPIRE HEALTH & CARE LTD CHILLWEL HOUSE&&SSARO3332,Residential,1251.6,06/04/2020
ASPIRE HEALTH & CARE LTD CHILLWEL HOUSE&&SSARO3332,Residential,1251.6,06/04/2020
ASPIRE HEALTH & CARE LTD CHILLWEL HOUSE&&SSARO3332,Residential,-1877.4,06/04/2020
ASPIRE HEALTH & CARE LTD CHILLWEL HOUSE&&SSARO3332,Residential,1251.6,06/04/2020
ASPIRE HEALTH & CARE LTD CHILLWEL HOUSE&&SSARO3332,Residential,804.6,06/04/2020
ASPIRE HEALTH & CARE LTD T/AS BODEN HOUSE&&SSARO3393,Residential,1954.37,06/04/2020
ASPIRE HEALTH & CARE LTD T/AS BODEN HOUSE&&SSARO3393,Residential,925.76,06/04/2020
Aspire Lifeskills Ltd,Payment to Ext SEN Providers,239994,30/04/2020
Aspire Lifeskills Ltd,Payment to Ext SEN Providers,16000,27/04/2020
ATHENA CARE LTD&&ISHCHC673,Payments in Advance,7960,17/04/2020
ATHENA CARE LTD&&ISHCHC673,Home Care / Domiciliary,4341.12,17/04/2020
Aurora Hanley School c/o The Aurora Group,Payment to Ext SEN Providers,17949,30/04/2020
Ausden Clark Ltd,Home to Sch Trans - Buses,4070,28/04/2020
Ausden Clark Ltd,Home to Sch Trans - Buses,3960,28/04/2020
Ausden Clark Ltd,Home to Sch Trans - Buses,3960,28/04/2020
Ausden Clark Ltd,Home to Sch Trans - Buses,3960,28/04/2020
Ausden Clark Ltd,Home to Sch Trans - Buses,3850,28/04/2020
Ausden Clark Ltd,Home to Sch Trans - Buses,3331.68,28/04/2020
Ausden Clark Ltd,Home to Sch Trans - Buses,3337.84,28/04/2020
Ausden Clark Ltd,Home to Sch Trans - Buses,3563.34,28/04/2020
Ausden Clark Ltd,Home to Sch Trans - Buses,3960,28/04/2020
Ausden Clark Ltd,Home to Sch Trans - Buses,3991.46,28/04/2020
Ausden Clark Ltd,Home to Sch Trans - Buses,3960,28/04/2020
Ausden Clark Ltd,Home to Sch Trans - Buses,4400,28/04/2020
Ausden Clark Ltd,Home to Sch Trans - Buses,4840,28/04/2020
Ausden Clark Ltd,Home to Sch Trans - Buses,4400,28/04/2020
AUTISM CARE (UK) LTD&&SSAROE1335,Residential,6373.14,06/04/2020
AUTISM CARE (UK) LTD&&SSAROE1335,Residential,3018.86,06/04/2020
AVERY HOMES GRANTHAM LTD&&SSARO1825,Residential,3482.43,06/04/2020
AVERY HOMES GRANTHAM LTD&&SSARO1825,Residential,1649.57,06/04/2020
AVERY HOMES HINCKLEY LTD&&SSARO2898,Residential,-992.57,06/04/2020
AVERY HOMES HINCKLEY LTD&&SSARO2898,Residential,900,06/04/2020
AVERY HOMES HINCKLEY LTD&&SSARO2898,Residential,514.29,06/04/2020
AVERY HOMES HINCKLEY LTD&&SSARO2898,Residential,36303.53,06/04/2020
AVERY HOMES HINCKLEY LTD&&SSARO2898,Residential,1149.28,06/04/2020
AVERY HOMES HINCKLEY LTD&&SSARO2898,Residential,17146.47,06/04/2020
AVVISIM CARE LTD T/A FERNLEIGH CARE HOME&&SSAROE40336,Residential,-1240.71,06/04/2020
AVVISIM CARE LTD T/A FERNLEIGH CARE HOME&&SSAROE40336,Residential,-1075.29,06/04/2020
AVVISIM CARE LTD T/A FERNLEIGH CARE HOME&&SSAROE40336,Residential,16565.26,06/04/2020
AVVISIM CARE LTD T/A FERNLEIGH CARE HOME&&SSAROE40336,Residential,620,06/04/2020
AVVISIM CARE LTD T/A FERNLEIGH CARE HOME&&SSAROE40336,Residential,7846.74,06/04/2020
AYLESHAM COURT NURSING HOME&&SSAROE59696,Private Contractors,-10795.84,06/04/2020
AYLESHAM COURT NURSING HOME&&SSAROE59696,Residential,-10795.84,06/04/2020
AYLESHAM COURT NURSING HOME&&SSAROE59696,Residential,22598.24,06/04/2020
AYLESHAM COURT NURSING HOME&&SSAROE59696,Private Contractors,-13615.84,06/04/2020
AYLESHAM COURT NURSING HOME&&SSAROE59696,Residential,-13615.84,06/04/2020
AYLESHAM COURT NURSING HOME&&SSAROE59696,Private Contractors,-2571.43,06/04/2020
AYLESHAM COURT NURSING HOME&&SSAROE59696,Residential,-2571.43,06/04/2020
AYLESHAM COURT NURSING HOME&&SSAROE59696,Residential,25646.64,06/04/2020
AYLESHAM COURT NURSING HOME&&SSAROE59696,Private Contractors,-1833.83,06/04/2020
AYLESHAM COURT NURSING HOME&&SSAROE59696,Private Contractors,-17052.64,06/04/2020
AYLESHAM COURT NURSING HOME&&SSAROE59696,Residential,-17052.64,06/04/2020
AYLESHAM COURT NURSING HOME&&SSAROE59696,Residential,12028.8,06/04/2020
AYLESHAM COURT NURSING HOME&&SSAROE59696,Private Contractors,-12062.32,06/04/2020
AYLESHAM COURT NURSING HOME&&SSAROE59696,Residential,-12062.32,06/04/2020
AYLESHAM COURT NURSING HOME&&SSAROE59696,Private Contractors,-22180.64,06/04/2020
AYLESHAM COURT NURSING HOME&&SSAROE59696,Residential,-22180.64,06/04/2020
AYLESHAM COURT NURSING HOME&&SSAROE59696,Residential,8000,06/04/2020
AYLESHAM COURT NURSING HOME&&SSAROE59696,Residential,-1499.04,06/04/2020
AYLESHAM COURT NURSING HOME&&SSAROE59696,Private Contractors,-22180.64,06/04/2020
AYLESHAM COURT NURSING HOME&&SSAROE59696,Residential,-22180.64,06/04/2020
AYLESHAM COURT NURSING HOME&&SSAROE59696,Private Contractors,-20208.46,06/04/2020
AYLESHAM COURT NURSING HOME&&SSAROE59696,Residential,-20208.46,06/04/2020
AYLESHAM COURT NURSING HOME&&SSAROE59696,Residential,-1208.57,06/04/2020
AYLESHAM COURT NURSING HOME&&SSAROE59696,Residential,13898.57,06/04/2020
AYLESHAM COURT NURSING HOME&&SSAROE59696,Private Contractors,-22210.24,06/04/2020
AYLESHAM COURT NURSING HOME&&SSAROE59696,Residential,-22210.24,06/04/2020
AYLESHAM COURT NURSING HOME&&SSAROE59696,Residential,24059.3,06/04/2020
AYLESHAM COURT NURSING HOME&&SSAROE59696,Private Contractors,-26836.64,06/04/2020
AYLESHAM COURT NURSING HOME&&SSAROE59696,Residential,-26836.64,06/04/2020
AYLESHAM COURT NURSING HOME&&SSAROE59696,Private Contractors,-10795.84,06/04/2020
AYLESHAM COURT NURSING HOME&&SSAROE59696,Residential,-10795.84,06/04/2020
AYLESHAM COURT NURSING HOME&&SSAROE59696,Residential,13111.84,06/04/2020
AYLESHAM COURT NURSING HOME&&SSAROE59696,Private Contractors,-10795.84,06/04/2020
AYLESHAM COURT NURSING HOME&&SSAROE59696,Residential,-10795.84,06/04/2020
AYLESHAM COURT NURSING HOME&&SSAROE59696,Residential,93115.34,06/04/2020
AYLESHAM COURT NURSING HOME&&SSAROE59696,Private Contractors,-1170.57,06/04/2020
AYLESHAM COURT NURSING HOME&&SSAROE59696,Residential,7196.14,06/04/2020
AYLESHAM COURT NURSING HOME&&SSAROE59696,Private Contractors,-10795.84,06/04/2020
AYLESHAM COURT NURSING HOME&&SSAROE59696,Residential,-10795.84,06/04/2020
AYLESHAM COURT NURSING HOME&&SSAROE59696,Private Contractors,-871.81,06/04/2020
AYLESHAM COURT NURSING HOME&&SSAROE59696,Residential,2231.26,06/04/2020
AYLESHAM COURT NURSING HOME&&SSAROE59696,Private Contractors,-845.03,06/04/2020
AYLESHAM COURT NURSING HOME&&SSAROE59696,Residential,2028.07,06/04/2020
AYLESHAM COURT NURSING HOME&&SSAROE59696,Private Contractors,-10795.84,06/04/2020
AYLESHAM COURT NURSING HOME&&SSAROE59696,Residential,-10795.84,06/04/2020
AYLESHAM COURT NURSING HOME&&SSAROE59696,Residential,22598.24,06/04/2020
AYLESHAM COURT NURSING HOME&&SSAROE59696,Residential,11396.54,06/04/2020
AYLESTONE GRANGE LTD&&SSARO3251,Residential,6017.25,06/04/2020
AYLESTONE GRANGE LTD&&SSARO3251,Residential,2850.33,06/04/2020
Baca Charity,Private Contractors,1830,01/04/2020
Baca Charity,Private Contractors,915,01/04/2020
Baca Charity,Private Contractors,2440,01/04/2020
Baca Charity,Private Contractors,2440,02/04/2020
Baca Charity,Other Transfer Payments,2730.15,06/04/2020
Baca Charity,Other Transfer Payments,3700.87,27/04/2020
Baca Charity,Private Contractors,716.41,27/04/2020
BADBY PARK LTD&&SSARO3105,Nursing,3635.94,06/04/2020
BADBY PARK LTD&&SSARO3105,Private Contractors,3635.94,06/04/2020
BADBY PARK LTD&&SSARO3105,Residential,3635.94,06/04/2020
BADBY PARK LTD&&SSARO3105,Nursing,1722.27,06/04/2020
BADBY PARK LTD&&SSARO3105,Private Contractors,1722.27,06/04/2020
BADBY PARK LTD&&SSARO3105,Residential,1722.27,06/04/2020
Badgerbrook After School Club,Payment to Ext SEN Providers,2025,09/04/2020
REDACTED PERSONAL DATA,Home to Sch Trans - Buses,11627,27/04/2020
REDACTED PERSONAL DATA,S.E.N. Taxi Hire,4540.8,28/04/2020
REDACTED PERSONAL DATA,S.E.N. Taxi Hire,3352.8,28/04/2020
REDACTED PERSONAL DATA,S.E.N. Taxi Hire,4237.2,28/04/2020
REDACTED PERSONAL DATA,S.E.N. Taxi Hire,5332.8,28/04/2020
REDACTED PERSONAL DATA,S.E.N. Taxi Hire,4672.8,28/04/2020
REDACTED PERSONAL DATA,Recharge of Pooled Transp Cost,5808,30/04/2020
REDACTED PERSONAL DATA,S.E.N. Taxi Hire,5808,30/04/2020
REDACTED PERSONAL DATA,S.E.N. Taxi Hire,4012.8,30/04/2020
REDACTED PERSONAL DATA,S.E.N. Taxi Hire,3352.8,30/04/2020
REDACTED PERSONAL DATA,Home to Sch Trans - Buses,3564,30/04/2020
BARCHESTER HEALTHCARE HOME LTD T/A MARPLE DALE WINDSOR&&SSAROE350,Residential,1818.38,06/04/2020
BARCHESTER HEALTHCARE HOME LTD T/A MARPLE DALE WINDSOR&&SSAROE350,Residential,861.34,06/04/2020
BARCHESTER HEALTHCARE HOMES LTD CHORLEYWOOD BEAUMONT RECEIPTS ACCOUNT&&SSARO5714,Nursing,2999.29,06/04/2020
BARCHESTER HEALTHCARE HOMES LTD CHORLEYWOOD BEAUMONT RECEIPTS ACCOUNT&&SSARO5714,Private Contractors,2999.29,06/04/2020
BARCHESTER HEALTHCARE HOMES LTD CHORLEYWOOD BEAUMONT RECEIPTS ACCOUNT&&SSARO5714,Residential,2999.29,06/04/2020
BARCHESTER HEALTHCARE HOMES LTD CHORLEYWOOD BEAUMONT RECEIPTS ACCOUNT&&SSARO5714,Nursing,1420.71,06/04/2020
BARCHESTER HEALTHCARE HOMES LTD CHORLEYWOOD BEAUMONT RECEIPTS ACCOUNT&&SSARO5714,Private Contractors,1420.71,06/04/2020
BARCHESTER HEALTHCARE HOMES LTD CHORLEYWOOD BEAUMONT RECEIPTS ACCOUNT&&SSARO5714,Residential,1420.71,06/04/2020
BARCHESTER HEALTHCARE HOMES LTD LANCASTER GRANGE&&SARO3353,Residential,1832.14,06/04/2020
BARCHESTER HEALTHCARE HOMES LTD LANCASTER GRANGE&&SARO3353,Residential,867.86,06/04/2020
BARCHESTER HEALTHCARE HOMES LTD OVERSLADE HOUSE RECEIPTS ACCOUNT&&SSARO3228,Nursing,1641.6,06/04/2020
BARCHESTER HEALTHCARE HOMES LTD OVERSLADE HOUSE RECEIPTS ACCOUNT&&SSARO3228,Private Contractors,1641.6,06/04/2020
BARCHESTER HEALTHCARE HOMES LTD OVERSLADE HOUSE RECEIPTS ACCOUNT&&SSARO3228,Nursing,777.6,06/04/2020
BARCHESTER HEALTHCARE HOMES LTD OVERSLADE HOUSE RECEIPTS ACCOUNT&&SSARO3228,Private Contractors,777.6,06/04/2020
BARCHESTER HEALTHCARE HOMES LTD&&SAROE59408,Private Contractors,7311.69,06/04/2020
BARCHESTER HEALTHCARE HOMES LTD&&SAROE59408,Residential,7311.69,06/04/2020
BARCHESTER HEALTHCARE HOMES LTD&&SAROE59408,Residential,3800,06/04/2020
BARCHESTER HEALTHCARE HOMES LTD&&SAROE59408,Residential,3800,06/04/2020
BARCHESTER HEALTHCARE HOMES LTD&&SAROE59408,Residential,2307.15,06/04/2020
BARCHESTER HEALTHCARE HOMES LTD&&SAROE59408,Private Contractors,3463.43,06/04/2020
BARCHESTER HEALTHCARE HOMES LTD&&SAROE59408,Residential,3463.43,06/04/2020
Barnardos,Other Agency & Cont Services,3535.72,30/04/2020
Barrow Upon Soar Community Association,Voluntary Associations,523,09/04/2020
REDACTED PERSONAL DATA,Home to Sch Trans - Buses,880,27/04/2020
Barwell CE Academy,Payment to Ext SEN Providers,1667,24/04/2020
Barwell Tyre Centre,R&M of Vehicles-Non Contract,805.2,28/04/2020
Barwell Tyre Centre,R&M of Vehicles-Non Contract,793.14,24/04/2020
Barwell Tyre Centre,R&M of Vehicles-Non Contract,667.2,24/04/2020
Barwell Tyre Centre,R&M of Vehicles-Non Contract,985.2,24/04/2020
Battling Brook Primary School Academy,Payment to Ext SEN Providers,6292,24/04/2020
Beacon Academy,Children&Families Spprt Servs,3669,24/04/2020
Beacon Academy,Payment to Ext SEN Providers,-2911,21/04/2020
Beacon Academy,Payment to Ext SEN Providers,23654,03/04/2020
Beacon Academy,Payment to Ext SEN Providers,500,24/04/2020
Beacon Academy,Payment to Ext SEN Providers,12906,24/04/2020
Beacon Academy,Payment to Ext SEN Providers,7317,24/04/2020
Beauchamp Academy,Payment to Ext SEN Providers,2165,24/04/2020
Beauchamp Academy,Payment to Ext SEN Providers,9909,24/04/2020
Belgrave Car & Commercial Ltd,Home to Sch Trans - Buses,7920,28/04/2020
Belgrave Car & Commercial Ltd,Home to Sch Trans - Buses,3080,27/04/2020
Belgrave Car & Commercial Ltd,Home to Sch Trans - Buses,5676,28/04/2020
Belper North Mill Trust,Other Transfer Payments,500,17/04/2020
BENTLEY HOUSE LTD&&SSAROE140,Private Contractors,1430.51,06/04/2020
BENTLEY HOUSE LTD&&SSAROE140,Private Contractors,677.61,06/04/2020
BERRYSTEAD NURSING & RESIDENTIAL  HOME LTD&&SSAROE2040,Residential,-1654.29,06/04/2020
BERRYSTEAD NURSING & RESIDENTIAL  HOME LTD&&SSAROE2040,Residential,-1488.86,06/04/2020
BERRYSTEAD NURSING & RESIDENTIAL  HOME LTD&&SSAROE2040,Residential,-1488.86,06/04/2020
BERRYSTEAD NURSING & RESIDENTIAL  HOME LTD&&SSAROE2040,Residential,-1488.86,06/04/2020
BERRYSTEAD NURSING & RESIDENTIAL  HOME LTD&&SSAROE2040,Residential,20870.11,06/04/2020
BERRYSTEAD NURSING & RESIDENTIAL  HOME LTD&&SSAROE2040,Residential,5924,06/04/2020
BERRYSTEAD NURSING & RESIDENTIAL  HOME LTD&&SSAROE2040,Residential,1488.86,06/04/2020
BERRYSTEAD NURSING & RESIDENTIAL  HOME LTD&&SSAROE2040,Residential,1488.86,06/04/2020
BERRYSTEAD NURSING & RESIDENTIAL  HOME LTD&&SSAROE2040,Residential,-2156.57,06/04/2020
BERRYSTEAD NURSING & RESIDENTIAL  HOME LTD&&SSAROE2040,Residential,9885.89,06/04/2020
BESTCARE LTD&&SSAROE1281,Residential,3093.74,06/04/2020
BESTCARE LTD&&SSAROE1281,Residential,2200.89,06/04/2020
BESTCARE LTD&&SSAROE1281,Residential,-7795.2,06/04/2020
BESTCARE LTD&&SSAROE1281,Residential,8800.8,06/04/2020
BESTCARE LTD&&SSAROE1281,Residential,-7795.2,06/04/2020
BESTCARE LTD&&SSAROE1281,Residential,8800.8,06/04/2020
BESTCARE LTD&&SSAROE1281,Residential,-7795.2,06/04/2020
BESTCARE LTD&&SSAROE1281,Residential,-4075.6,06/04/2020
BESTCARE LTD&&SSAROE1281,Residential,-7795.2,06/04/2020
BESTCARE LTD&&SSAROE1281,Residential,-7795.2,06/04/2020
BESTCARE LTD&&SSAROE1281,Residential,-1823.57,06/04/2020
BESTCARE LTD&&SSAROE1281,Residential,-7795.2,06/04/2020
BESTCARE LTD&&SSAROE1281,Residential,-958.63,06/04/2020
BESTCARE LTD&&SSAROE1281,Residential,1191.09,06/04/2020
BESTCARE LTD&&SSAROE1281,Residential,-7795.2,06/04/2020
BESTCARE LTD&&SSAROE1281,Residential,1900,06/04/2020
BESTCARE LTD&&SSAROE1281,Residential,21245.24,06/04/2020
BESTCARE LTD&&SSAROE1281,Residential,-6264.06,06/04/2020
BESTCARE LTD&&SSAROE1281,Residential,-6888.08,06/04/2020
BESTCARE LTD&&SSAROE1281,Residential,7196.15,06/04/2020
BESTCARE LTD&&SSAROE1281,Residential,-6304,06/04/2020
BESTCARE LTD&&SSAROE1281,Residential,6948,06/04/2020
BESTCARE LTD&&SSAROE1281,Residential,-6304,06/04/2020
BESTCARE LTD&&SSAROE1281,Residential,6948,06/04/2020
BESTCARE LTD&&SSAROE1281,Residential,-7795.2,06/04/2020
BESTCARE LTD&&SSAROE1281,Residential,66006,06/04/2020
BESTCARE LTD&&SSAROE1281,Residential,900,06/04/2020
BESTCARE LTD&&SSAROE1281,Residential,10063.56,06/04/2020
BETHEL RESIDENTIAL HOME&&SSAROE40459,Residential,-1075.29,06/04/2020
BETHEL RESIDENTIAL HOME&&SSAROE40459,Residential,-909.86,06/04/2020
BETHEL RESIDENTIAL HOME&&SSAROE40459,Residential,15715.7,06/04/2020
BETHEL RESIDENTIAL HOME&&SSAROE40459,Residential,1075.29,06/04/2020
BETHEL RESIDENTIAL HOME&&SSAROE40459,Residential,7444.3,06/04/2020
BETHESDA CAREHOMES LTD TA PINGLENOOK&&SSAROE40346,Residential,-1488.86,06/04/2020
BETHESDA CAREHOMES LTD TA PINGLENOOK&&SSAROE40346,Residential,11000.99,06/04/2020
BETHESDA CAREHOMES LTD TA PINGLENOOK&&SSAROE40346,Residential,1737,06/04/2020
BETHESDA CAREHOMES LTD TA PINGLENOOK&&SSAROE40346,Residential,6451.73,06/04/2020
REDACTED PERSONAL DATA,Home to Sch Trans - Buses,1971.42,09/04/2020
REDACTED PERSONAL DATA,S.E.N. Taxi Hire,2640,27/04/2020
REDACTED PERSONAL DATA,S.E.N. Taxi Hire,936,27/04/2020
BIRCHES (PARKCARE HOMES (NO2) LTD)&&SSARO5702,Residential,3597.75,06/04/2020
BIRCHES (PARKCARE HOMES (NO2) LTD)&&SSARO5702,Residential,-719.55,06/04/2020
BIRCHES (PARKCARE HOMES (NO2) LTD)&&SSARO5702,Residential,-2878.2,06/04/2020
BIRCHESTER MEDICARE LTD&&SSARO2290,Private Contractors,1658.43,06/04/2020
BIRCHESTER MEDICARE LTD&&SSARO2290,Residential,1658.43,06/04/2020
BIRCHESTER MEDICARE LTD&&SSARO2290,Private Contractors,785.57,06/04/2020
BIRCHESTER MEDICARE LTD&&SSARO2290,Residential,785.57,06/04/2020
BIRCHWOOD RETIREMENT HOME LTD&&SSARO3408,Residential,1498.29,06/04/2020
BIRCHWOOD RETIREMENT HOME LTD&&SSARO3408,Residential,709.71,06/04/2020
Birkett House School Academy,Children&Families Spprt Servs,1105,24/04/2020
Birkett House School Academy,Payment to Ext SEN Providers,9497,24/04/2020
Birkett House School Academy,Payment to Ext SEN Providers,155487,24/04/2020
Birstall Cabs,S.E.N. Taxi Hire,1672.86,24/04/2020
Birstall Cabs,S.E.N. Taxi Hire,1411.02,14/04/2020
Birstall Cabs,S.E.N. Taxi Hire,1021.61,14/04/2020
Birstall Cabs,Recharge of Pooled Transp Cost,2542.41,27/04/2020
Birstall Cabs,S.E.N. Taxi Hire,2542.41,27/04/2020
Birstall Cabs,S.E.N. Taxi Hire,1051.58,14/04/2020
Birstall Cabs,Recharge of Pooled Transp Cost,758.47,15/04/2020
Birstall Cabs,S.E.N. Taxi Hire,526.98,15/04/2020
Birstall Cabs,Home to Sch Trans - Buses,500.99,15/04/2020
BIRSTALL CARE SERVICES LTD&&SSARO3339,Residential,-2250,06/04/2020
BIRSTALL CARE SERVICES LTD&&SSARO3339,Residential,12750,06/04/2020
BIRSTALL CARE SERVICES LTD&&SSARO3339,Residential,-5420,06/04/2020
BIRSTALL CARE SERVICES LTD&&SSARO3339,Residential,5516,06/04/2020
BIRSTALL CARE SERVICES LTD&&SSARO3339,Residential,-5420,06/04/2020
BIRSTALL CARE SERVICES LTD&&SSARO3339,Residential,38970,06/04/2020
BIRSTALL CARE SERVICES LTD&&SSARO3339,Residential,-5420,06/04/2020
BIRSTALL CARE SERVICES LTD&&SSARO3339,Residential,-4510,06/04/2020
BIRSTALL CARE SERVICES LTD&&SSARO3339,Residential,-5420,06/04/2020
BIRSTALL CARE SERVICES LTD&&SSARO3339,Residential,-5420,06/04/2020
BIRSTALL CARE SERVICES LTD&&SSARO3339,Residential,1134,06/04/2020
BIRSTALL CARE SERVICES LTD&&SSARO3339,Residential,-5420,06/04/2020
BIRSTALL CARE SERVICES LTD&&SSARO3339,Residential,-9620,06/04/2020
BIRSTALL CARE SERVICES LTD&&SSARO3339,Residential,-2628.57,06/04/2020
BIRSTALL CARE SERVICES LTD&&SSARO3339,Residential,2628.57,06/04/2020
BIRSTALL CARE SERVICES LTD&&SSARO3339,Residential,842.78,06/04/2020
BIRSTALL CARE SERVICES LTD&&SSARO3339,Residential,7609.5,06/04/2020
BIRSTALL CARE SERVICES LTD&&SSARO3339,Residential,-8820,06/04/2020
BIRSTALL CARE SERVICES LTD&&SSARO3339,Residential,-2220,06/04/2020
BIRSTALL CARE SERVICES LTD&&SSARO3339,Residential,2316,06/04/2020
BIRSTALL CARE SERVICES LTD&&SSARO3339,Residential,-2220,06/04/2020
BIRSTALL CARE SERVICES LTD&&SSARO3339,Residential,2316,06/04/2020
BIRSTALL CARE SERVICES LTD&&SSARO3339,Residential,-5420,06/04/2020
BIRSTALL CARE SERVICES LTD&&SSARO3339,Residential,5516,06/04/2020
BIRSTALL CARE SERVICES LTD&&SSARO3339,Residential,-5420,06/04/2020
BIRSTALL CARE SERVICES LTD&&SSARO3339,Residential,5516,06/04/2020
BIRSTALL CARE SERVICES LTD&&SSARO3339,Residential,3604.5,06/04/2020
Birstall Cars Ltd,S.E.N. Taxi Hire,1898.4,17/04/2020
Blaby District Council,Personal Accounts - Other,1170.12,16/04/2020
Blaby Stokes CE Primary School (Academy),Payment to Ext SEN Providers,2270,24/04/2020
Blackfordby St Margarets CE Primary School (Academy),Payment to Ext SEN Providers,611,24/04/2020
Blue Mountain Homes Ltd,Private Contractors,19450.29,02/04/2020
Blue Mountain Homes Ltd,Private Contractors,17191.71,02/04/2020
Blue Mountain Homes Ltd,Private Contractors,17191.71,02/04/2020
Blue Mountain Homes Ltd,Private Contractors,32749.28,02/04/2020
Blue Mountain Homes Ltd,Private Contractors,27970.86,02/04/2020
BLUE OPAL LTD T/A THE MEADOWS&&SSARO5335,Residential,3283.58,06/04/2020
BLUE OPAL LTD T/A THE MEADOWS&&SSARO5335,Residential,1555.38,06/04/2020
BLUEWOOD RECRUITMENT LTD&&ISHC3933,Payments in Advance,17300,17/04/2020
BLUEWOOD RECRUITMENT LTD&&ISHC3933,Home Care / Domiciliary,642.96,17/04/2020
BLUEWOOD RECRUITMENT LTD&&ISHC3933,Home Care / Domiciliary,8517.18,17/04/2020
Bolinda UK,Books,659.62,07/04/2020
Bolinda UK,Books,1840.27,07/04/2020
Bolinda UK,Books,942.36,21/04/2020
Bolinda UK,Books,3409.22,21/04/2020
Bolinda UK,Books,4110.86,23/04/2020
Bolinda UK,Books,828.43,23/04/2020
Bolinda UK,Books,802.66,23/04/2020
Bolinda UK,Books,1694.27,23/04/2020
Bolinda UK,Books,1240.15,29/04/2020
Book a Cab Ltd,S.E.N. Taxi Hire,1520,27/04/2020
Bookseller Media Ltd,Newspapers & Periodicals,851.58,07/04/2020
Borough of Charnwood Council,Personal Accounts - Other,1727.56,16/04/2020
Bosworth Academy,Payment to Ext SEN Providers,11764,24/04/2020
Bottesford CE Primary School Academy,Payment to Ext SEN Providers,2673,24/04/2020
Bottesford Community Library,Voluntary Associations,667,09/04/2020
Boughton Engineering Ltd,R&M of Vehicles-Non Contract,752.4,23/04/2020
Bradgate Education Partnership Seagrave Village Primary School,Payment to Ext SEN Providers,1235,24/04/2020
Bradgate Education Partnership T/A Gaddesby Primary School,Payment to Ext SEN Providers,1536,24/04/2020
Bradgate Education Partnership T/A Great Dalby Primary School,Payment to Ext SEN Providers,1536,24/04/2020
Bradgate Park Trust,Grants,12000,30/04/2020
REDACTED PERSONAL DATA,S.E.N. Taxi Hire,900,17/04/2020
Braunstone Town Community Minibus Project Ltd,Minimum Cost Contracts,4252.5,17/04/2020
Bredon School (2002) Ltd,Payment to Ext SEN Providers,17425,30/04/2020
BRIARS & ROSE LODGE&&SSAROE1126,Residential,-10524.59,06/04/2020
BRIARS & ROSE LODGE&&SSAROE1126,Residential,14987.04,06/04/2020
BRIARS & ROSE LODGE&&SSAROE1126,Residential,-13604.8,06/04/2020
BRIARS & ROSE LODGE&&SSAROE1126,Residential,14987.04,06/04/2020
BRIARS & ROSE LODGE&&SSAROE1126,Residential,-13604.8,06/04/2020
BRIARS & ROSE LODGE&&SSAROE1126,Residential,14815.61,06/04/2020
BRIARS & ROSE LODGE&&SSAROE1126,Residential,-6802.4,06/04/2020
BRIARS & ROSE LODGE&&SSAROE1126,Residential,-13604.8,06/04/2020
BRIARS & ROSE LODGE&&SSAROE1126,Residential,81420.72,06/04/2020
BRIARS & ROSE LODGE&&SSAROE1126,Residential,-13604.8,06/04/2020
BRIARS & ROSE LODGE&&SSAROE1126,Residential,-13604.8,06/04/2020
BRIARS & ROSE LODGE&&SSAROE1126,Residential,-13604.8,06/04/2020
BRIARS & ROSE LODGE&&SSAROE1126,Residential,15959.38,06/04/2020
BRIARS & ROSE LODGE&&SSAROE1126,Residential,-13604.8,06/04/2020
BRIARS & ROSE LODGE&&SSAROE1126,Residential,-1277.03,06/04/2020
BRIARS & ROSE LODGE&&SSAROE1126,Residential,-13604.8,06/04/2020
BRIARS & ROSE LODGE&&SSAROE1126,Residential,15579.04,06/04/2020
BRIARS & ROSE LODGE&&SSAROE1126,Residential,-13604.8,06/04/2020
BRIARS & ROSE LODGE&&SSAROE1126,Residential,15029.32,06/04/2020
BRIARS & ROSE LODGE&&SSAROE1126,Residential,-1803.18,06/04/2020
BRIARS & ROSE LODGE&&SSAROE1126,Residential,-13604.8,06/04/2020
BRIARS & ROSE LODGE&&SSAROE1126,Residential,14987.04,06/04/2020
BRIARS & ROSE LODGE&&SSAROE1126,Residential,-13604.8,06/04/2020
BRIARS & ROSE LODGE&&SSAROE1126,Residential,14987.04,06/04/2020
BRIARS & ROSE LODGE&&SSAROE1126,Residential,7559.66,06/04/2020
BRIARS&&SSAROE425,Residential,-5380.8,06/04/2020
BRIARS&&SSAROE425,Residential,-9806.04,06/04/2020
BRIARS&&SSAROE425,Residential,-9806.04,06/04/2020
BRIARS&&SSAROE425,Residential,-3937.02,06/04/2020
BRIARS&&SSAROE425,Residential,-9806.04,06/04/2020
BRIARS&&SSAROE425,Residential,63833,06/04/2020
BRIARS&&SSAROE425,Residential,-10362.84,06/04/2020
BRIARS&&SSAROE425,Residential,-9740.64,06/04/2020
BRIARS&&SSAROE425,Residential,-7874.04,06/04/2020
BRIARS&&SSAROE425,Residential,-1113.24,06/04/2020
BRIARS&&SSAROE425,Residential,12607.87,06/04/2020
BRIARS&&SSAROE425,Residential,-7874.04,06/04/2020
BRIARS&&SSAROE425,Residential,-9806.04,06/04/2020
BRIARS&&SSAROE425,Residential,12764,06/04/2020
BRIARS&&SSAROE425,Residential,-9806.04,06/04/2020
BRIARS&&SSAROE425,Residential,76584,06/04/2020
BRIARS&&SSAROE425,Residential,-9806.04,06/04/2020
BRIARS&&SSAROE425,Residential,-3312,06/04/2020
BRIARS&&SSAROE425,Residential,-9806.04,06/04/2020
BRIARS&&SSAROE425,Residential,5972.13,06/04/2020
BRIDGEFOOT DEVELOPMENTS LTD JASON HYLTON COURT&&SSARO3277,Residential,2600,06/04/2020
BRIDGEFOOT DEVELOPMENTS LTD JASON HYLTON COURT&&SSARO3277,Residential,-2042.86,06/04/2020
Bridge House Independent School Ltd,Payment to Ext SEN Providers,24000,30/04/2020
BRIGHT INTERGRATED CARE LTD&&ISHC3324,Payments in Advance,60700,17/04/2020
BRIGHT INTERGRATED CARE LTD&&ISHC3324,Home Care / Domiciliary,1033.2,17/04/2020
BRIGHT INTERGRATED CARE LTD&&ISHC3324,Home Care / Domiciliary,25830.93,17/04/2020
BRIGHT INTERGRATED CARE LTD&&ISHC3324,Home Care / Domiciliary,566.69,17/04/2020
Bristow & Sutor,Minimum Cost Contracts,630.41,03/04/2020
British Deaf Association,Grants,2140.58,17/04/2020
British Gas,Electricity,662.38,03/04/2020
BROADLANDS RESIDENTIAL CARE HOME&&SARO8403,Residential,1452.14,06/04/2020
BROADLANDS RESIDENTIAL CARE HOME&&SARO8403,Residential,687.86,06/04/2020
BROADOAK GRANGE RESIDENTIAL HOME&&SSAROE40338,Residential,15715.7,06/04/2020
BROADOAK GRANGE RESIDENTIAL HOME&&SSAROE40338,Residential,1406.14,06/04/2020
BROADOAK GRANGE RESIDENTIAL HOME&&SSAROE40338,Residential,7444.3,06/04/2020
BROADOAK LODGE&&SSAROE66479,Residential,25268.98,06/04/2020
BROADOAK LODGE&&SSAROE66479,Residential,12165.45,06/04/2020
Brocks Hill Primary School Academy,Children&Families Spprt Servs,1102.47,03/04/2020
Brocks Hill Primary School Academy,Payment to Ext SEN Providers,1803,24/04/2020
Brooke Priory School Ltd,Payment to Ext SEN Providers,4286.75,03/04/2020
Brooke Priory School Ltd,Payment to Ext SEN Providers,3627.25,03/04/2020
Brookvale Groby Learning Trust (Groby Community College),Payment to Ext SEN Providers,4941,24/04/2020
Brookvale High School Academy,Payment to Ext SEN Providers,6877,24/04/2020
BROOKVALE&&SSAROE56,Residential,1713.72,06/04/2020
BROOKVALE&&SSAROE56,Residential,813.84,06/04/2020
Broom Leys Academy,Payment to Ext SEN Providers,6806,24/04/2020
Brownlow School Academy,Children&Families Spprt Servs,1282.8,09/04/2020
Brownlow School Academy,Payment to Ext SEN Providers,4605,24/04/2020
REDACTED PERSONAL DATA,Private Contractors,10680.14,06/04/2020
REDACTED PERSONAL DATA,Residential,10680.14,06/04/2020
REDACTED PERSONAL DATA,Private Contractors,5059.02,06/04/2020
REDACTED PERSONAL DATA,Residential,5059.02,06/04/2020
BS Project Services Ltd,Oracle Payroll,869.35,20/04/2020
BS Project Services Ltd,Oracle Payroll,881.1,20/04/2020
BS Project Services Ltd,Oracle Payroll,875.22,09/04/2020
BS Project Services Ltd,Oracle Payroll,845.86,09/04/2020
BS Project Services Ltd,Agency Staff,561.6,24/04/2020
BS Project Services Ltd,Oracle Payroll,869.35,09/04/2020
BS Project Services Ltd,Oracle Payroll,881.1,09/04/2020
BS Project Services Ltd,Oracle Payroll,869.35,20/04/2020
BS Project Services Ltd,Oracle Payroll,928.09,22/04/2020
BS Project Services Ltd,Oracle Payroll,869.35,24/04/2020
BS Project Services Ltd,Oracle Payroll,892.85,22/04/2020
BUPA CARE HOMES T/A THE SPRNGS CARE HOME&&SARO3407,Residential,1503.72,06/04/2020
BUPA CARE HOMES T/A THE SPRNGS CARE HOME&&SARO3407,Residential,712.28,06/04/2020
Burbage Community Library,Voluntary Associations,568.5,09/04/2020
BURBAGE HOMECARE LTD&&ISHCHC455,Payments in Advance,29930,17/04/2020
BURBAGE HOMECARE LTD&&ISHCHC455,Home Care / Domiciliary,751.81,17/04/2020
BURBAGE HOMECARE LTD&&ISHCHC455,Home Care / Domiciliary,11746,17/04/2020
Busy Bees Childrens Day Nursery,Other Transfer Payments,602.33,15/04/2020
Busy Bees Childrens Day Nursery,Other Transfer Payments,602.33,03/04/2020
By The Bridge,Other Agency & Cont Services,3753.25,30/04/2020
By The Bridge,Other Agency & Cont Services,4281.85,30/04/2020
By The Bridge,Other Agency & Cont Services,4157.15,30/04/2020
By The Bridge,Other Agency & Cont Services,3002.3,30/04/2020
By The Bridge,Other Agency & Cont Services,4281.85,30/04/2020
By The Bridge,Other Agency & Cont Services,6422.78,30/04/2020
By The Bridge,Other Agency & Cont Services,4281.85,30/04/2020
By The Bridge,Private Contractors,3510,30/04/2020
By The Bridge,Other Agency & Cont Services,6422.78,30/04/2020
By The Bridge,Other Agency & Cont Services,3950.78,30/04/2020
By The Bridge,Other Agency & Cont Services,4067.15,30/04/2020
By The Bridge,Other Agency & Cont Services,-12247.44,30/04/2020
By The Bridge,Other Agency & Cont Services,3950.78,30/04/2020
By The Bridge,Private Contractors,3055.07,30/04/2020
By The Bridge,Other Agency & Cont Services,3338.57,30/04/2020
By The Bridge,Other Agency & Cont Services,6230.1,30/04/2020
By The Bridge,Other Agency & Cont Services,4281.85,30/04/2020
By The Bridge,Other Agency & Cont Services,3862.15,30/04/2020
CAMDEN SOCIETY&&CLCD3181173310,Payments in Advance,17410,17/04/2020
CAMDEN SOCIETY&&CLCD3181173310,Day / CLC Services,6600.14,17/04/2020
CAMDEN SOCIETY&&CLCD3181173310,Day / CLC Services,2595.2,17/04/2020
CAMDEN SOCIETY&&CLCD3181173310,Day / CLC Services,6086.21,17/04/2020
Capstone Foster Care (Midlands) Ltd,Other Agency & Cont Services,3219.68,30/04/2020
Capstone Foster Care (Midlands) Ltd,Other Agency & Cont Services,3479.65,30/04/2020
Capstone Foster Care (Midlands) Ltd,Other Agency & Cont Services,3186.77,30/04/2020
Capstone Foster Care (Midlands) Ltd,Other Agency & Cont Services,3444.9,30/04/2020
Capstone Foster Care (Midlands) Ltd,Other Agency & Cont Services,3318,30/04/2020
Capstone Foster Care (Midlands) Ltd,Other Agency & Cont Services,3317.92,30/04/2020
Capstone Foster Care (Midlands) Ltd,Other Agency & Cont Services,3286.88,30/04/2020
Capstone Foster Care (Midlands) Ltd,Other Agency & Cont Services,3479.65,30/04/2020
Capstone Foster Care (Midlands) Ltd,Other Agency & Cont Services,3479.65,30/04/2020
Capstone Foster Care (Midlands) Ltd,Other Agency & Cont Services,3318,30/04/2020
Capstone Foster Care (Midlands) Ltd,Other Agency & Cont Services,3269.87,30/04/2020
Capstone Foster Care (Midlands) Ltd,Other Agency & Cont Services,3285.42,30/04/2020
CARE 24 7 (BODNANT HOUSE)&&SSARO3231,Residential,15369.57,06/04/2020
CARE 24 7 (BODNANT HOUSE)&&SSARO3231,Residential,7280.31,06/04/2020
CARE 24 7 LEICESTER LTD&&SSARO3330,Residential,3061.75,06/04/2020
CARE 24 7 LEICESTER LTD&&SSARO3330,Residential,1450.29,06/04/2020
CARE 4 U (LEICESTERSHIRE) LTD&&ISHC2529,Payments in Advance,62600,17/04/2020
CARE 4 U (LEICESTERSHIRE) LTD&&ISHC2529,Home Care / Domiciliary,1673.95,17/04/2020
CARE 4 U (LEICESTERSHIRE) LTD&&ISHC2529,Home Care / Domiciliary,874.23,17/04/2020
CARE 4 U (LEICESTERSHIRE) LTD&&ISHC2529,Home Care / Domiciliary,601.17,17/04/2020
CARE 4 U (LEICESTERSHIRE) LTD&&ISHC2529,Home Care / Domiciliary,3012.84,17/04/2020
CARE 4 U (LEICESTERSHIRE) LTD&&ISHC2529,Home Care / Domiciliary,18451.11,17/04/2020
CARE 4 U (LEICESTERSHIRE) LTD&&ISHC2529,Home Care / Domiciliary,543.93,17/04/2020
CARE AT HOME (MIDLANDS) LTD&&ISHC2753,Payments in Advance,174290,17/04/2020
CARE AT HOME (MIDLANDS) LTD&&ISHC2753,Home Care / Domiciliary,806.02,17/04/2020
CARE AT HOME (MIDLANDS) LTD&&ISHC2753,Home Care / Domiciliary,928.56,17/04/2020
CARE AT HOME (MIDLANDS) LTD&&ISHC2753,Home Care / Domiciliary,648.3,17/04/2020
CARE AT HOME (MIDLANDS) LTD&&ISHC2753,Home Care / Domiciliary,671.58,17/04/2020
CARE AT HOME (MIDLANDS) LTD&&ISHC2753,Home Care / Domiciliary,1038.66,17/04/2020
CARE AT HOME (MIDLANDS) LTD&&ISHC2753,Home Care / Domiciliary,2009.71,17/04/2020
CARE AT HOME (MIDLANDS) LTD&&ISHC2753,Home Care / Domiciliary,606.31,17/04/2020
CARE AT HOME (MIDLANDS) LTD&&ISHC2753,Home Care / Domiciliary,1510.21,17/04/2020
CARE AT HOME (MIDLANDS) LTD&&ISHC2753,Home Care / Domiciliary,558.05,17/04/2020
CARE AT HOME (MIDLANDS) LTD&&ISHC2753,Home Care / Domiciliary,68344.56,17/04/2020
CARE AT HOME (MIDLANDS) LTD&&ISHC2753,Home Care / Domiciliary,619.06,17/04/2020
CARE AT HOME (MIDLANDS) LTD&&ISHC2753,Home Care / Domiciliary,7350.29,17/04/2020
CARE AT HOME (MIDLANDS) LTD&&ISHC2753,Home Care / Domiciliary,2394.7,17/04/2020
CARELINK HEALTHCARE PROFESSIONALS LTD&&ISHC3871,Payments in Advance,88350,17/04/2020
CARELINK HEALTHCARE PROFESSIONALS LTD&&ISHC3871,Home Care / Domiciliary,825.3,17/04/2020
CARELINK HEALTHCARE PROFESSIONALS LTD&&ISHC3871,Home Care / Domiciliary,27983.39,17/04/2020
CARELINK HEALTHCARE PROFESSIONALS LTD&&ISHC3871,Home Care / Domiciliary,1069.89,17/04/2020
Caremark Hinckley Bosworth & Blaby,Private Contractors,1404,17/04/2020
CAREMARK HINCKLEY BOSWORTH & BLABY&&ISHC3015,Payments in Advance,86940,17/04/2020
CAREMARK HINCKLEY BOSWORTH & BLABY&&ISHC3015,Home Care / Domiciliary,1968.04,17/04/2020
CAREMARK HINCKLEY BOSWORTH & BLABY&&ISHC3015,Home Care / Domiciliary,1147.47,17/04/2020
CAREMARK HINCKLEY BOSWORTH & BLABY&&ISHC3015,Home Care / Domiciliary,864.98,17/04/2020
CAREMARK HINCKLEY BOSWORTH & BLABY&&ISHC3015,Home Care / Domiciliary,629.06,17/04/2020
CAREMARK HINCKLEY BOSWORTH & BLABY&&ISHC3015,Home Care / Domiciliary,948.54,17/04/2020
CAREMARK HINCKLEY BOSWORTH & BLABY&&ISHC3015,Home Care / Domiciliary,29341.7,17/04/2020
CAREMARK HINCKLEY BOSWORTH & BLABY&&ISHC3015,Home Care / Domiciliary,6694.08,17/04/2020
CAREMARK HINCKLEY BOSWORTH & BLABY&&ISHC3015,Home Care / Domiciliary,1450.61,17/04/2020
CAREMARK HINCKLEY BOSWORTH & BLABY&&ISHC3015,Home Care / Domiciliary,1417.52,17/04/2020
CAREMARK HINCKLEY BOSWORTH & BLABY&&ISHC3015,Home Care / Domiciliary,-905.32,17/04/2020
Carers Direct Homecare Ltd,Private Contractors,-1813.74,02/04/2020
Carers Direct Homecare Ltd,Private Contractors,2934,02/04/2020
Carers Direct Homecare Ltd,Private Contractors,1026.6,02/04/2020
Carers Direct Homecare Ltd,Private Contractors,2608,30/04/2020
CARERS TRUST EAST MIDLANDS&&ISHC5076,Voluntary Associations,26000,02/04/2020
Carers UK,Subscriptions,6000,17/04/2020
Care Today Children Services,Private Contractors,23887.98,02/04/2020
Care Today Children Services,Private Contractors,22346.82,02/04/2020
CARING HANDS DOMICILIARY CARE LTD&&ISHC3229,Payments in Advance,236530,17/04/2020
CARING HANDS DOMICILIARY CARE LTD&&ISHC3229,Home Care / Domiciliary,579.14,17/04/2020
CARING HANDS DOMICILIARY CARE LTD&&ISHC3229,Home Care / Domiciliary,655.44,17/04/2020
CARING HANDS DOMICILIARY CARE LTD&&ISHC3229,Home Care / Domiciliary,1262.54,17/04/2020
CARING HANDS DOMICILIARY CARE LTD&&ISHC3229,Home Care / Domiciliary,748.94,17/04/2020
CARING HANDS DOMICILIARY CARE LTD&&ISHC3229,Home Care / Domiciliary,100476.88,17/04/2020
CARING HANDS DOMICILIARY CARE LTD&&ISHC3229,Home Care / Domiciliary,1304.51,17/04/2020
CARING HANDS DOMICILIARY CARE LTD&&ISHC3229,Home Care / Domiciliary,2886.35,17/04/2020
CARING HANDS LEICESTER LTD&&ISHC3209,Payments in Advance,74070,17/04/2020
CARING HANDS LEICESTER LTD&&ISHC3209,Home Care / Domiciliary,933.24,17/04/2020
CARING HANDS LEICESTER LTD&&ISHC3209,Home Care / Domiciliary,956.88,17/04/2020
CARING HANDS LEICESTER LTD&&ISHC3209,Home Care / Domiciliary,989.45,17/04/2020
CARING HANDS LEICESTER LTD&&ISHC3209,Home Care / Domiciliary,3184.49,17/04/2020
CARING HANDS LEICESTER LTD&&ISHC3209,Home Care / Domiciliary,21497.48,17/04/2020
Carlton Construction Services,Suspense,7858.8,07/04/2020
Carlton Construction Services,Suspense,5379.9,07/04/2020
REDACTED PERSONAL DATA,Other Expenditure,960,03/04/2020
REDACTED PERSONAL DATA,Consultants & Specialists,2940,03/04/2020
REDACTED PERSONAL DATA,Consultants & Specialists,3264,17/04/2020
REDACTED PERSONAL DATA,Consultants & Specialists,2940,17/04/2020
REDACTED PERSONAL DATA,Consultants & Specialists,2940,28/04/2020
REDACTED PERSONAL DATA,Consultants & Specialists,2940,28/04/2020
REDACTED PERSONAL DATA,Consultants & Specialists,3516,28/04/2020
Castle Donington College Academy,Electricity,4473,24/04/2020
Castle Donington College Academy,Payment to Ext SEN Providers,3932,24/04/2020
Castle Donington Museum Trust,Client/Volunteers,800,24/04/2020
Castle Donnington Community library,Voluntary Associations,677,09/04/2020
CASTLE FROMA T/A HELEN LEY&&SSARO2362,Residential,1207.14,06/04/2020
Castle Rock High Academy,Payment to Ext SEN Providers,9523,24/04/2020
CATON HOUSE NURSING & RESIDENTIAL HOME&&SARO9040,Residential,-774.6,06/04/2020
CATON HOUSE NURSING & RESIDENTIAL HOME&&SARO9040,Residential,1394.28,06/04/2020
CEDAR HOUSE CARE HOME LTD&&SSAROE40413,Residential,1513.58,06/04/2020
CEDAR HOUSE CARE HOME LTD&&SSAROE40413,Residential,6229.28,06/04/2020
CEDAR HOUSE CARE HOME LTD&&SSAROE40413,Residential,3260,06/04/2020
CEDAR HOUSE CARE HOME LTD&&SSAROE40413,Residential,3260,06/04/2020
CEDAR HOUSE CARE HOME LTD&&SSAROE40413,Residential,3260,06/04/2020
CEDAR HOUSE CARE HOME LTD&&SSAROE40413,Residential,6520,06/04/2020
CEDAR HOUSE CARE HOME LTD&&SSAROE40413,Residential,2950.72,06/04/2020
Cedars Academy Lionheart Academies Trust,Payment to Ext SEN Providers,4018,24/04/2020
Cedars Academy Lionheart Academies Trust,Payment to Ext SEN Providers,-3477,24/04/2020
Central Coaches Ltd,Home to Sch Trans - Buses,17538.14,09/04/2020
Central England Cooperative Society Ltd,Personal Accounts - Other,33455.7,24/04/2020
Centrebus Holdings Ltd T/A Hinckley Bus,Minimum Cost Contracts,29566.6,09/04/2020
Centrebus Holdings Ltd T/A Hinckley Bus,Minimum Cost Contracts,3481.79,09/04/2020
Centrebus Ltd,Minimum Cost Contracts,39625.45,20/04/2020
Centrebus Ltd,Minimum Cost Contracts,63479.84,20/04/2020
Charitable Giving,Personal Accounts - Other,1228.15,02/04/2020
Charles Vig,Other Transfer Payments,1168.7,23/04/2020
Charnwood Borough Council,Other Transfer Payments,1500,21/04/2020
CHARNWOOD PARK&&SAROE40270,Residential,5847.98,06/04/2020
CHARNWOOD PARK&&SAROE40270,Residential,2770.1,06/04/2020
Chartwell Trust Care,Private Contractors,19134.44,03/04/2020
CHARTWELL TRUST CARE PLC&&SSARO2345,Residential,21337.77,06/04/2020
CHARTWELL TRUST CARE PLC&&SSARO2345,Residential,10107.35,06/04/2020
CHARTWELL TRUST CARE PLC&&SSARO2345,Residential,9055.83,06/04/2020
CHARTWELL TRUST CARE PLC&&SSARO2345,Residential,4289.61,06/04/2020
CHERRE RESIDENTIAL CARE LTD T/A AYEESHA RAJ&&SSAROE40381,Residential,-1314,06/04/2020
CHERRE RESIDENTIAL CARE LTD T/A AYEESHA RAJ&&SSAROE40381,Residential,11974.85,06/04/2020
CHERRE RESIDENTIAL CARE LTD T/A AYEESHA RAJ&&SSAROE40381,Residential,5672.31,06/04/2020
CHERRYTREE CARE LTD&&SSAROE40314,Residential,4779.85,06/04/2020
CHERRYTREE CARE LTD&&SSAROE40314,Residential,2264.15,06/04/2020
CHESTNUTS ARNESBY LTD&&SSAROE40279,Residential,1853.75,06/04/2020
CHESTNUTS ARNESBY LTD&&SSAROE40279,Residential,878.09,06/04/2020
CHESTNUTS ARNESBY LTD&&SSAROE40279,Residential,1164.79,06/04/2020
CHESTNUTS ARNESBY LTD&&SSAROE40279,Residential,28043.33,06/04/2020
CHESTNUTS ARNESBY LTD&&SSAROE40279,Residential,2271.15,06/04/2020
CHESTNUTS ARNESBY LTD&&SSAROE40279,Residential,-650.25,06/04/2020
CHESTNUTS ARNESBY LTD&&SSAROE40279,Residential,13283.71,06/04/2020
Child Care Bureau Ltd,Other Agency & Cont Services,3321.43,30/04/2020
Child Care Bureau Ltd,Other Agency & Cont Services,3278.57,30/04/2020
Child Psychology Service,Other Agency & Cont Services,1743.25,30/04/2020
Childrens Therapy Solutions Ltd,Other Agency & Cont Services,-966.8,30/04/2020
Childrens Therapy Solutions Ltd,Other Agency & Cont Services,2479.5,30/04/2020
CHOICES FOR LIFE (UK)LTD&&CLCD3323,Payments in Advance,116560,17/04/2020
CHOICES FOR LIFE (UK)LTD&&CLCD3323,Day / CLC Services,-2586.96,17/04/2020
CHOICES FOR LIFE (UK)LTD&&CLCD3323,Day / CLC Services,69843.89,17/04/2020
CHOICES FOR LIFE (UK)LTD&&CLCD3323,Managed/Traditional Services,69843.89,17/04/2020
Christ Church & St Peters CE Primary School Academy,Payment to Ext SEN Providers,6842,24/04/2020
Christ Church & St Peters CE Primary School Academy,Payment to Ext SEN Providers,7516,24/04/2020
Christ Church & St Peters CE Primary School Academy,Payment to Ext SEN Providers,2003,24/04/2020
REDACTED PERSONAL DATA,Other Expenditure,1749.5,21/04/2020
CHURCH FARM NURSING HOME LTD&&SSAROE61089,Residential,2171.43,06/04/2020
CHURCH FARM NURSING HOME LTD&&SSAROE61089,Residential,1600,06/04/2020
CHURCH FARM NURSING HOME LTD&&SSAROE61089,Residential,1028.57,06/04/2020
Church Hill CE Junior Academy,Payment to Ext SEN Providers,1934,24/04/2020
Church Hill Infant School Academy,Payment to Ext SEN Providers,768,24/04/2020
Church Langton Primary School (Academy),Payment to Ext SEN Providers,3075,24/04/2020
CITY & COUNTY CARE SERVICES LTD&&ISHCHC486,Home Care / Domiciliary,3476.1,17/04/2020
REDACTED PERSONAL DATA,Recharge of Pooled Transp Cost,2006.9,09/04/2020
REDACTED PERSONAL DATA,Other Transfer Payments,500,24/04/2020
REDACTED PERSONAL DATA,Other Transfer Payments,500,24/04/2020
REDACTED PERSONAL DATA,Advertising,840,17/04/2020
REDACTED PERSONAL DATA,Sales-Trading,633.74,21/04/2020
CLAREGRANGE LTD&&SSAROE47217,Residential,1158,06/04/2020
CLAREGRANGE LTD&&SSAROE47217,Private Contractors,3827.15,06/04/2020
CLAREGRANGE LTD&&SSAROE47217,Residential,3827.15,06/04/2020
CLAREGRANGE LTD&&SSAROE47217,Residential,1158,06/04/2020
CLAREGRANGE LTD&&SSAROE47217,Residential,579,06/04/2020
CLAREGRANGE LTD&&SSAROE47217,Private Contractors,1812.85,06/04/2020
CLAREGRANGE LTD&&SSAROE47217,Residential,1812.85,06/04/2020
CLAREGRANGE TRADING LTD T/A WALTHAM HALL&&SARO5107,Residential,27185.11,06/04/2020
CLAREGRANGE TRADING LTD T/A WALTHAM HALL&&SARO5107,Residential,579,06/04/2020
CLAREGRANGE TRADING LTD T/A WALTHAM HALL&&SARO5107,Residential,12877.21,06/04/2020
CLARENDON MEWS CARE LTD&&SSARO3356,Residential,18457.22,06/04/2020
CLARENDON MEWS CARE LTD&&SSARO3356,Residential,-1920,06/04/2020
CLARENDON MEWS CARE LTD&&SSARO3356,Residential,-1920,06/04/2020
CLARENDON MEWS CARE LTD&&SSARO3356,Residential,-1920,06/04/2020
CLARENDON MEWS CARE LTD&&SSARO3356,Residential,-1440,06/04/2020
CLARENDON MEWS CARE LTD&&SSARO3356,Residential,8742.92,06/04/2020
Clarity Expert Services,Advertising,528.96,24/04/2020
Claybrooke Primary School Academy,Payment to Ext SEN Providers,1803,24/04/2020
CLEARVISION (GB) T/A CHATAWAY RESIDENTIAL HOME LTD&&SSAROE40294,Residential,12629.56,06/04/2020
CLEARVISION (GB) T/A CHATAWAY RESIDENTIAL HOME LTD&&SSAROE40294,Residential,5982.44,06/04/2020
REDACTED PERSONAL DATA,Advertising,864,28/04/2020
Clockwise Credit Union  1,Personal Accounts - Other,4774,02/04/2020
Clockwise Credit Union  1,Personal Accounts - Other,545,30/04/2020
Clovelly House School,Payment to Ext SEN Providers,3240,03/04/2020
Clovelly House School,Payment to Ext SEN Providers,4120,03/04/2020
Clovelly House School,Payment to Ext SEN Providers,3240,03/04/2020
Clovelly House School,Payment to Ext SEN Providers,4640,03/04/2020
Cmetrix Ltd,Consultants & Specialists,9840,15/04/2020
Coalville Cabs Ltd,Recharge of Pooled Transp Cost,2505.6,15/04/2020
Coalville King Edward VII Academy,Payment to Ext SEN Providers,1934,24/04/2020
Cobden Primary School Academy,Payment to Ext SEN Providers,6542,24/04/2020
REDACTED PERSONAL DATA,Other Support,839.49,02/04/2020
REDACTED PERSONAL DATA,Other Support,738.97,02/04/2020
REDACTED PERSONAL DATA,Other Support,1218,09/04/2020
REDACTED PERSONAL DATA,Other Support,972.66,24/04/2020
REDACTED PERSONAL DATA,Other Support,1002,24/04/2020
REDACTED PERSONAL DATA,Other Support,930,17/04/2020
REDACTED PERSONAL DATA,Other Support,930,17/04/2020
REDACTED PERSONAL DATA,Other Support,930,17/04/2020
REDACTED PERSONAL DATA,Other Support,654.49,24/04/2020
Commbus Project,Minimum Cost Contracts,3203.75,17/04/2020
Community Action Partnership (Leicestershire),Minimum Cost Contracts,22506.25,17/04/2020
COMMUNITY CARELINE NORTHWEST LEICESTERSHIRE LTD&&ISHCHC1514,Payments in Advance,21910,17/04/2020
COMMUNITY CARELINE NORTHWEST LEICESTERSHIRE LTD&&ISHCHC1514,Home Care / Domiciliary,812.63,17/04/2020
COMMUNITY CARELINE NORTHWEST LEICESTERSHIRE LTD&&ISHCHC1514,Home Care / Domiciliary,9049.46,17/04/2020
Community Inclusive Trust,Other Local Authorities,2932.25,15/04/2020
COMMUNITY LIVING PROJECT&&SSAROE56011,Residential,-18516.92,06/04/2020
COMMUNITY LIVING PROJECT&&SSAROE56011,Residential,-18516.92,06/04/2020
COMMUNITY LIVING PROJECT&&SSAROE56011,Residential,-18516.92,06/04/2020
COMMUNITY LIVING PROJECT&&SSAROE56011,Residential,-9258.46,06/04/2020
COMMUNITY LIVING PROJECT&&SSAROE56011,Residential,-18516.92,06/04/2020
COMMUNITY LIVING PROJECT&&SSAROE56011,Residential,102185.16,06/04/2020
COMMUNITY LIVING PROJECT&&SSAROE56011,Residential,-18516.92,06/04/2020
COMMUNITY LIVING PROJECT&&SSAROE56011,Residential,-18516.92,06/04/2020
COMMUNITY LIVING PROJECT&&SSAROE56011,Residential,-18516.92,06/04/2020
COMMUNITY LIVING PROJECT&&SSAROE56011,Residential,16553.85,06/04/2020
COMMUNITY LIVING PROJECT&&SSAROE56011,Residential,-18516.92,06/04/2020
COMMUNITY LIVING PROJECT&&SSAROE56011,Residential,-18516.92,06/04/2020
COMMUNITY LIVING PROJECT&&SSAROE56011,Residential,18579.12,06/04/2020
COMMUNITY LIVING PROJECT&&SSAROE56011,Residential,-18516.92,06/04/2020
COMMUNITY LIVING PROJECT&&SSAROE56011,Residential,111474.72,06/04/2020
COMMUNITY LIVING PROJECT&&SSAROE56011,Residential,-18516.92,06/04/2020
COMMUNITY LIVING PROJECT&&SSAROE56011,Residential,-18516.92,06/04/2020
COMMUNITY LIVING PROJECT&&SSAROE56011,Residential,7841.27,06/04/2020
Compass Fostering Central Ltd,Other Agency & Cont Services,3042.48,30/04/2020
Compass Fostering Central Ltd,Other Agency & Cont Services,3042.48,30/04/2020
Compass Fostering Central Ltd,Other Agency & Cont Services,3042.48,30/04/2020
Compass Fostering Central Ltd,Other Agency & Cont Services,2915.71,30/04/2020
Compass Fostering Central Ltd,Other Agency & Cont Services,3042.47,30/04/2020
Compass Fostering Central Ltd,Other Agency & Cont Services,3042.52,30/04/2020
Compass Fostering Central Ltd,Other Agency & Cont Services,3042.48,30/04/2020
Compass Fostering Central Ltd,Other Agency & Cont Services,3060,30/04/2020
Compass Fostering Central Ltd,Other Agency & Cont Services,3042.48,30/04/2020
Compass Fostering Central Ltd,Other Agency & Cont Services,3042.48,30/04/2020
Compass Fostering Central Ltd,Other Agency & Cont Services,3776.87,30/04/2020
Compass Fostering Central Ltd,Other Agency & Cont Services,3060,30/04/2020
Compass Fostering Central Ltd,Other Agency & Cont Services,2937.6,30/04/2020
Compass Fostering Central Ltd,Other Agency & Cont Services,3042.48,30/04/2020
Compass Fostering Central Ltd,Other Agency & Cont Services,3042.48,30/04/2020
Compass Fostering Central Ltd,Other Agency & Cont Services,5100,30/04/2020
Compass Fostering Central Ltd,Other Agency & Cont Services,3060,30/04/2020
Compass Fostering Central Ltd,Other Agency & Cont Services,4406.4,30/04/2020
Compass Fostering Central Ltd,Other Agency & Cont Services,3042.52,30/04/2020
Compass Fostering Central Ltd,Other Agency & Cont Services,3169.25,30/04/2020
Compass Fostering Central Ltd,Other Agency & Cont Services,2915.71,30/04/2020
Compass Fostering Central Ltd,Other Agency & Cont Services,3169.25,30/04/2020
Compass Fostering Central Ltd,Other Agency & Cont Services,-2040,30/04/2020
Compass Fostering Central Ltd,Other Agency & Cont Services,-6127.2,30/04/2020
COMPASSION & CARE LTD(&&ISHC9109),Payments in Advance,8380,17/04/2020
COMPASSION & CARE LTD(&&ISHC9109),Home Care / Domiciliary,3578.88,17/04/2020
Complete Background Screening Ltd,IT Equipment,1927.8,28/04/2020
Conatus Child Psychology,Other Agency & Cont Services,1250,02/04/2020
Conatus Child Psychology,Other Agency & Cont Services,1250,09/04/2020
CONDOVER COLLEGE LTD&&SSAROE1331,Residential,14123.86,06/04/2020
CONDOVER COLLEGE LTD&&SSAROE1331,Residential,6690.26,06/04/2020
CONIFER LODGE&&SSAROE40296,Residential,579,06/04/2020
CONIFER LODGE&&SSAROE40296,Residential,-650,06/04/2020
CONIFER LODGE&&SSAROE40296,Residential,6739.56,06/04/2020
CONIFER LODGE&&SSAROE40296,Residential,2966,06/04/2020
CONIFER LODGE&&SSAROE40296,Residential,3771.44,06/04/2020
REDACTED PERSONAL DATA,Sales-Trading,706.1,21/04/2020
Cornerstone Telecommunications Infrastructure Limited,Reserve Debtors,1903,03/04/2020
Cosby Community Library,Voluntary Associations,660,09/04/2020
Countesthorpe Leysland Community College,Receipts in Advance,151078.27,09/04/2020
Countesthorpe Leysland Community College,Payment to Ext SEN Providers,3206,24/04/2020
Countesthorpe Parish Council,Voluntary Associations,561,09/04/2020
Cove Care Residential Ltd,Private Contractors,21700,03/04/2020
CRAEGMOOR FACILITIES CO LTD RE CHARNWOOD LODGE&&SSAROE346,Residential,4842.5,06/04/2020
CRAEGMOOR FACILITIES CO LTD RE CHARNWOOD LODGE&&SSAROE346,Residential,2293.82,06/04/2020
CRAEGMOOR FACILITIES CO LTD RE HALIFAX DRIVE&&SSAROE29669A,Residential,4904.73,06/04/2020
CRAEGMOOR FACILITIES CO LTD RE HALIFAX DRIVE&&SSAROE29669A,Residential,2323.27,06/04/2020
CRAEGMOOR FACILITIES CO LTD RE MAR LODGE&&SSAROE66405,Residential,-3197.32,06/04/2020
CRAEGMOOR FACILITIES CO LTD RE MAR LODGE&&SSAROE66405,Residential,-3197.32,06/04/2020
CRAEGMOOR FACILITIES CO LTD RE MAR LODGE&&SSAROE66405,Residential,-3197.32,06/04/2020
CRAEGMOOR FACILITIES CO LTD RE MAR LODGE&&SSAROE66405,Residential,-3197.32,06/04/2020
CRAEGMOOR FACILITIES CO LTD RE MAR LODGE&&SSAROE66405,Residential,13813,06/04/2020
CRAEGMOOR FACILITIES CO LTD RE MAR LODGE&&SSAROE66405,Residential,-3197.32,06/04/2020
CRAEGMOOR FACILITIES CO LTD RE MAR LODGE&&SSAROE66405,Residential,-3197.32,06/04/2020
CRAEGMOOR FACILITIES CO LTD RE MAR LODGE&&SSAROE66405,Residential,-3197.32,06/04/2020
CRAEGMOOR FACILITIES CO LTD RE MAR LODGE&&SSAROE66405,Residential,1848.89,06/04/2020
CRAEGMOOR FACILITIES CO LTD RE MAR LODGE&&SSAROE66405,Residential,9866.45,06/04/2020
CRAEGMOOR FACILITIES CO LTD RE MAR LODGE&&SSAROE66405,Residential,-2354.32,06/04/2020
CRAEGMOOR FACILITIES CO LTD RE MAR LODGE&&SSAROE66405,Residential,-2292,06/04/2020
CRAEGMOOR FACILITIES CO LTD RE MAR LODGE&&SSAROE66405,Residential,2908,06/04/2020
CRAEGMOOR FACILITIES CO LTD RE MAR LODGE&&SSAROE66405,Residential,-3197.32,06/04/2020
CRAEGMOOR FACILITIES CO LTD RE MAR LODGE&&SSAROE66405,Residential,17448,06/04/2020
CRAEGMOOR FACILITIES CO LTD RE MAR LODGE&&SSAROE66405,Residential,-3197.32,06/04/2020
CRAEGMOOR FACILITIES CO LTD RE MAR LODGE&&SSAROE66405,Residential,-3197.32,06/04/2020
CRAEGMOOR FACILITIES CO LTD RE MAR LODGE&&SSAROE66405,Residential,875.79,06/04/2020
CRAEGMOOR FACILITIES CO LTD RE MAR LODGE&&SSAROE66405,Residential,4673.55,06/04/2020
CRAEGMOOR FACILITIES CO LTD RE MEADOWS&&SSAROE40227,Private Contractors,13108.02,06/04/2020
CRAEGMOOR FACILITIES CO LTD RE MEADOWS&&SSAROE40227,Residential,13108.02,06/04/2020
CRAEGMOOR FACILITIES CO LTD RE MEADOWS&&SSAROE40227,Residential,13362.42,06/04/2020
CRAEGMOOR FACILITIES CO LTD RE MEADOWS&&SSAROE40227,Private Contractors,6209.02,06/04/2020
CRAEGMOOR FACILITIES CO LTD RE MEADOWS&&SSAROE40227,Residential,6209.02,06/04/2020
CRAEGMOOR FACILITIES CO LTD RE MEADOWS&&SSAROE40227,Residential,6329.58,06/04/2020
CRAEGMOOR FACILITIES COMPANY LTD&&SSAROE8,Residential,4231.58,06/04/2020
CRAEGMOOR FACILITIES COMPANY LTD&&SSAROE8,Residential,-594,06/04/2020
CRAEGMOOR FACILITIES COMPANY LTD&&SSAROE8,Residential,2004.42,06/04/2020
CREATIVE WORKSHOPS&&CLCD4608,Day / CLC Services,630,17/04/2020
Credo Care Ltd,Other Agency & Cont Services,6737.15,30/04/2020
Creswell HeritageTrust,Other Transfer Payments,1500,17/04/2020
Creswell HeritageTrust,Other Transfer Payments,500,17/04/2020
Croxton Kerrial CE Primary School Academy,Payment to Ext SEN Providers,2097,24/04/2020
CSS LTD T/A GRETTON HOMES&&SARO3372,Residential,4874.5,06/04/2020
CSS LTD T/A GRETTON HOMES&&SARO3372,Residential,2308.98,06/04/2020
CULPEPER CARE LTD&&SSARO8650,Residential,2035.72,06/04/2020
CULPEPER CARE LTD&&SSARO8650,Residential,964.28,06/04/2020
CYGNET (DH) LTD T/A TOLLER ROAD&&SARO5736,Residential,12079.12,06/04/2020
CYGNET (DH) LTD T/A TOLLER ROAD&&SARO5736,Residential,5721.68,06/04/2020
CYGNET HEALTH T/A 15 THE SYCAMORES&&SARO8633,Residential,10386.54,06/04/2020
CYGNET HEALTH T/A 15 THE SYCAMORES&&SARO8633,Residential,4919.94,06/04/2020
REDACTED PERSONAL DATA,Residential,1218,03/04/2020
Darrens Taxis,Recharge of Pooled Transp Cost,1180,27/04/2020
Darrens Taxis,S.E.N. Taxi Hire,1180,27/04/2020
REDACTED PERSONAL DATA,Managed/Traditional Services,628.43,15/04/2020
DAVID LEWIS CENTRE&&SSAROE72,Residential,1479.7,06/04/2020
DAVID LEWIS CENTRE&&SSAROE72,Residential,702.7,06/04/2020
David Ross Education Trust Re Charnwood College,Payment to Ext SEN Providers,2802,24/04/2020
REDACTED PERSONAL DATA,S.E.N. Taxi Hire,1650,27/04/2020
REDACTED PERSONAL DATA,Residential,-2316,15/04/2020
REDACTED PERSONAL DATA,Residential,2316,15/04/2020
REDACTED PERSONAL DATA,Residential,2316,21/04/2020
REDACTED PERSONAL DATA,Private Contractors,8822.35,02/04/2020
Daydawn Therapeutic Services,Other Agency & Cont Services,3655,08/04/2020
DEAFINITELY INDEPENDENT&&SSAROE700,Residential,2613.86,06/04/2020
DEAFINITELY INDEPENDENT&&SSAROE700,Residential,1238.14,06/04/2020
DEAFINITELY INDEPENDENT&&SSAROE700,Residential,2847.99,06/04/2020
DEAFINITELY INDEPENDENT&&SSAROE700,Residential,1349.05,06/04/2020
Decameron Software Ltd,IT Equipment,522.6,23/04/2020
De Lisle College (St Thomas Aquinas Catholic Multi Academy Trust),Payment to Ext SEN Providers,4325,24/04/2020
Department For Work & Pensions,Provisions Expenditure,665,30/04/2020
Department of Work and Pensions CMS Employers,Personal Accounts - Other,2319.58,16/04/2020
DERWEN COLLEGE&&SSAROE205,Residential,2680.52,06/04/2020
DERWEN COLLEGE&&SSAROE205,Residential,1269.72,06/04/2020
Desford Library Community Hub (DLCH),Voluntary Associations,1206,09/04/2020
REDACTED PERSONAL DATA,Recharge of Pooled Transp Cost,1305,16/04/2020
D&H COMMUNITY SUPPORT LTD&&CLCD3309,Payments in Advance,212060,17/04/2020
D&H COMMUNITY SUPPORT LTD&&CLCD3309,Day / CLC Services,664.2,17/04/2020
D&H COMMUNITY SUPPORT LTD&&CLCD3309,Day / CLC Services,793.8,17/04/2020
D&H COMMUNITY SUPPORT LTD&&CLCD3309,Day / CLC Services,639.1,17/04/2020
D&H COMMUNITY SUPPORT LTD&&CLCD3309,Day / CLC Services,2642.3,17/04/2020
D&H COMMUNITY SUPPORT LTD&&CLCD3309,Day / CLC Services,1134,17/04/2020
D&H COMMUNITY SUPPORT LTD&&CLCD3309,Day / CLC Services,1150.2,17/04/2020
D&H COMMUNITY SUPPORT LTD&&CLCD3309,Day / CLC Services,93639.46,17/04/2020
D&H COMMUNITY SUPPORT LTD&&CLCD3309,Managed/Traditional Services,93639.46,17/04/2020
D&H COMMUNITY SUPPORT LTD&&CLCD3309,Day / CLC Services,1162,17/04/2020
DIGINEW LTD&&SSARO3320,Residential,1519.15,06/04/2020
DIGINEW LTD&&SSARO3320,Residential,719.61,06/04/2020
Diners Club International,Suspense,1830.42,09/04/2020
Direct Cabs,S.E.N. Taxi Hire,1628,30/04/2020
Direct Cabs,S.E.N. Taxi Hire,1540,30/04/2020
Direct Cabs,S.E.N. Taxi Hire,2200,30/04/2020
Direct Cabs,Home to Sch Trans - Buses,738,30/04/2020
Direct Cabs,Recharge of Pooled Transp Cost,1840,30/04/2020
DIRECT CARE WORKS LTD&&CLCD3327,Payments in Advance,18330,17/04/2020
DIRECT CARE WORKS LTD&&CLCD3327,Day / CLC Services,7757.52,17/04/2020
Direct Taxis,S.E.N. Taxi Hire,1980,30/04/2020
Direct Taxis,S.E.N. Taxi Hire,1230,30/04/2020
Direct Taxis,S.E.N. Taxi Hire,1760,30/04/2020
Direct Taxis,S.E.N. Taxi Hire,3432,30/04/2020
Direct Taxis,Recharge of Pooled Transp Cost,1276,29/04/2020
Diseworth Heritage Centre,Other Transfer Payments,500,21/04/2020
Diversity Social Care Ltd,Private Contractors,2310,16/04/2020
Diversity Social Care Ltd,Private Contractors,1026,15/04/2020
DIWALI LTD&&SSAROE40425,Residential,3067.14,06/04/2020
DIWALI LTD&&SSAROE40425,Residential,1452.86,06/04/2020
Dixons Coach & Travel Services,Home to Sch Trans - Buses,3067.02,28/04/2020
REDACTED PERSONAL DATA,S.E.N. Taxi Hire,1318.68,16/04/2020
REDACTED PERSONAL DATA,Residential,29795.14,06/04/2020
REDACTED PERSONAL DATA,Residential,14113.5,06/04/2020
Dodds Solicitors LLP,Advertising,840,15/04/2020
Dorothy Goodman School Academy,Payment to Ext SEN Providers,3333,24/04/2020
Dorothy Goodman School Academy,Payment to Ext SEN Providers,39236,24/04/2020
Dorothy Goodman School Academy,Payment to Ext SEN Providers,39236,01/04/2020
Dorothy Goodman School Academy,Payment to Ext SEN Providers,167756,24/04/2020
DRE HEALTHCARE LTD&&SSAROE417,Private Contractors,-6408,06/04/2020
DRE HEALTHCARE LTD&&SSAROE417,Residential,-6408,06/04/2020
DRE HEALTHCARE LTD&&SSAROE417,Private Contractors,-6408,06/04/2020
DRE HEALTHCARE LTD&&SSAROE417,Residential,-6408,06/04/2020
DRE HEALTHCARE LTD&&SSAROE417,Residential,12816,06/04/2020
DRE HEALTHCARE LTD&&SSAROE417,Private Contractors,-6408,06/04/2020
DRE HEALTHCARE LTD&&SSAROE417,Residential,-6408,06/04/2020
DRE HEALTHCARE LTD&&SSAROE417,Private Contractors,-3204,06/04/2020
DRE HEALTHCARE LTD&&SSAROE417,Residential,-3204,06/04/2020
DRE HEALTHCARE LTD&&SSAROE417,Private Contractors,-6408,06/04/2020
DRE HEALTHCARE LTD&&SSAROE417,Residential,-6408,06/04/2020
DRE HEALTHCARE LTD&&SSAROE417,Residential,35244,06/04/2020
DRE HEALTHCARE LTD&&SSAROE417,Private Contractors,-6408,06/04/2020
DRE HEALTHCARE LTD&&SSAROE417,Residential,-6408,06/04/2020
DRE HEALTHCARE LTD&&SSAROE417,Residential,-817.34,06/04/2020
DRE HEALTHCARE LTD&&SSAROE417,Private Contractors,-6408,06/04/2020
DRE HEALTHCARE LTD&&SSAROE417,Residential,-6408,06/04/2020
DRE HEALTHCARE LTD&&SSAROE417,Private Contractors,-6408,06/04/2020
DRE HEALTHCARE LTD&&SSAROE417,Residential,-6408,06/04/2020
DRE HEALTHCARE LTD&&SSAROE417,Residential,11342.66,06/04/2020
DRE HEALTHCARE LTD&&SSAROE417,Private Contractors,-6408,06/04/2020
DRE HEALTHCARE LTD&&SSAROE417,Residential,-6408,06/04/2020
DRE HEALTHCARE LTD&&SSAROE417,Private Contractors,-6408,06/04/2020
DRE HEALTHCARE LTD&&SSAROE417,Residential,-6408,06/04/2020
DRE HEALTHCARE LTD&&SSAROE417,Residential,6408,06/04/2020
DRE HEALTHCARE LTD&&SSAROE417,Private Contractors,-6408,06/04/2020
DRE HEALTHCARE LTD&&SSAROE417,Residential,-6408,06/04/2020
DRE HEALTHCARE LTD&&SSAROE417,Residential,6408,06/04/2020
DRE HEALTHCARE LTD&&SSAROE417,Private Contractors,-6408,06/04/2020
DRE HEALTHCARE LTD&&SSAROE417,Residential,-6408,06/04/2020
DRE HEALTHCARE LTD&&SSAROE417,Residential,6408,06/04/2020
DRE HEALTHCARE LTD&&SSAROE417,Private Contractors,-6408,06/04/2020
DRE HEALTHCARE LTD&&SSAROE417,Residential,-6408,06/04/2020
DRE HEALTHCARE LTD&&SSAROE417,Residential,12816,06/04/2020
DRE HEALTHCARE LTD&&SSAROE417,Residential,5372.86,06/04/2020
REDACTED PERSONAL DATA,S.E.N. Taxi Hire,1720.62,09/04/2020
REDACTED PERSONAL DATA,S.E.N. Taxi Hire,566.28,17/04/2020
Drive4it,Home to Sch Trans - Buses,1426.8,23/04/2020
Driven By Riide Ltd T/A  ADT Taxis,S.E.N. Taxi Hire,1425,17/04/2020
Driven By Riide Ltd T/A  ADT Taxis,S.E.N. Taxi Hire,2498.4,16/04/2020
Driven By Riide Ltd T/A  ADT Taxis,S.E.N. Taxi Hire,837.6,16/04/2020
Driven By Riide Ltd T/A  ADT Taxis,S.E.N. Taxi Hire,1120.5,14/04/2020
Driven By Riide Ltd T/A  ADT Taxis,S.E.N. Taxi Hire,683.64,16/04/2020
Driven By Riide Ltd T/A  ADT Taxis,S.E.N. Taxi Hire,1943.64,16/04/2020
Driven By Riide Ltd T/A  ADT Taxis,S.E.N. Taxi Hire,1025.64,16/04/2020
Driven By Riide Ltd T/A  ADT Taxis,S.E.N. Taxi Hire,1666.8,16/04/2020
Driven By Riide Ltd T/A  ADT Taxis,S.E.N. Taxi Hire,1269,27/04/2020
Driven By Riide Ltd T/A  ADT Taxis,Personal Accounts - Govt Depts,1124.27,14/04/2020
Driven By Riide Ltd T/A  ADT Taxis,Recharge of Pooled Transp Cost,1124.27,14/04/2020
Driven By Riide Ltd T/A  ADT Taxis,Recharge of Pooled Transp Cost,979.2,27/04/2020
Driven By Riide Ltd T/A  ADT Taxis,Recharge of Pooled Transp Cost,950.4,16/04/2020
Driven By Riide Ltd T/A  ADT Taxis,Home to Sch Trans - Buses,1092,14/04/2020
Driven By Riide Ltd T/A  ADT Taxis,Recharge of Pooled Transp Cost,1276.8,23/04/2020
Driven By Riide Ltd T/A  ADT Taxis,Home to Sch Trans - Buses,504,17/04/2020
Driven By Riide Ltd T/A  ADT Taxis,Recharge of Pooled Transp Cost,1085,17/04/2020
Driven By Riide Ltd T/A  ADT Taxis,S.E.N. Taxi Hire,1085,17/04/2020
Driven By Riide Ltd T/A  ADT Taxis,S.E.N. Taxi Hire,899.7,17/04/2020
Driven By Riide Ltd T/A  ADT Taxis,Personal Accounts - Govt Depts,1104,17/04/2020
Driven By Riide Ltd T/A  ADT Taxis,Recharge of Pooled Transp Cost,1104,17/04/2020
Driven By Riide Ltd T/A  ADT Taxis,Personal Accounts - Govt Depts,818.3,17/04/2020
Driven By Riide Ltd T/A  ADT Taxis,Recharge of Pooled Transp Cost,818.3,17/04/2020
Driven By Riide Ltd T/A  ADT Taxis,Recharge of Pooled Transp Cost,881.5,17/04/2020
Driven By Riide Ltd T/A  ADT Taxis,Recharge of Pooled Transp Cost,734.4,16/04/2020
Driven By Riide Ltd T/A  ADT Taxis,Recharge of Pooled Transp Cost,691.2,16/04/2020
Driven By Riide Ltd T/A  ADT Taxis,Recharge of Pooled Transp Cost,1620,16/04/2020
Driven By Riide Ltd T/A  ADT Taxis,Recharge of Pooled Transp Cost,984,16/04/2020
Driven By Riide Ltd T/A  ADT Taxis,Home to Sch Trans - Buses,743.3,17/04/2020
Driven By Riide Ltd T/A  ADT Taxis,Home to Sch Trans - Buses,1260,17/04/2020
Driven By Riide Ltd T/A  ADT Taxis,S.E.N. Taxi Hire,1800,17/04/2020
Driven By Riide Ltd T/A  ADT Taxis,Home to Sch Trans - Buses,648,17/04/2020
Driven By Riide Ltd T/A  ADT Taxis,Personal Accounts - Govt Depts,1299,16/04/2020
Driven By Riide Ltd T/A  ADT Taxis,Recharge of Pooled Transp Cost,1299,16/04/2020
Driven By Riide Ltd T/A  ADT Taxis,S.E.N. Taxi Hire,1950,17/04/2020
Driven By Riide Ltd T/A  ADT Taxis,S.E.N. Taxi Hire,2232,17/04/2020
Driven By Riide Ltd T/A  ADT Taxis,S.E.N. Taxi Hire,1943.64,17/04/2020
Driven By Riide Ltd T/A  ADT Taxis,S.E.N. Taxi Hire,2498.4,17/04/2020
Driven By Riide Ltd T/A  ADT Taxis,S.E.N. Taxi Hire,879.48,17/04/2020
Driven By Riide Ltd T/A  ADT Taxis,S.E.N. Taxi Hire,842.26,17/04/2020
Driven By Riide Ltd T/A  ADT Taxis,S.E.N. Taxi Hire,1045.2,17/04/2020
Driven By Riide Ltd T/A  ADT Taxis,S.E.N. Taxi Hire,1163.9,17/04/2020
Driven By Riide Ltd T/A  ADT Taxis,S.E.N. Taxi Hire,2015.82,17/04/2020
Driven By Riide Ltd T/A  ADT Taxis,S.E.N. Taxi Hire,1199.86,17/04/2020
Driven By Riide Ltd T/A  ADT Taxis,S.E.N. Taxi Hire,1536.6,17/04/2020
Driven By Riide Ltd T/A  ADT Taxis,S.E.N. Taxi Hire,888.89,17/04/2020
Driven By Riide Ltd T/A  ADT Taxis,S.E.N. Taxi Hire,1317.6,17/04/2020
Driven By Riide Ltd T/A  ADT Taxis,S.E.N. Taxi Hire,1281.6,17/04/2020
Driven By Riide Ltd T/A  ADT Taxis,S.E.N. Taxi Hire,1734,17/04/2020
Driven By Riide Ltd T/A  ADT Taxis,S.E.N. Taxi Hire,972,17/04/2020
Driven By Riide Ltd T/A  ADT Taxis,S.E.N. Taxi Hire,1407.6,17/04/2020
Dudley Lodge Safeguarding Children Services,Private Contractors,9567.86,03/04/2020
DUNELM (NORTH EAST AUTISM SOCIETY)&&SSAROE66277,Residential,4753.61,06/04/2020
DUNELM (NORTH EAST AUTISM SOCIETY)&&SSAROE66277,Residential,2251.71,06/04/2020
DWELL LTD T/A LONG LEA &&SSARO3392,Residential,1365.96,06/04/2020
DWELL LTD T/A LONG LEA &&SSARO3392,Residential,647.04,06/04/2020
DWF LLP Client Account,Provisions Expenditure,1751.88,30/04/2020
DWP Debt Management,Personal Accounts - Other,2910,16/04/2020
Eastfield Primary School Academy,Payment to Ext SEN Providers,5373,24/04/2020
Econ Engineering Ltd,R&M of Vehicles-Non Contract,898.22,22/04/2020
Econ Engineering Ltd,R&M of Vehicles-Non Contract,924.29,22/04/2020
EGERTON LODGE&&SSAROE40415,Residential,2316,06/04/2020
EGERTON LODGE&&SSAROE40415,Residential,2316,06/04/2020
EGERTON LODGE&&SSAROE40415,Residential,2316,06/04/2020
EGERTON LODGE&&SSAROE40415,Residential,2895,06/04/2020
EGERTON LODGE&&SSAROE40415,Residential,501.6,06/04/2020
EGERTON LODGE&&SSAROE40415,Residential,15780.52,06/04/2020
EGERTON LODGE&&SSAROE40415,Residential,4632,06/04/2020
EGERTON LODGE&&SSAROE40415,Residential,4632,06/04/2020
EGERTON LODGE&&SSAROE40415,Residential,3556.71,06/04/2020
EGERTON LODGE&&SSAROE40415,Residential,2316,06/04/2020
EGERTON LODGE&&SSAROE40415,Residential,7475,06/04/2020
Elaines Taxis Ltd,Home to Sch Trans - Buses,1306.8,09/04/2020
Elaines Taxis Ltd,Home to Sch Trans - Buses,1587.17,09/04/2020
Elaines Taxis Ltd,S.E.N. Taxi Hire,2090.88,09/04/2020
Elaines Taxis Ltd,S.E.N. Taxi Hire,2090.88,09/04/2020
Elaines Taxis Ltd,Recharge of Pooled Transp Cost,1663.2,09/04/2020
Elaines Taxis Ltd,S.E.N. Taxi Hire,855.36,09/04/2020
REDACTED PERSONAL DATA,Residential,2218.52,06/04/2020
REDACTED PERSONAL DATA,Residential,1050.88,06/04/2020
REDACTED PERSONAL DATA,Other Transfer Payments,500,28/04/2020
REDACTED PERSONAL DATA,Residential,1034,06/04/2020
REDACTED PERSONAL DATA,Residential,1552.57,06/04/2020
REDACTED PERSONAL DATA,Residential,2068,06/04/2020
REDACTED PERSONAL DATA,Residential,886.29,06/04/2020
REDACTED PERSONAL DATA,Residential,735.43,06/04/2020
Elliotts Coaches Ltd,Home to Sch Trans - Buses,2957.11,24/04/2020
ELMS RESIDENTIAL HOME LTD T/A THE ELMS&&SSAROE40414,Residential,992.57,06/04/2020
ELMS RESIDENTIAL HOME LTD T/A THE ELMS&&SSAROE40414,Residential,1158,06/04/2020
ELMS RESIDENTIAL HOME LTD T/A THE ELMS&&SSAROE40414,Residential,18858.84,06/04/2020
ELMS RESIDENTIAL HOME LTD T/A THE ELMS&&SSAROE40414,Residential,2812.28,06/04/2020
ELMS RESIDENTIAL HOME LTD T/A THE ELMS&&SSAROE40414,Residential,1654.29,06/04/2020
ELMS RESIDENTIAL HOME LTD T/A THE ELMS&&SSAROE40414,Residential,10339.3,06/04/2020
Embrace Multi Academy Trust T/A Arnesby Church of England Primary School (ARN),Payment to Ext SEN Providers,1536,24/04/2020
Embrace Multi Academy Trust T/A Brockington College Academy (BRO),Payment to Ext SEN Providers,10714,24/04/2020
Embrace Multi Academy Trust T/A Croft C of E Primary School (CRO),Payment to Ext SEN Providers,6010,24/04/2020
Embrace Multi Academy Trust T/A Huncote Community Primary School Academy Trust (HUN),Payment to Ext SEN Providers,2305,24/04/2020
Embrace Multi Academy Trust T/A Manorfield Church of England Primary School (MAN),Payment to Ext SEN Providers,4210,24/04/2020
Embrace Multi Academy Trust T/A Whetstone St Peters CE Primary School (STP),Payment to Ext SEN Providers,1235,24/04/2020
Emmanuel Christian School,Payment to Ext SEN Providers,8751.21,30/04/2020
EMSA HOMEHELP LTD T/A BLUEBIRD CARE LEICS&&ISHC3983,Payments in Advance,17380,17/04/2020
EMSA HOMEHELP LTD T/A BLUEBIRD CARE LEICS&&ISHC3983,Home Care / Domiciliary,5521.61,17/04/2020
Enderby Danemill Primary School T/A Discovery Schools Academies Trust Ltd,Payment to Ext SEN Providers,5905,24/04/2020
Enderby Parish Council,Voluntary Associations,790,09/04/2020
ENRYCH&&CLCD3315,Payments in Advance,55650,17/04/2020
ENRYCH&&CLCD3315,Day / CLC Services,24656.66,17/04/2020
Environment Agency,Water Authority Precepts,75783.75,15/04/2020
Equita Ltd,Minimum Cost Contracts,1350.63,06/04/2020
Equita Ltd,Minimum Cost Contracts,1553.25,06/04/2020
Equita Ltd,Minimum Cost Contracts,1003.87,06/04/2020
Equita Ltd,Minimum Cost Contracts,1323.89,06/04/2020
Equita Ltd,Minimum Cost Contracts,1281.48,06/04/2020
Equita Ltd,Minimum Cost Contracts,1335.51,06/04/2020
Equita Ltd,Minimum Cost Contracts,640.35,06/04/2020
Equita Ltd,Minimum Cost Contracts,-1335.51,06/04/2020
Equita Ltd,Minimum Cost Contracts,-640.35,06/04/2020
Erics Fuels Ltd,Recharge of Pooled Transp Cost,1092.72,16/04/2020
Erics Fuels Ltd,S.E.N. Taxi Hire,2376,16/04/2020
Erics Fuels Ltd,S.E.N. Taxi Hire,2116.82,16/04/2020
Erics Fuels Ltd,S.E.N. Taxi Hire,2376,16/04/2020
Erics Fuels Ltd,S.E.N. Taxi Hire,2245.08,16/04/2020
Esland North Ltd,Private Contractors,3504.29,09/04/2020
Esland North Ltd,Private Contractors,2425.72,09/04/2020
Esland North Ltd,Private Contractors,1530,06/04/2020
Esland North Ltd,Private Contractors,7100,09/04/2020
ESPA LTD&&SSAROE247,Residential,11223.74,06/04/2020
ESPA LTD&&SSAROE247,Residential,5318.58,06/04/2020
Everest Taxis,Recharge of Pooled Transp Cost,800,14/04/2020
Everest Taxis,Recharge of Pooled Transp Cost,1540,14/04/2020
EVINGTON GRANGE LTD&&SARO3365,Residential,4116.27,06/04/2020
EVINGTON GRANGE LTD&&SARO3365,Residential,1949.81,06/04/2020
EVOLVING CARE&&ISHC2825,Payments in Advance,2550,17/04/2020
EVOLVING CARE&&ISHC2825,Home Care / Domiciliary,1204.96,17/04/2020
Eyam Museum Ltd,Other Transfer Payments,1000,21/04/2020
Fairfield Community Primary School Academy,Payment to Ext SEN Providers,3339,24/04/2020
Farndon Fields Academy Ltd T/A Discovery Schools Academy Trust,Payment to Ext SEN Providers,3038,24/04/2020
Favour Recruitment Ltd T/A Favour Health Ltd,Other Agency & Cont Services,6448,02/04/2020
REDACTED PERSONAL DATA,Residential,9755.07,06/04/2020
REDACTED PERSONAL DATA,Residential,4620.81,06/04/2020
REDACTED PERSONAL DATA,Suspense,1138.2,02/04/2020
FIELD HOUSE NURSING HOME LTD&&SSARO2972,Residential,2420.71,06/04/2020
FIELD HOUSE NURSING HOME LTD&&SSARO2972,Residential,1146.65,06/04/2020
Fire Brigade Union,Fees & Charges (833),3150.44,23/04/2020
Fire Brigade Union,Personal Accounts - Other,3150.44,23/04/2020
Fire Fighters Charity,Personal Accounts - Other,910.88,08/04/2020
FIRST CHOICE CARE AGENCY LTD&&ISHC3934,Payments in Advance,1930,17/04/2020
First Leicester City Bus Ltd,Minimum Cost Contracts,6042.93,20/04/2020
First Leicester City Bus Ltd,Minimum Cost Contracts,324400.13,20/04/2020
First Leicester City Bus Ltd,Minimum Cost Contracts,1663.65,20/04/2020
FIRSTMILE LTD&&SSAROE642,Residential,579,06/04/2020
FIRSTMILE LTD&&SSAROE642,Residential,-1075.29,06/04/2020
FIRSTMILE LTD&&SSAROE642,Residential,827.14,06/04/2020
FIRSTMILE LTD&&SSAROE642,Residential,-909.86,06/04/2020
FIRSTMILE LTD&&SSAROE642,Residential,1654.29,06/04/2020
FIRSTMILE LTD&&SSAROE642,Residential,20457.55,06/04/2020
FIRSTMILE LTD&&SSAROE642,Residential,2067.86,06/04/2020
FIRSTMILE LTD&&SSAROE642,Residential,2564.14,06/04/2020
FIRSTMILE LTD&&SSAROE642,Residential,661.71,06/04/2020
FIRSTMILE LTD&&SSAROE642,Residential,661.71,06/04/2020
FIRSTMILE LTD&&SSAROE642,Residential,10434.88,06/04/2020
FIRSTSMILE LTD&&SSAROE6,Residential,-579,06/04/2020
FIRSTSMILE LTD&&SSAROE6,Residential,14201.13,06/04/2020
FIRSTSMILE LTD&&SSAROE6,Residential,1075.29,06/04/2020
FIRSTSMILE LTD&&SSAROE6,Residential,6726.87,06/04/2020
FIVE RIVERS LIVING LTD&&SSARO5939,Residential,1378.86,06/04/2020
FIVE RIVERS LIVING LTD&&SSARO5939,Residential,653.14,06/04/2020
Focus Foster Care,Other Agency & Cont Services,3605.7,30/04/2020
Ford & Slater of Leicester,R&M of Vehicles-Non Contract,1217.7,23/04/2020
Ford & Slater of Leicester,R&M of Vehicles-Non Contract,1561.74,28/04/2020
Ford & Slater of Leicester,R&M of Vehicles-Non Contract,554.59,23/04/2020
Ford & Slater of Leicester,R&M of Vehicles-Non Contract,630,28/04/2020
Ford & Slater of Leicester,R&M of Vehicles-Non Contract,675.18,27/04/2020
Ford & Slater of Leicester,R&M of Vehicles-Non Contract,596.09,28/04/2020
Forest Driveways,Suspense,3870,22/04/2020
Forest Way School Academy Trust,Payment to Ext SEN Providers,119989,24/04/2020
Fossebrook Primary School T/A Discovery Schools Academies Trust,Payment to Ext SEN Providers,4327,24/04/2020
FOSSE HEALTHCARE LTD&&&&ISHC3231,Payments in Advance,198080,17/04/2020
FOSSE HEALTHCARE LTD&&&&ISHC3231,Home Care / Domiciliary,632.3,17/04/2020
FOSSE HEALTHCARE LTD&&&&ISHC3231,Home Care / Domiciliary,884.78,17/04/2020
FOSSE HEALTHCARE LTD&&&&ISHC3231,Home Care / Domiciliary,2956.39,17/04/2020
FOSSE HEALTHCARE LTD&&&&ISHC3231,Home Care / Domiciliary,617.94,17/04/2020
FOSSE HEALTHCARE LTD&&&&ISHC3231,Home Care / Domiciliary,1567.25,17/04/2020
FOSSE HEALTHCARE LTD&&&&ISHC3231,Home Care / Domiciliary,75433.02,17/04/2020
Foster Care Associates Ltd,Other Agency & Cont Services,3453,30/04/2020
Foster Care Associates Ltd,Other Agency & Cont Services,3090.43,30/04/2020
Foster Care Associates Ltd,Other Agency & Cont Services,3288.43,30/04/2020
Foster Care Associates Ltd,Other Agency & Cont Services,3288,30/04/2020
Foster Care Associates Ltd,Other Agency & Cont Services,3090.43,30/04/2020
Foster Care Associates Ltd,Other Agency & Cont Services,3453,30/04/2020
Foster Care Associates Ltd,Other Agency & Cont Services,3453,30/04/2020
Foster Care Associates Ltd,Other Agency & Cont Services,3288,30/04/2020
Foster Care Associates Ltd,Other Agency & Cont Services,3288.43,30/04/2020
Fostering People Ltd,Other Agency & Cont Services,3384,30/04/2020
Fostering People Ltd,Other Agency & Cont Services,3214.8,30/04/2020
Fostering People Ltd,Other Agency & Cont Services,3266.35,30/04/2020
Fostering People Ltd,Other Agency & Cont Services,2937.98,30/04/2020
Fostering People Ltd,Other Agency & Cont Services,3333,30/04/2020
Fostering People Ltd,Other Agency & Cont Services,2937.08,30/04/2020
Fostering People Ltd,Other Agency & Cont Services,3384,30/04/2020
Fostering People Ltd,Other Agency & Cont Services,3333,30/04/2020
Fostering People Ltd,Other Agency & Cont Services,3101.7,30/04/2020
Fostering People Ltd,Other Agency & Cont Services,2937.08,30/04/2020
Fostering People Ltd,Other Agency & Cont Services,3165,30/04/2020
Fostering People Ltd,Other Agency & Cont Services,3333,30/04/2020
FOUNDATION CARE LTD T/A MANTON HALL&&SSAROE40333,Residential,1275.71,06/04/2020
FOUNDATION CARE LTD T/A MANTON HALL&&SSAROE40333,Residential,604.29,06/04/2020
FOUR SEASONS (EVEDALE LTD) RE THE WILLOWS&&SSAROE40243,Private Contractors,-5947.36,06/04/2020
FOUR SEASONS (EVEDALE LTD) RE THE WILLOWS&&SSAROE40243,Residential,5947.36,06/04/2020
FOUR SEASONS (EVEDALE LTD) RE THE WILLOWS&&SSAROE40243,Private Contractors,-5947.36,06/04/2020
FOUR SEASONS (EVEDALE LTD) RE THE WILLOWS&&SSAROE40243,Residential,5947.36,06/04/2020
FOUR SEASONS (EVEDALE LTD) RE THE WILLOWS&&SSAROE40243,Residential,5947.36,06/04/2020
FOUR SEASONS (EVEDALE LTD) RE THE WILLOWS&&SSAROE40243,Private Contractors,-5947.36,06/04/2020
FOUR SEASONS (EVEDALE LTD) RE THE WILLOWS&&SSAROE40243,Residential,5947.36,06/04/2020
FOUR SEASONS (EVEDALE LTD) RE THE WILLOWS&&SSAROE40243,Private Contractors,-2973.68,06/04/2020
FOUR SEASONS (EVEDALE LTD) RE THE WILLOWS&&SSAROE40243,Private Contractors,-5947.36,06/04/2020
FOUR SEASONS (EVEDALE LTD) RE THE WILLOWS&&SSAROE40243,Residential,26763.12,06/04/2020
FOUR SEASONS (EVEDALE LTD) RE THE WILLOWS&&SSAROE40243,Private Contractors,-5947.36,06/04/2020
FOUR SEASONS (EVEDALE LTD) RE THE WILLOWS&&SSAROE40243,Private Contractors,-5947.36,06/04/2020
FOUR SEASONS (EVEDALE LTD) RE THE WILLOWS&&SSAROE40243,Private Contractors,-5947.36,06/04/2020
FOUR SEASONS (EVEDALE LTD) RE THE WILLOWS&&SSAROE40243,Residential,21477.64,06/04/2020
FOUR SEASONS (EVEDALE LTD) RE THE WILLOWS&&SSAROE40243,Private Contractors,-5947.36,06/04/2020
FOUR SEASONS (EVEDALE LTD) RE THE WILLOWS&&SSAROE40243,Private Contractors,-5947.36,06/04/2020
FOUR SEASONS (EVEDALE LTD) RE THE WILLOWS&&SSAROE40243,Residential,5947.36,06/04/2020
FOUR SEASONS (EVEDALE LTD) RE THE WILLOWS&&SSAROE40243,Private Contractors,-5947.36,06/04/2020
FOUR SEASONS (EVEDALE LTD) RE THE WILLOWS&&SSAROE40243,Residential,5947.36,06/04/2020
FOUR SEASONS (EVEDALE LTD) RE THE WILLOWS&&SSAROE40243,Private Contractors,-5947.36,06/04/2020
FOUR SEASONS (EVEDALE LTD) RE THE WILLOWS&&SSAROE40243,Residential,5947.36,06/04/2020
FOUR SEASONS (EVEDALE LTD) RE THE WILLOWS&&SSAROE40243,Private Contractors,-5947.36,06/04/2020
FOUR SEASONS (EVEDALE LTD) RE THE WILLOWS&&SSAROE40243,Residential,5947.36,06/04/2020
FOUR SEASONS (EVEDALE LTD) RE THE WILLOWS&&SSAROE40243,Residential,9925.5,06/04/2020
FOUR SEASONS (EVEDALE) LTD&&SSARO3292,Private Contractors,1568.83,06/04/2020
FOUR SEASONS (EVEDALE) LTD&&SSARO3292,Private Contractors,743.13,06/04/2020
FOUR SEASONS LTD T/A THE OAKS AND LITTLE OAKS&&SSARO5384,Residential,1452.14,06/04/2020
FOUR SEASONS LTD T/A THE OAKS AND LITTLE OAKS&&SSARO5384,Residential,687.86,06/04/2020
FPCR Environment & Design Ltd,Design & Supervision Fees Ext,9996,02/04/2020
FPCR Environment & Design Ltd,Design & Supervision Fees Ext,10116.6,09/04/2020
FREEDOM ACTIVE LTD&&CLCD3320,Payments in Advance,7260,17/04/2020
FREEDOM ACTIVE LTD&&CLCD3320,Day / CLC Services,2041.2,17/04/2020
FREEDOM CARE LTD T/A PRIVATE ROAD   HUGGLESCOTE&&SARO3385,Residential,17829.9,06/04/2020
FREEDOM CARE LTD T/A PRIVATE ROAD   HUGGLESCOTE&&SARO3385,Residential,8445.74,06/04/2020
FREEDOM SUPPORT SOLUTIONS LTD&&CLCD4598,Payments in Advance,5580,17/04/2020
FREEDOM SUPPORT SOLUTIONS LTD&&CLCD4598,Day / CLC Services,2792,17/04/2020
Friendly Bench,Deferred Charges (Grants & Advances),8500,02/04/2020
Friends of Erewash Museum,Other Transfer Payments,500,03/04/2020
Friends of Erewash Museum,Other Transfer Payments,1500,17/04/2020
Friends of Fleckney Library,Voluntary Associations,1623,09/04/2020
Friends of Metheringham Airfield,Other Transfer Payments,3500,06/04/2020
Frisby CE Primary School Academy,Payment to Ext SEN Providers,1361,24/04/2020
FSHC NEWCO LTD T/A THE LAWNS CARE HOME&&SSAROE76864,Residential,11047.99,06/04/2020
FSHC NEWCO LTD T/A THE LAWNS CARE HOME&&SSAROE76864,Residential,4959.01,06/04/2020
FTM Dance CIC (Forward Thinking Movement),Private Contractors,13751.32,27/04/2020
FTM DANCE&&CLCD3324,Payments in Advance,9450,17/04/2020
FTM DANCE&&CLCD3324,Day / CLC Services,1825.4,17/04/2020
Fuchs Lubricants (UK) Plc,R&M of Vehicles-Non Contract,1751.52,28/04/2020
Fusion Fostering,Other Agency & Cont Services,3885,30/04/2020
Fusion Fostering,Other Agency & Cont Services,3708.55,30/04/2020
FUTURE DIRECTIONS CIC&&SSARO3273,Residential,2190.1,06/04/2020
FUTURE DIRECTIONS CIC&&SSARO3273,Residential,1037.42,06/04/2020
REDACTED PERSONAL DATA,Home to Sch Trans - Buses,660,14/04/2020
REDACTED PERSONAL DATA,Home to Sch Trans - Buses,660,14/04/2020
GARENDON RESIDENTIAL HOME&&SSAROE46112,Residential,-10228.16,06/04/2020
GARENDON RESIDENTIAL HOME&&SSAROE46112,Residential,-12579.08,06/04/2020
GARENDON RESIDENTIAL HOME&&SSAROE46112,Residential,113100,06/04/2020
GARENDON RESIDENTIAL HOME&&SSAROE46112,Residential,-12579.08,06/04/2020
GARENDON RESIDENTIAL HOME&&SSAROE46112,Residential,-6289.54,06/04/2020
GARENDON RESIDENTIAL HOME&&SSAROE46112,Residential,-12579.08,06/04/2020
GARENDON RESIDENTIAL HOME&&SSAROE46112,Residential,-12579.08,06/04/2020
GARENDON RESIDENTIAL HOME&&SSAROE46112,Residential,-12579.08,06/04/2020
GARENDON RESIDENTIAL HOME&&SSAROE46112,Residential,-12579.08,06/04/2020
GARENDON RESIDENTIAL HOME&&SSAROE46112,Residential,16152.73,06/04/2020
GARENDON RESIDENTIAL HOME&&SSAROE46112,Residential,-12579.08,06/04/2020
GARENDON RESIDENTIAL HOME&&SSAROE46112,Residential,-8023.52,06/04/2020
GARENDON RESIDENTIAL HOME&&SSAROE46112,Residential,10448,06/04/2020
GARENDON RESIDENTIAL HOME&&SSAROE46112,Residential,-8023.52,06/04/2020
GARENDON RESIDENTIAL HOME&&SSAROE46112,Residential,10448,06/04/2020
GARENDON RESIDENTIAL HOME&&SSAROE46112,Residential,-1732.22,06/04/2020
GARENDON RESIDENTIAL HOME&&SSAROE46112,Residential,-1763.19,06/04/2020
GARENDON RESIDENTIAL HOME&&SSAROE46112,Residential,-8023.52,06/04/2020
GARENDON RESIDENTIAL HOME&&SSAROE46112,Residential,37216.71,06/04/2020
GARENDON RESIDENTIAL HOME&&SSAROE46112,Residential,-8023.52,06/04/2020
GARENDON RESIDENTIAL HOME&&SSAROE46112,Residential,7651.27,06/04/2020
Gartree High School Academy,Receipts in Advance,17288.9,17/04/2020
Gartree High School Academy,Payment to Ext SEN Providers,11680,24/04/2020
GB CARE LTD&&SSAROE928,Nursing,2807.11,06/04/2020
GB CARE LTD&&SSAROE928,Private Contractors,2807.11,06/04/2020
GB CARE LTD&&SSAROE928,Nursing,1329.69,06/04/2020
GB CARE LTD&&SSAROE928,Private Contractors,1329.69,06/04/2020
REDACTED PERSONAL DATA,Home to Sch Trans - Buses,6504.74,28/04/2020
Gemco Service Ltd,Operational Equipment,1333.2,21/04/2020
Gemco Service Ltd,Operational Equipment,1164,21/04/2020
Gems Cabs Ltd,S.E.N. Taxi Hire,1434.5,20/04/2020
Gems Cabs Ltd,S.E.N. Taxi Hire,504.9,20/04/2020
Gems Cabs Ltd,S.E.N. Taxi Hire,522.72,20/04/2020
Gems Cabs Ltd,S.E.N. Taxi Hire,555.38,20/04/2020
Gems Cabs Ltd,S.E.N. Taxi Hire,718.74,20/04/2020
Gems Cabs Ltd,S.E.N. Taxi Hire,620.72,20/04/2020
Gems Cabs Ltd,S.E.N. Taxi Hire,731.8,20/04/2020
Gems Cabs Ltd,S.E.N. Taxi Hire,2494.8,16/04/2020
Gems Cabs Ltd,S.E.N. Taxi Hire,1716.66,16/04/2020
Gems Cabs Ltd,S.E.N. Taxi Hire,1464.2,16/04/2020
Gems Cabs Ltd,S.E.N. Taxi Hire,1902.09,17/04/2020
Gems Cabs Ltd,S.E.N. Taxi Hire,1283.04,16/04/2020
Gems Cabs Ltd,S.E.N. Taxi Hire,2156.22,16/04/2020
Gems Cabs Ltd,Personal Accounts - Govt Depts,712.8,16/04/2020
Gems Cabs Ltd,Recharge of Pooled Transp Cost,712.8,16/04/2020
Gems Cabs Ltd,S.E.N. Taxi Hire,1862.18,16/04/2020
Gems Cabs Ltd,S.E.N. Taxi Hire,2062.36,17/04/2020
Gems Cabs Ltd,S.E.N. Taxi Hire,1297.88,16/04/2020
GENESIS HOMES (ESSEX) LTD&&SSARO1089,Residential,-13087.16,06/04/2020
GENESIS HOMES (ESSEX) LTD&&SSARO1089,Residential,13087.16,06/04/2020
GENESIS HOMES (ESSEX) LTD&&SSARO1089,Residential,-13087.16,06/04/2020
GENESIS HOMES (ESSEX) LTD&&SSARO1089,Residential,13087.16,06/04/2020
GENESIS HOMES (ESSEX) LTD&&SSARO1089,Residential,-13087.16,06/04/2020
GENESIS HOMES (ESSEX) LTD&&SSARO1089,Residential,79535.12,06/04/2020
GENESIS HOMES (ESSEX) LTD&&SSARO1089,Residential,-5333.58,06/04/2020
GENESIS HOMES (ESSEX) LTD&&SSARO1089,Residential,-13087.16,06/04/2020
GENESIS HOMES (ESSEX) LTD&&SSARO1089,Residential,-13087.16,06/04/2020
GENESIS HOMES (ESSEX) LTD&&SSARO1089,Residential,992.57,06/04/2020
GENESIS HOMES (ESSEX) LTD&&SSARO1089,Residential,-13087.16,06/04/2020
GENESIS HOMES (ESSEX) LTD&&SSARO1089,Residential,-11185.73,06/04/2020
GENESIS HOMES (ESSEX) LTD&&SSARO1089,Residential,24292.26,06/04/2020
GENESIS HOMES (ESSEX) LTD&&SSARO1089,Residential,-10574.33,06/04/2020
GENESIS HOMES (ESSEX) LTD&&SSARO1089,Residential,-13087.16,06/04/2020
GENESIS HOMES (ESSEX) LTD&&SSARO1089,Residential,13923.3,06/04/2020
GENESIS HOMES (ESSEX) LTD&&SSARO1089,Residential,-13087.16,06/04/2020
GENESIS HOMES (ESSEX) LTD&&SSARO1089,Residential,13335.3,06/04/2020
GENESIS HOMES (ESSEX) LTD&&SSARO1089,Residential,-13087.16,06/04/2020
GENESIS HOMES (ESSEX) LTD&&SSARO1089,Residential,13087.16,06/04/2020
GENESIS HOMES (ESSEX) LTD&&SSARO1089,Residential,-13087.16,06/04/2020
GENESIS HOMES (ESSEX) LTD&&SSARO1089,Residential,13087.16,06/04/2020
GENESIS HOMES (ESSEX) LTD&&SSARO1089,Residential,11920.47,06/04/2020
REDACTED PERSONAL DATA,S.E.N. Taxi Hire,1716,30/04/2020
REDACTED PERSONAL DATA,Home to Sch Trans - Buses,748,30/04/2020
REDACTED PERSONAL DATA,Other Transfer Payments,500,08/04/2020
GERAINT HOUSE LTD T/A GERAINT HOUSE&&SSARO8965,Residential,3350.29,08/04/2020
REDACTED PERSONAL DATA,Residential,592,09/04/2020
REDACTED PERSONAL DATA,Advertising,655.2,28/04/2020
Gilmorton Chandler CE Aided Primary School Academy,Payment to Ext SEN Providers,3652,24/04/2020
Glebe House    1,Private Contractors,4725,06/04/2020
Glebe House (Charnwood) Ltd     1,Private Contractors,2070,30/04/2020
Glebe House (Charnwood) Ltd     1,Private Contractors,5265,28/04/2020
GLEBE HOUSE (CHARNWOOD) LTD&&CLCD3308,Payments in Advance,102780,17/04/2020
GLEBE HOUSE (CHARNWOOD) LTD&&CLCD3308,Day / CLC Services,688.8,17/04/2020
GLEBE HOUSE (CHARNWOOD) LTD&&CLCD3308,Day / CLC Services,42983.27,17/04/2020
GLEE CARE LTD&&ISCH5871,Payments in Advance,30890,17/04/2020
Glenfield Primary School Academy,Payment to Ext SEN Providers,7638,24/04/2020
Glenfield Primary School Academy,Payment to Ext SEN Providers,2828,24/04/2020
Glen Hills Primary School Academy,Payment to Ext SEN Providers,3586,24/04/2020
Glenmere Primary School Academy,Payment to Ext SEN Providers,1689,24/04/2020
Glen Parva Parish Council,Voluntary Associations,621,09/04/2020
GMBATU,Fees & Charges (833),3956.26,06/04/2020
GMBATU,Suspense,3956.26,06/04/2020
REDACTED PERSONAL DATA,S.E.N. Taxi Hire,1430,27/04/2020
Goldhill Play Association T/A Goldhill Adventure Playground,Payment to Ext SEN Providers,900,15/04/2020
GP HOMECARE LTD T/A RADIS COMMUNITY CARE&&ISHC5054,Payments in Advance,34460,17/04/2020
GP HOMECARE LTD T/A RADIS COMMUNITY CARE&&ISHC5054,Home Care / Domiciliary,15180.48,17/04/2020
GRANGEWOOD LODGE&&SSAROE44233,Residential,1643.12,06/04/2020
GRANGEWOOD LODGE&&SSAROE44233,Residential,-2767.36,06/04/2020
GRANGEWOOD LODGE&&SSAROE44233,Residential,2421.44,06/04/2020
GRANGEWOOD LODGE&&SSAROE44233,Residential,778.32,06/04/2020
GRATIA&&SSAROE40405,Residential,10199.56,06/04/2020
GRATIA&&SSAROE40405,Residential,4831.36,06/04/2020
Great Glen Community Library,Voluntary Associations,552,09/04/2020
GREEN LEAF HEALTHCARE LTD T/A LIVESEY LODGE CARE HOME&&SSAROE40457,Residential,17371.42,06/04/2020
GREEN LEAF HEALTHCARE LTD T/A LIVESEY LODGE CARE HOME&&SSAROE40457,Residential,8228.58,06/04/2020
Greystoke Primary School T/A Discovery Schools Academies Trust,Payment to Ext SEN Providers,1438,24/04/2020
Groby Community Library Group,Voluntary Associations,561.5,09/04/2020
GROVE CARE LTD T/A OLIVE TREE HOUSE&&SSARO3373,Residential,1977.32,06/04/2020
GROVE CARE LTD T/A OLIVE TREE HOUSE&&SSARO3373,Residential,936.62,06/04/2020
Guest Motors Ltd T/A Guest Truck & Van,R&M of Vehicles-Non Contract,880.31,28/04/2020
REDACTED PERSONAL DATA,S.E.N. Taxi Hire,2079,23/04/2020
REDACTED PERSONAL DATA,S.E.N. Taxi Hire,1311.75,14/04/2020
REDACTED PERSONAL DATA,S.E.N. Taxi Hire,1961.25,28/04/2020
REDACTED PERSONAL DATA,S.E.N. Taxi Hire,1925,28/04/2020
HALES GROUP LTD&&ISHC3228,Payments in Advance,133800,17/04/2020
HALES GROUP LTD&&ISHC3228,Home Care / Domiciliary,59072.8,17/04/2020
HALES GROUP LTD&&ISHC3228,Home Care / Domiciliary,582.05,17/04/2020
Hallam Fields Primary School,Payment to Ext SEN Providers,6070,24/04/2020
Hallbrook Primary School,Payment to Ext SEN Providers,2689,24/04/2020
Hall Orchard CE Primary School Academy,Payment to Ext SEN Providers,4613,24/04/2020
Handy Cars Taxis,S.E.N. Taxi Hire,1840.41,09/04/2020
Happy Childrens Homes Ltd,Private Contractors,4860,09/04/2020
Hardwick House School,Payment to Ext SEN Providers,472693.62,28/04/2020
HARMONY CARE & SUPPORT LTD&&ISHC2872,Payments in Advance,15430,17/04/2020
HARMONY CARE & SUPPORT LTD&&ISHC2872,Home Care / Domiciliary,7715.52,17/04/2020
Hastings High School Academy,Payment to Ext SEN Providers,2860,24/04/2020
Hawkins & Associates Ltd,Miscellaneous Insurance,3483,30/04/2020
HAWTHORNE CARE LTD&&SSAROE1360,Residential,10021.13,06/04/2020
HAWTHORNE CARE LTD&&SSAROE1360,Residential,-1902.43,06/04/2020
HAWTHORNE CARE LTD&&SSAROE1360,Residential,4349.73,06/04/2020
Haynes,Other Transfer Payments,1240,09/04/2020
Haynes,Other Transfer Payments,1160,09/04/2020
HC1 LTD RE BANKWOOD&&SARO9230,Residential,1567.69,06/04/2020
HC1 LTD RE BANKWOOD&&SARO9230,Residential,2392.79,06/04/2020
HC ONE C/O ACACIA CARE HOME&&SSARO3299,Residential,1537.97,06/04/2020
HC ONE C/O ACACIA CARE HOME&&SSARO3299,Residential,728.51,06/04/2020
HC ONE LTD RE BEAUVALE CARE HOME&&SSAROE48787,Private Contractors,3170.29,06/04/2020
HC ONE LTD RE BEAUVALE CARE HOME&&SSAROE48787,Residential,3170.29,06/04/2020
HC ONE LTD RE BEAUVALE CARE HOME&&SSAROE48787,Private Contractors,1501.71,06/04/2020
HC ONE LTD RE BEAUVALE CARE HOME&&SSAROE48787,Residential,1501.71,06/04/2020
HC One Ltd Re Cedar Court,Residential,78520,01/04/2020
HC One Ltd Re Cedar Court,Residential,19630,01/04/2020
HC One Ltd Re Cedar Court,Residential,19630,20/04/2020
HC ONE LTD RE CEDAR COURT&&SSAROE43896,Private Contractors,-12452,06/04/2020
HC ONE LTD RE CEDAR COURT&&SSAROE43896,Residential,-12452,06/04/2020
HC ONE LTD RE CEDAR COURT&&SSAROE43896,Residential,15776,06/04/2020
HC ONE LTD RE CEDAR COURT&&SSAROE43896,Residential,15776,06/04/2020
HC ONE LTD RE CEDAR COURT&&SSAROE43896,Private Contractors,-12452,06/04/2020
HC ONE LTD RE CEDAR COURT&&SSAROE43896,Residential,-12452,06/04/2020
HC ONE LTD RE CEDAR COURT&&SSAROE43896,Residential,15776,06/04/2020
HC ONE LTD RE CEDAR COURT&&SSAROE43896,Residential,15776,06/04/2020
HC ONE LTD RE CEDAR COURT&&SSAROE43896,Private Contractors,-12452,06/04/2020
HC ONE LTD RE CEDAR COURT&&SSAROE43896,Residential,-12452,06/04/2020
HC ONE LTD RE CEDAR COURT&&SSAROE43896,Residential,39440,06/04/2020
HC ONE LTD RE CEDAR COURT&&SSAROE43896,Private Contractors,-6226,06/04/2020
HC ONE LTD RE CEDAR COURT&&SSAROE43896,Residential,-6226,06/04/2020
HC ONE LTD RE CEDAR COURT&&SSAROE43896,Private Contractors,-12452,06/04/2020
HC ONE LTD RE CEDAR COURT&&SSAROE43896,Residential,-12452,06/04/2020
HC ONE LTD RE CEDAR COURT&&SSAROE43896,Private Contractors,-12452,06/04/2020
HC ONE LTD RE CEDAR COURT&&SSAROE43896,Residential,-12452,06/04/2020
HC ONE LTD RE CEDAR COURT&&SSAROE43896,Private Contractors,-12452,06/04/2020
HC ONE LTD RE CEDAR COURT&&SSAROE43896,Residential,-12452,06/04/2020
HC ONE LTD RE CEDAR COURT&&SSAROE43896,Private Contractors,-12452,06/04/2020
HC ONE LTD RE CEDAR COURT&&SSAROE43896,Residential,-12452,06/04/2020
HC ONE LTD RE CEDAR COURT&&SSAROE43896,Residential,32549.97,06/04/2020
HC ONE LTD RE CEDAR COURT&&SSAROE43896,Private Contractors,-12452,06/04/2020
HC ONE LTD RE CEDAR COURT&&SSAROE43896,Residential,-12452,06/04/2020
HC ONE LTD RE CEDAR COURT&&SSAROE43896,Private Contractors,-12452,06/04/2020
HC ONE LTD RE CEDAR COURT&&SSAROE43896,Residential,-12452,06/04/2020
HC ONE LTD RE CEDAR COURT&&SSAROE43896,Residential,13460,06/04/2020
HC ONE LTD RE CEDAR COURT&&SSAROE43896,Private Contractors,-12452,06/04/2020
HC ONE LTD RE CEDAR COURT&&SSAROE43896,Residential,-12452,06/04/2020
HC ONE LTD RE CEDAR COURT&&SSAROE43896,Residential,15776,06/04/2020
HC ONE LTD RE CEDAR COURT&&SSAROE43896,Residential,-2150.57,06/04/2020
HC ONE LTD RE CEDAR COURT&&SSAROE43896,Private Contractors,-12452,06/04/2020
HC ONE LTD RE CEDAR COURT&&SSAROE43896,Residential,-12452,06/04/2020
HC ONE LTD RE CEDAR COURT&&SSAROE43896,Residential,15776,06/04/2020
HC ONE LTD RE CEDAR COURT&&SSAROE43896,Residential,15776,06/04/2020
HC ONE LTD RE CEDAR COURT&&SSAROE43896,Private Contractors,-12452,06/04/2020
HC ONE LTD RE CEDAR COURT&&SSAROE43896,Residential,-12452,06/04/2020
HC ONE LTD RE CEDAR COURT&&SSAROE43896,Residential,15776,06/04/2020
HC ONE LTD RE CEDAR COURT&&SSAROE43896,Residential,15776,06/04/2020
HC ONE LTD RE CEDAR COURT&&SSAROE43896,Residential,15418.43,06/04/2020
HC ONE LTD RE HARLEY GRANGE&&SSAROE40253,Private Contractors,1645.71,06/04/2020
HC ONE LTD RE HARLEY GRANGE&&SSAROE40253,Private Contractors,7249.66,06/04/2020
HC ONE LTD RE HARLEY GRANGE&&SSAROE40253,Residential,7249.66,06/04/2020
HC ONE LTD RE HARLEY GRANGE&&SSAROE40253,Private Contractors,4256.92,06/04/2020
HC ONE LTD RE HARLEY GRANGE&&SSAROE40253,Residential,4256.92,06/04/2020
HC ONE LTD RE HINCKLEY PARK&&SSAROE24,Private Contractors,-11237.24,06/04/2020
HC ONE LTD RE HINCKLEY PARK&&SSAROE24,Residential,-11237.24,06/04/2020
HC ONE LTD RE HINCKLEY PARK&&SSAROE24,Residential,12401.24,06/04/2020
HC ONE LTD RE HINCKLEY PARK&&SSAROE24,Private Contractors,-11237.24,06/04/2020
HC ONE LTD RE HINCKLEY PARK&&SSAROE24,Residential,-11237.24,06/04/2020
HC ONE LTD RE HINCKLEY PARK&&SSAROE24,Residential,12401.24,06/04/2020
HC ONE LTD RE HINCKLEY PARK&&SSAROE24,Private Contractors,-11237.24,06/04/2020
HC ONE LTD RE HINCKLEY PARK&&SSAROE24,Residential,-11237.24,06/04/2020
HC ONE LTD RE HINCKLEY PARK&&SSAROE24,Residential,68768.77,06/04/2020
HC ONE LTD RE HINCKLEY PARK&&SSAROE24,Private Contractors,-4189.74,06/04/2020
HC ONE LTD RE HINCKLEY PARK&&SSAROE24,Residential,-4189.74,06/04/2020
HC ONE LTD RE HINCKLEY PARK&&SSAROE24,Private Contractors,-11237.24,06/04/2020
HC ONE LTD RE HINCKLEY PARK&&SSAROE24,Residential,-11237.24,06/04/2020
HC ONE LTD RE HINCKLEY PARK&&SSAROE24,Private Contractors,-9400.11,06/04/2020
HC ONE LTD RE HINCKLEY PARK&&SSAROE24,Residential,-9400.11,06/04/2020
HC ONE LTD RE HINCKLEY PARK&&SSAROE24,Private Contractors,-8379.48,06/04/2020
HC ONE LTD RE HINCKLEY PARK&&SSAROE24,Residential,-8379.48,06/04/2020
HC ONE LTD RE HINCKLEY PARK&&SSAROE24,Private Contractors,-8379.48,06/04/2020
HC ONE LTD RE HINCKLEY PARK&&SSAROE24,Residential,-8379.48,06/04/2020
HC ONE LTD RE HINCKLEY PARK&&SSAROE24,Residential,14695.64,06/04/2020
HC ONE LTD RE HINCKLEY PARK&&SSAROE24,Private Contractors,-8379.48,06/04/2020
HC ONE LTD RE HINCKLEY PARK&&SSAROE24,Residential,-8379.48,06/04/2020
HC ONE LTD RE HINCKLEY PARK&&SSAROE24,Private Contractors,-11237.24,06/04/2020
HC ONE LTD RE HINCKLEY PARK&&SSAROE24,Residential,-11237.24,06/04/2020
HC ONE LTD RE HINCKLEY PARK&&SSAROE24,Residential,12401.24,06/04/2020
HC ONE LTD RE HINCKLEY PARK&&SSAROE24,Private Contractors,-11237.24,06/04/2020
HC ONE LTD RE HINCKLEY PARK&&SSAROE24,Residential,-11237.24,06/04/2020
HC ONE LTD RE HINCKLEY PARK&&SSAROE24,Residential,12401.24,06/04/2020
HC ONE LTD RE HINCKLEY PARK&&SSAROE24,Private Contractors,-11237.24,06/04/2020
HC ONE LTD RE HINCKLEY PARK&&SSAROE24,Residential,-11237.24,06/04/2020
HC ONE LTD RE HINCKLEY PARK&&SSAROE24,Residential,12401.24,06/04/2020
HC ONE LTD RE HINCKLEY PARK&&SSAROE24,Private Contractors,-11237.24,06/04/2020
HC ONE LTD RE HINCKLEY PARK&&SSAROE24,Residential,-11237.24,06/04/2020
HC ONE LTD RE HINCKLEY PARK&&SSAROE24,Residential,12401.24,06/04/2020
HC ONE LTD RE HINCKLEY PARK&&SSAROE24,Residential,6961.12,06/04/2020
HC ONE LTD RE MAGNA&&SSAROE68590,Private Contractors,-19564.16,06/04/2020
HC ONE LTD RE MAGNA&&SSAROE68590,Residential,-19564.16,06/04/2020
HC ONE LTD RE MAGNA&&SSAROE68590,Residential,20004.16,06/04/2020
HC ONE LTD RE MAGNA&&SSAROE68590,Residential,19992.16,06/04/2020
HC ONE LTD RE MAGNA&&SSAROE68590,Private Contractors,-19564.16,06/04/2020
HC ONE LTD RE MAGNA&&SSAROE68590,Residential,-19564.16,06/04/2020
HC ONE LTD RE MAGNA&&SSAROE68590,Residential,120268.74,06/04/2020
HC ONE LTD RE MAGNA&&SSAROE68590,Residential,18172.45,06/04/2020
HC ONE LTD RE MAGNA&&SSAROE68590,Private Contractors,-22132.16,06/04/2020
HC ONE LTD RE MAGNA&&SSAROE68590,Residential,-22132.16,06/04/2020
HC ONE LTD RE MAGNA&&SSAROE68590,Private Contractors,-9902.08,06/04/2020
HC ONE LTD RE MAGNA&&SSAROE68590,Residential,-9902.08,06/04/2020
HC ONE LTD RE MAGNA&&SSAROE68590,Private Contractors,-22132.16,06/04/2020
HC ONE LTD RE MAGNA&&SSAROE68590,Residential,-22132.16,06/04/2020
HC ONE LTD RE MAGNA&&SSAROE68590,Private Contractors,-22132.16,06/04/2020
HC ONE LTD RE MAGNA&&SSAROE68590,Residential,-22132.16,06/04/2020
HC ONE LTD RE MAGNA&&SSAROE68590,Private Contractors,-21217.59,06/04/2020
HC ONE LTD RE MAGNA&&SSAROE68590,Residential,-21217.59,06/04/2020
HC ONE LTD RE MAGNA&&SSAROE68590,Private Contractors,-19804.16,06/04/2020
HC ONE LTD RE MAGNA&&SSAROE68590,Residential,-19804.16,06/04/2020
HC ONE LTD RE MAGNA&&SSAROE68590,Residential,17319.01,06/04/2020
HC ONE LTD RE MAGNA&&SSAROE68590,Private Contractors,-19804.16,06/04/2020
HC ONE LTD RE MAGNA&&SSAROE68590,Residential,-19804.16,06/04/2020
HC ONE LTD RE MAGNA&&SSAROE68590,Private Contractors,-19564.16,06/04/2020
HC ONE LTD RE MAGNA&&SSAROE68590,Residential,-19564.16,06/04/2020
HC ONE LTD RE MAGNA&&SSAROE68590,Residential,20004.16,06/04/2020
HC ONE LTD RE MAGNA&&SSAROE68590,Private Contractors,-19564.16,06/04/2020
HC ONE LTD RE MAGNA&&SSAROE68590,Residential,-19564.16,06/04/2020
HC ONE LTD RE MAGNA&&SSAROE68590,Residential,20004.16,06/04/2020
HC ONE LTD RE MAGNA&&SSAROE68590,Private Contractors,-19564.16,06/04/2020
HC ONE LTD RE MAGNA&&SSAROE68590,Residential,-19564.16,06/04/2020
HC ONE LTD RE MAGNA&&SSAROE68590,Residential,20004.16,06/04/2020
HC ONE LTD RE MAGNA&&SSAROE68590,Residential,1819.71,06/04/2020
HC ONE LTD RE MAGNA&&SSAROE68590,Private Contractors,-2109.42,06/04/2020
HC ONE LTD RE MAGNA&&SSAROE68590,Private Contractors,-19564.16,06/04/2020
HC ONE LTD RE MAGNA&&SSAROE68590,Residential,-19564.16,06/04/2020
HC ONE LTD RE MAGNA&&SSAROE68590,Residential,20004.16,06/04/2020
HC ONE LTD RE MAGNA&&SSAROE68590,Residential,8203.79,06/04/2020
HC ONE LTD RE THE WILLOWS&&SSAROE40262,Residential,-28421.76,06/04/2020
HC ONE LTD RE THE WILLOWS&&SSAROE40262,Residential,-28421.76,06/04/2020
HC ONE LTD RE THE WILLOWS&&SSAROE40262,Residential,27981.76,06/04/2020
HC ONE LTD RE THE WILLOWS&&SSAROE40262,Residential,-28421.76,06/04/2020
HC ONE LTD RE THE WILLOWS&&SSAROE40262,Residential,178706.44,06/04/2020
HC ONE LTD RE THE WILLOWS&&SSAROE40262,Residential,-11984.88,06/04/2020
HC ONE LTD RE THE WILLOWS&&SSAROE40262,Residential,-28421.76,06/04/2020
HC ONE LTD RE THE WILLOWS&&SSAROE40262,Residential,-28421.76,06/04/2020
HC ONE LTD RE THE WILLOWS&&SSAROE40262,Residential,-28421.76,06/04/2020
HC ONE LTD RE THE WILLOWS&&SSAROE40262,Residential,-28421.76,06/04/2020
HC ONE LTD RE THE WILLOWS&&SSAROE40262,Residential,29907.39,06/04/2020
HC ONE LTD RE THE WILLOWS&&SSAROE40262,Residential,-26516.76,06/04/2020
HC ONE LTD RE THE WILLOWS&&SSAROE40262,Residential,-1210,06/04/2020
HC ONE LTD RE THE WILLOWS&&SSAROE40262,Residential,-28421.76,06/04/2020
HC ONE LTD RE THE WILLOWS&&SSAROE40262,Residential,31373.04,06/04/2020
HC ONE LTD RE THE WILLOWS&&SSAROE40262,Residential,-28421.76,06/04/2020
HC ONE LTD RE THE WILLOWS&&SSAROE40262,Residential,27981.76,06/04/2020
HC ONE LTD RE THE WILLOWS&&SSAROE40262,Residential,-28421.76,06/04/2020
HC ONE LTD RE THE WILLOWS&&SSAROE40262,Residential,83945.28,06/04/2020
HC ONE LTD RE THE WILLOWS&&SSAROE40262,Residential,-28421.76,06/04/2020
HC ONE LTD RE THE WILLOWS&&SSAROE40262,Residential,13504.97,06/04/2020
HC ONE OVAL LTD T/A ALEXANDRA&&SSARO2030,Nursing,1149.77,06/04/2020
HC ONE OVAL LTD T/A ALEXANDRA&&SSARO2030,Private Contractors,1149.77,06/04/2020
HC ONE OVAL LTD T/A ALEXANDRA&&SSARO2030,Nursing,544.63,06/04/2020
HC ONE OVAL LTD T/A ALEXANDRA&&SSARO2030,Private Contractors,544.63,06/04/2020
HC ONE OVAL LTD T/AS GREY FERRER&&SSAROE61119,Private Contractors,33581.1,06/04/2020
HC ONE OVAL LTD T/AS GREY FERRER&&SSAROE61119,Residential,33581.1,06/04/2020
HC ONE OVAL LTD T/AS GREY FERRER&&SSAROE61119,Private Contractors,15906.9,06/04/2020
HC ONE OVAL LTD T/AS GREY FERRER&&SSAROE61119,Residential,15906.9,06/04/2020
HC ONE RE THE ROWANS&&SSAROE53508,Residential,-25619.28,06/04/2020
HC ONE RE THE ROWANS&&SSAROE53508,Residential,26311.28,06/04/2020
HC ONE RE THE ROWANS&&SSAROE53508,Residential,-4433.15,06/04/2020
HC ONE RE THE ROWANS&&SSAROE53508,Residential,23640.28,06/04/2020
HC ONE RE THE ROWANS&&SSAROE53508,Residential,-25619.28,06/04/2020
HC ONE RE THE ROWANS&&SSAROE53508,Residential,26311.28,06/04/2020
HC ONE RE THE ROWANS&&SSAROE53508,Residential,-655.71,06/04/2020
HC ONE RE THE ROWANS&&SSAROE53508,Residential,2500,06/04/2020
HC ONE RE THE ROWANS&&SSAROE53508,Residential,-25619.28,06/04/2020
HC ONE RE THE ROWANS&&SSAROE53508,Residential,159951.89,06/04/2020
HC ONE RE THE ROWANS&&SSAROE53508,Residential,-11678.49,06/04/2020
HC ONE RE THE ROWANS&&SSAROE53508,Residential,-30240.88,06/04/2020
HC ONE RE THE ROWANS&&SSAROE53508,Residential,-950.71,06/04/2020
HC ONE RE THE ROWANS&&SSAROE53508,Residential,3370.72,06/04/2020
HC ONE RE THE ROWANS&&SSAROE53508,Residential,-30240.88,06/04/2020
HC ONE RE THE ROWANS&&SSAROE53508,Residential,-28353.79,06/04/2020
HC ONE RE THE ROWANS&&SSAROE53508,Residential,-1210,06/04/2020
HC ONE RE THE ROWANS&&SSAROE53508,Residential,-24824.99,06/04/2020
HC ONE RE THE ROWANS&&SSAROE53508,Residential,-1815,06/04/2020
HC ONE RE THE ROWANS&&SSAROE53508,Residential,30438.02,06/04/2020
HC ONE RE THE ROWANS&&SSAROE53508,Residential,-24978.26,06/04/2020
HC ONE RE THE ROWANS&&SSAROE53508,Residential,625,06/04/2020
HC ONE RE THE ROWANS&&SSAROE53508,Residential,-20804.04,06/04/2020
HC ONE RE THE ROWANS&&SSAROE53508,Residential,24556.47,06/04/2020
HC ONE RE THE ROWANS&&SSAROE53508,Residential,-20804.04,06/04/2020
HC ONE RE THE ROWANS&&SSAROE53508,Residential,21496.04,06/04/2020
HC ONE RE THE ROWANS&&SSAROE53508,Residential,1158,06/04/2020
HC ONE RE THE ROWANS&&SSAROE53508,Residential,-2150.57,06/04/2020
HC ONE RE THE ROWANS&&SSAROE53508,Residential,-23199.28,06/04/2020
HC ONE RE THE ROWANS&&SSAROE53508,Residential,23995.28,06/04/2020
HC ONE RE THE ROWANS&&SSAROE53508,Residential,-1572.57,06/04/2020
HC ONE RE THE ROWANS&&SSAROE53508,Residential,-864.29,06/04/2020
HC ONE RE THE ROWANS&&SSAROE53508,Residential,-25619.28,06/04/2020
HC ONE RE THE ROWANS&&SSAROE53508,Residential,26311.28,06/04/2020
HC ONE RE THE ROWANS&&SSAROE53508,Residential,661.71,06/04/2020
HC ONE RE THE ROWANS&&SSAROE53508,Residential,-872.14,06/04/2020
HC ONE RE THE ROWANS&&SSAROE53508,Residential,4383.86,06/04/2020
HC ONE RE THE ROWANS&&SSAROE53508,Residential,14418.02,06/04/2020
Headstrong Wellbeing CIC,Other Agency & Cont Services,1850,03/04/2020
Heart Of England Training Ltd,Payment to Ext SEN Providers,3272.72,02/04/2020
HEATHCOTES CARE LTD&&SSAROE1336,Residential,-45930.04,06/04/2020
HEATHCOTES CARE LTD&&SSAROE1336,Residential,-1239.08,06/04/2020
HEATHCOTES CARE LTD&&SSAROE1336,Residential,2380.4,06/04/2020
HEATHCOTES CARE LTD&&SSAROE1336,Residential,-45930.04,06/04/2020
HEATHCOTES CARE LTD&&SSAROE1336,Residential,-45930.04,06/04/2020
HEATHCOTES CARE LTD&&SSAROE1336,Residential,-22794.42,06/04/2020
HEATHCOTES CARE LTD&&SSAROE1336,Residential,-45930.04,06/04/2020
HEATHCOTES CARE LTD&&SSAROE1336,Residential,249930.19,06/04/2020
HEATHCOTES CARE LTD&&SSAROE1336,Residential,-45930.04,06/04/2020
HEATHCOTES CARE LTD&&SSAROE1336,Residential,-45930.04,06/04/2020
HEATHCOTES CARE LTD&&SSAROE1336,Residential,-45930.04,06/04/2020
HEATHCOTES CARE LTD&&SSAROE1336,Residential,31166.84,06/04/2020
HEATHCOTES CARE LTD&&SSAROE1336,Residential,-44556.91,06/04/2020
HEATHCOTES CARE LTD&&SSAROE1336,Residential,-45930.04,06/04/2020
HEATHCOTES CARE LTD&&SSAROE1336,Residential,-45930.04,06/04/2020
HEATHCOTES CARE LTD&&SSAROE1336,Residential,275580.24,06/04/2020
HEATHCOTES CARE LTD&&SSAROE1336,Residential,-45930.04,06/04/2020
HEATHCOTES CARE LTD&&SSAROE1336,Residential,-45930.04,06/04/2020
HEATHCOTES CARE LTD&&SSAROE1336,Residential,60693.24,06/04/2020
HEATHCOTES CARE LTD&&SSAROE1336,Residential,-38977.44,06/04/2020
HEATHCOTES CARE LTD&&SSAROE1336,Residential,-1792.4,06/04/2020
HEATHCOTES CARE LTD&&SSAROE1336,Residential,3202.21,06/04/2020
HEATHCOTES CARE LTD&&SSAROE1336,Residential,-38977.44,06/04/2020
HEATHCOTES CARE LTD&&SSAROE1336,Residential,-38977.44,06/04/2020
HEATHCOTES CARE LTD&&SSAROE1336,Residential,-19464.06,06/04/2020
HEATHCOTES CARE LTD&&SSAROE1336,Residential,-38977.44,06/04/2020
HEATHCOTES CARE LTD&&SSAROE1336,Residential,212713.67,06/04/2020
HEATHCOTES CARE LTD&&SSAROE1336,Residential,-38977.44,06/04/2020
HEATHCOTES CARE LTD&&SSAROE1336,Residential,-38977.44,06/04/2020
HEATHCOTES CARE LTD&&SSAROE1336,Residential,-38977.44,06/04/2020
HEATHCOTES CARE LTD&&SSAROE1336,Residential,26644.44,06/04/2020
HEATHCOTES CARE LTD&&SSAROE1336,Residential,-37165.66,06/04/2020
HEATHCOTES CARE LTD&&SSAROE1336,Residential,-38977.44,06/04/2020
HEATHCOTES CARE LTD&&SSAROE1336,Residential,-38977.44,06/04/2020
HEATHCOTES CARE LTD&&SSAROE1336,Residential,235592.64,06/04/2020
HEATHCOTES CARE LTD&&SSAROE1336,Residential,-38977.44,06/04/2020
HEATHCOTES CARE LTD&&SSAROE1336,Residential,-38977.44,06/04/2020
HEATHCOTES CARE LTD&&SSAROE1336,Residential,51886.44,06/04/2020
HEATHCOTES CARE LTD&&SSAROE1336,Residential,6574.22,06/04/2020
HEATHCOTES CARE LTD&&SSAROE1336,Residential,3114.1,06/04/2020
HEATHCOTES M LTD&&SSARO2756,Residential,-15141.44,06/04/2020
HEATHCOTES M LTD&&SSARO2756,Residential,-15141.44,06/04/2020
HEATHCOTES M LTD&&SSARO2756,Residential,-15141.44,06/04/2020
HEATHCOTES M LTD&&SSARO2756,Residential,-7570.72,06/04/2020
HEATHCOTES M LTD&&SSARO2756,Residential,-15141.44,06/04/2020
HEATHCOTES M LTD&&SSARO2756,Residential,83277.92,06/04/2020
HEATHCOTES M LTD&&SSARO2756,Residential,-15141.44,06/04/2020
HEATHCOTES M LTD&&SSARO2756,Residential,-15141.44,06/04/2020
HEATHCOTES M LTD&&SSARO2756,Residential,-15141.44,06/04/2020
HEATHCOTES M LTD&&SSARO2756,Residential,20699.38,06/04/2020
HEATHCOTES M LTD&&SSARO2756,Residential,-15141.44,06/04/2020
HEATHCOTES M LTD&&SSARO2756,Residential,-15141.44,06/04/2020
HEATHCOTES M LTD&&SSARO2756,Residential,15141.44,06/04/2020
HEATHCOTES M LTD&&SSARO2756,Residential,-15141.44,06/04/2020
HEATHCOTES M LTD&&SSARO2756,Residential,90848.64,06/04/2020
HEATHCOTES M LTD&&SSARO2756,Residential,-15141.44,06/04/2020
HEATHCOTES M LTD&&SSARO2756,Residential,-15141.44,06/04/2020
HEATHCOTES M LTD&&SSARO2756,Residential,9804.94,06/04/2020
HEATHCOTES M LTD&&SSARO2756,Residential,23914.39,06/04/2020
HEATHCOTES M LTD&&SSARO2756,Residential,11327.87,06/04/2020
HEATHCOTES M LTD&&SSARO3394,Residential,4440.44,06/04/2020
HEATHCOTES M LTD&&SSARO3394,Residential,2103.36,06/04/2020
HEATHCOTES M LTD T/A HEATHCOTES DERBY&&SSARO3402,Residential,3316.39,06/04/2020
HEATHCOTES M LTD T/A HEATHCOTES DERBY&&SSARO3402,Residential,1570.93,06/04/2020
HEATHCOTES MOULTON&&SSARO3290,Residential,2878.19,06/04/2020
HEATHCOTES MOULTON&&SSARO3290,Residential,1363.35,06/04/2020
HEATHCOTES&&SSARO2014,Residential,-39747.81,06/04/2020
HEATHCOTES&&SSARO2014,Residential,-2479.81,06/04/2020
HEATHCOTES&&SSARO2014,Residential,4764.5,06/04/2020
HEATHCOTES&&SSARO2014,Residential,-39747.81,06/04/2020
HEATHCOTES&&SSARO2014,Residential,-39747.81,06/04/2020
HEATHCOTES&&SSARO2014,Residential,-19865.73,06/04/2020
HEATHCOTES&&SSARO2014,Residential,-39747.81,06/04/2020
HEATHCOTES&&SSARO2014,Residential,213833.86,06/04/2020
HEATHCOTES&&SSARO2014,Residential,-39747.81,06/04/2020
HEATHCOTES&&SSARO2014,Residential,-39747.81,06/04/2020
HEATHCOTES&&SSARO2014,Residential,-39747.81,06/04/2020
HEATHCOTES&&SSARO2014,Residential,26971.74,06/04/2020
HEATHCOTES&&SSARO2014,Residential,-37261.57,06/04/2020
HEATHCOTES&&SSARO2014,Residential,-39747.81,06/04/2020
HEATHCOTES&&SSARO2014,Residential,-39747.81,06/04/2020
HEATHCOTES&&SSARO2014,Residential,238486.87,06/04/2020
HEATHCOTES&&SSARO2014,Residential,-39747.81,06/04/2020
HEATHCOTES&&SSARO2014,Residential,-39747.81,06/04/2020
HEATHCOTES&&SSARO2014,Residential,52523.88,06/04/2020
REDACTED PERSONAL DATA,Sales-Trading,680,21/04/2020
REDACTED PERSONAL DATA,Residential,672,14/04/2020
Heathfield Academy,Payment to Ext SEN Providers,3802,24/04/2020
Heckington Windmill Trust,Other Transfer Payments,1500,24/04/2020
REDACTED PERSONAL DATA,Consultants & Specialists,4400,01/04/2020
Help At Home,Private Contractors,591.03,15/04/2020
Help At Home,Private Contractors,597.84,09/04/2020
Help At Home,Cash Personal Budgets,2615.61,09/04/2020
HELP AT HOME LTD&&ISHC3234,Payments in Advance,501890,17/04/2020
HELP AT HOME LTD&&ISHC3234,Home Care / Domiciliary,722.91,17/04/2020
HELP AT HOME LTD&&ISHC3234,Home Care / Domiciliary,806.89,17/04/2020
HELP AT HOME LTD&&ISHC3234,Home Care / Domiciliary,1394.84,17/04/2020
HELP AT HOME LTD&&ISHC3234,Home Care / Domiciliary,821.46,17/04/2020
HELP AT HOME LTD&&ISHC3234,Home Care / Domiciliary,1233.7,17/04/2020
HELP AT HOME LTD&&ISHC3234,Home Care / Domiciliary,1820.96,17/04/2020
HELP AT HOME LTD&&ISHC3234,Home Care / Domiciliary,640.93,17/04/2020
HELP AT HOME LTD&&ISHC3234,Home Care / Domiciliary,1146.92,17/04/2020
HELP AT HOME LTD&&ISHC3234,Home Care / Domiciliary,2380.04,17/04/2020
HELP AT HOME LTD&&ISHC3234,Home Care / Domiciliary,543.09,17/04/2020
HELP AT HOME LTD&&ISHC3234,Home Care / Domiciliary,1128.68,17/04/2020
HELP AT HOME LTD&&ISHC3234,Home Care / Domiciliary,178128.15,17/04/2020
HELP AT HOME LTD&&ISHC3234,Home Care / Domiciliary,32671.95,17/04/2020
HELPING HANDS CARE HOME LTD T/A GOODWOOD ORCHARDS&&SSAROE40251,Residential,4310.29,06/04/2020
HELPING HANDS CARE HOME LTD T/A GOODWOOD ORCHARDS&&SSAROE40251,Residential,2041.71,06/04/2020
HERITAGE CARE&&SSAROE929,Nursing,6681.08,06/04/2020
HERITAGE CARE&&SSAROE929,Private Contractors,6681.08,06/04/2020
HERITAGE CARE&&SSAROE929,Nursing,3166.8,06/04/2020
HERITAGE CARE&&SSAROE929,Private Contractors,3166.8,06/04/2020
HERITAGE CARE&&SUPL1682,Supported Living,3194.1,17/04/2020
Her Majestys Courts & Tribunals Service,Personal Accounts - Other,811.15,16/04/2020
HEROIC CARE LTD T/A JUBILEE VILLA&&SSAROE749,Residential,-19076.2,06/04/2020
HEROIC CARE LTD T/A JUBILEE VILLA&&SSAROE749,Residential,-19076.2,06/04/2020
HEROIC CARE LTD T/A JUBILEE VILLA&&SSAROE749,Residential,-19076.2,06/04/2020
HEROIC CARE LTD T/A JUBILEE VILLA&&SSAROE749,Residential,-9538.1,06/04/2020
HEROIC CARE LTD T/A JUBILEE VILLA&&SSAROE749,Residential,-19076.2,06/04/2020
HEROIC CARE LTD T/A JUBILEE VILLA&&SSAROE749,Residential,104919.1,06/04/2020
HEROIC CARE LTD T/A JUBILEE VILLA&&SSAROE749,Residential,-19076.2,06/04/2020
HEROIC CARE LTD T/A JUBILEE VILLA&&SSAROE749,Residential,-19076.2,06/04/2020
HEROIC CARE LTD T/A JUBILEE VILLA&&SSAROE749,Residential,-19076.2,06/04/2020
HEROIC CARE LTD T/A JUBILEE VILLA&&SSAROE749,Residential,17163.07,06/04/2020
HEROIC CARE LTD T/A JUBILEE VILLA&&SSAROE749,Residential,-19076.2,06/04/2020
HEROIC CARE LTD T/A JUBILEE VILLA&&SSAROE749,Residential,-19076.2,06/04/2020
HEROIC CARE LTD T/A JUBILEE VILLA&&SSAROE749,Residential,19076.2,06/04/2020
HEROIC CARE LTD T/A JUBILEE VILLA&&SSAROE749,Residential,-19076.2,06/04/2020
HEROIC CARE LTD T/A JUBILEE VILLA&&SSAROE749,Residential,114457.2,06/04/2020
HEROIC CARE LTD T/A JUBILEE VILLA&&SSAROE749,Residential,-19076.2,06/04/2020
HEROIC CARE LTD T/A JUBILEE VILLA&&SSAROE749,Residential,-19076.2,06/04/2020
HEROIC CARE LTD T/A JUBILEE VILLA&&SSAROE749,Residential,8129.85,06/04/2020
HERONS LODGE&&SSAROE433,Residential,-4728.12,06/04/2020
HERONS LODGE&&SSAROE433,Residential,-4728.12,06/04/2020
HERONS LODGE&&SSAROE433,Residential,-4728.12,06/04/2020
HERONS LODGE&&SSAROE433,Residential,-2364.06,06/04/2020
HERONS LODGE&&SSAROE433,Residential,-4728.12,06/04/2020
HERONS LODGE&&SSAROE433,Residential,25784.66,06/04/2020
HERONS LODGE&&SSAROE433,Residential,-4728.12,06/04/2020
HERONS LODGE&&SSAROE433,Residential,-4728.12,06/04/2020
HERONS LODGE&&SSAROE433,Residential,-4728.12,06/04/2020
HERONS LODGE&&SSAROE433,Residential,3181.23,06/04/2020
HERONS LODGE&&SSAROE433,Residential,-4728.12,06/04/2020
HERONS LODGE&&SSAROE433,Residential,-4728.12,06/04/2020
HERONS LODGE&&SSAROE433,Residential,-4728.12,06/04/2020
HERONS LODGE&&SSAROE433,Residential,28128.72,06/04/2020
HERONS LODGE&&SSAROE433,Residential,-4728.12,06/04/2020
HERONS LODGE&&SSAROE433,Residential,-4728.12,06/04/2020
HERONS LODGE&&SSAROE433,Residential,6195.01,06/04/2020
Hexagon Care Services Ltd,Private Contractors,16828.57,20/04/2020
Hexagon Care Services Ltd,Private Contractors,13130.71,09/04/2020
HFT (CROMWELL CRESCENT)&&SSARO3174,Residential,4374.89,06/04/2020
HFT (CROMWELL CRESCENT)&&SSARO3174,Residential,2074.39,06/04/2020
HF TRUST - RECEIPTS T/A THE CORE&&CLCD2132,Payments in Advance,1630,17/04/2020
HF TRUST - RECEIPTS T/A THE CORE&&CLCD2132,Day / CLC Services,813.4,17/04/2020
HICARE LTD&&SSAROE438,Residential,1552.57,06/04/2020
HICARE LTD&&SSAROE438,Residential,735.43,06/04/2020
HICARE LTD&&SSAROE438,Residential,2931.43,06/04/2020
HICARE LTD&&SSAROE438,Residential,1388.57,06/04/2020
Higham On The Hill CE Primary School Academy,Payment to Ext SEN Providers,1034,24/04/2020
Highcliffe Primary School Academy,Payment to Ext SEN Providers,4467,24/04/2020
Highfields Associates Ltd,S.E.N. Taxi Hire,577.2,29/04/2020
Highfields Associates Ltd,S.E.N. Taxi Hire,972,29/04/2020
Hinckley Academy & John Cleveland Sixth Form Centre,Payment to Ext SEN Providers,5635,24/04/2020
Hinckley & Bosworth Borough Council,Other Expenditure,1440,15/04/2020
Hinckley & Bosworth Borough Council,Electricity,672.26,14/04/2020
Hinckley & Bosworth Borough Council,Gas,672.26,14/04/2020
Hinckley & Bosworth Borough Council,Electricity,550.32,03/04/2020
Hinckley & Bosworth Borough Council,Electricity,554.33,14/04/2020
Hinckley & Bosworth Borough Council,Gas,554.33,14/04/2020
Hinckley & Bosworth Borough Council,Personal Accounts - Other,787.99,16/04/2020
Hinckley & Bosworth Community Transport,Minimum Cost Contracts,12671.25,17/04/2020
Hinckley Parks Primary School (Owls Academy Trust),Payment to Ext SEN Providers,3677,24/04/2020
REDACTED PERSONAL DATA,Residential,3200.46,06/04/2020
REDACTED PERSONAL DATA,Residential,1515.99,06/04/2020
HOLLYBANK TRUST&&SSAROE756,Residential,3372.54,06/04/2020
HOLLYBANK TRUST&&SSAROE756,Residential,1597.51,06/04/2020
HOLMWOOD CARE LTD&&SSARO3282,Residential,1764.29,06/04/2020
HOLMWOOD CARE LTD&&SSARO3282,Residential,835.71,06/04/2020
Homefield College Ltd,Payment to Ext SEN Providers,32816,06/04/2020
Homefield College Ltd,Payment to Ext SEN Providers,1635,03/04/2020
HOMEFIELD COLLEGE LTD&&SSAROE40389,Residential,1973.29,06/04/2020
HOMEFIELD COLLEGE LTD&&SSAROE40389,Residential,934.71,06/04/2020
HOMEFIELD COLLEGE LTD&&SSAROE40389,Residential,2525.51,06/04/2020
HOMEFIELD COLLEGE LTD&&SSAROE40389,Residential,1196.29,06/04/2020
HOMEFIELD&&SSARO3168,Nursing,3130.08,06/04/2020
HOMEFIELD&&SSARO3168,Private Contractors,3130.08,06/04/2020
HOMEFIELD&&SSARO3168,Nursing,1482.67,06/04/2020
HOMEFIELD&&SSARO3168,Private Contractors,1482.67,06/04/2020
HOME FROM HOME RESIDENTIAL CARE LTD&&SSAROE421,Residential,3143.14,06/04/2020
HOME FROM HOME RESIDENTIAL CARE LTD&&SSAROE421,Residential,1488.86,06/04/2020
Hope House School,Payment to Ext SEN Providers,21757,30/04/2020
HOPSCOTCH SOLUTIONS LTD&&SSARO2119,Residential,12028.38,06/04/2020
HOPSCOTCH SOLUTIONS LTD&&SSARO2119,Residential,5697.66,06/04/2020
Hopwells Ltd,Provisions,-1371.95,27/04/2020
Horizon Care & Education Group Ltd,Payment to Ext SEN Providers,12350,27/04/2020
Horizon Care & Education Group Ltd,Payment to Ext SEN Providers,15600,27/04/2020
Horizon Care & Education Group Ltd,Payment to Ext SEN Providers,13000,27/04/2020
Horizon Care & Education Group Ltd,Payment to Ext SEN Providers,13000,27/04/2020
Horizon Care & Education Group Ltd,Payment to Ext SEN Providers,12184.9,27/04/2020
Horizon Care & Education Group Ltd,Payment to Ext SEN Providers,12184.9,27/04/2020
Horizon Care & Education Group Ltd,Payment to Ext SEN Providers,12184.9,27/04/2020
Horizon Care & Education Group Ltd,Payment to Ext SEN Providers,12184.9,27/04/2020
Horizon Care & Education Group Ltd,Payment to Ext SEN Providers,12184.9,27/04/2020
Horizon Care & Education Group Ltd,Payment to Ext SEN Providers,13000,27/04/2020
Horizon Care & Education Group Ltd,Payment to Ext SEN Providers,13000,27/04/2020
Horizon Care & Education Group Ltd,Payment to Ext SEN Providers,13000,27/04/2020
Horizon Care & Education Group Ltd,Payment to Ext SEN Providers,13000,27/04/2020
Horizon Care & Education Group Ltd,Private Contractors,3625,28/04/2020
Horizon Care & Education Group Ltd,Payment to Ext SEN Providers,-1300,03/04/2020
Horizon Care & Education Group Ltd,Payment to Ext SEN Providers,1300,03/04/2020
Horizon Care & Education Group Ltd,Private Contractors,-2516,02/04/2020
Horizon Care & Education Group Ltd,Private Contractors,1000,08/04/2020
Horizon Care & Education Group Ltd,Private Contractors,1500,08/04/2020
Horizon Care & Education Group Ltd,Payment to Ext SEN Providers,6000,03/04/2020
Horizon Care & Education Group Ltd,Payment to Ext SEN Providers,13000,27/04/2020
Horizon Care & Education Group Ltd,Private Contractors,12400,02/04/2020
Horizon Care & Education Group Ltd,Private Contractors,12400,02/04/2020
Horizon Care & Education Group Ltd,Private Contractors,14698.34,02/04/2020
Horizon Care & Education Group Ltd,Private Contractors,14698.34,02/04/2020
Horizon Care & Education Group Ltd,Private Contractors,14698.34,02/04/2020
Horizon Care & Education Group Ltd,Private Contractors,12400,02/04/2020
Horizon Care & Education Group Ltd,Private Contractors,12400,02/04/2020
Horizon Care & Education Group Ltd,Private Contractors,11587.62,02/04/2020
Horizon Care & Education Group Ltd,Private Contractors,16328.01,02/04/2020
Horizon Care & Education Group Ltd,Private Contractors,12400,02/04/2020
Horizon Care & Education Group Ltd,Private Contractors,14698.34,02/04/2020
Horizon Care & Education Group Ltd,Private Contractors,12400,02/04/2020
Horizon Care & Education Group Ltd,Private Contractors,12400,02/04/2020
Horizon Care & Education Group Ltd,Private Contractors,12400,02/04/2020
Horizon Care & Education Group Ltd,Private Contractors,12400,02/04/2020
Horizon Care & Education Group Ltd,Private Contractors,-10400,02/04/2020
Horizon Care & Education Group Ltd,Payment to Ext SEN Providers,5000,27/04/2020
Horizon Care & Education Group Ltd,Payment to Ext SEN Providers,13000,27/04/2020
Horizon Care & Education Group Ltd,Payment to Ext SEN Providers,-3090,02/04/2020
Horizon Care & Education Group Ltd,Payment to Ext SEN Providers,-12184.9,27/04/2020
Horizon Care & Education Group Ltd,Payment to Ext SEN Providers,-12184.9,27/04/2020
Horizon Care & Education Group Ltd,Payment to Ext SEN Providers,-4686.5,27/04/2020
Horizon Care & Education Group Ltd,Payment to Ext SEN Providers,-6695,27/04/2020
Horizon Care & Education Group Ltd,Payment to Ext SEN Providers,-2575,27/04/2020
Horizon Care & Education Group Ltd,Private Contractors,3154.25,23/04/2020
Horizon Care & Education Group Ltd,Private Contractors,1000,30/04/2020
Horizon Care & Education Group Ltd,Private Contractors,650,30/04/2020
Horizon Care & Education Group Ltd,Private Contractors,650,30/04/2020
Horizon Care & Education Group Ltd,Private Contractors,12000,23/04/2020
Horizon Care & Education Group Ltd,Private Contractors,14224.2,23/04/2020
Horizon Care & Education Group Ltd,Private Contractors,14224.2,23/04/2020
Horizon Care & Education Group Ltd,Private Contractors,14224.2,23/04/2020
Horizon Care & Education Group Ltd,Private Contractors,12000,23/04/2020
Horizon Care & Education Group Ltd,Private Contractors,12000,23/04/2020
Horizon Care & Education Group Ltd,Private Contractors,11587.62,23/04/2020
Horizon Care & Education Group Ltd,Private Contractors,15801.3,23/04/2020
Horizon Care & Education Group Ltd,Private Contractors,12000,23/04/2020
Horizon Care & Education Group Ltd,Private Contractors,14224.2,23/04/2020
Horizon Care & Education Group Ltd,Private Contractors,12000,23/04/2020
Horizon Care & Education Group Ltd,Private Contractors,12000,23/04/2020
Horizon Care & Education Group Ltd,Private Contractors,12000,23/04/2020
Horizon Care & Education Group Ltd,Private Contractors,12000,23/04/2020
Horizon Care & Education Group Ltd,Payment to Ext SEN Providers,780,30/04/2020
Horizon Care & Education Group Ltd,Private Contractors,-12497.96,27/04/2020
Horizon Care & Education Group Ltd,Private Contractors,-3225.28,27/04/2020
Horizon Care & Education Group Ltd,Private Contractors,-11519.97,27/04/2020
REDACTED PERSONAL DATA,Payments to Foster Parents,1015,03/04/2020
Hospice Hope,Grants,3000,02/04/2020
HR CARE HOMES LTD&&SSARO1363,Residential,3361.07,06/04/2020
HR CARE HOMES LTD&&SSARO1363,Residential,1592.09,06/04/2020
REDACTED PERSONAL DATA,Residential,1505.94,06/04/2020
REDACTED PERSONAL DATA,Residential,713.34,06/04/2020
HUMAN SUPPORT GROUP (EXTRA CARE)&&ISHC5052,Payments in Advance,71630,17/04/2020
HUMAN SUPPORT GROUP (EXTRA CARE)&&ISHC5052,Home Care / Domiciliary,19186.98,17/04/2020
Humphrey Perkins School Academy,Payment to Ext SEN Providers,4880,24/04/2020
HUNTERS LODGE RETIREMENT HOME LTD&&SSAROE40396,Residential,-6074.04,06/04/2020
HUNTERS LODGE RETIREMENT HOME LTD&&SSAROE40396,Residential,6074.04,06/04/2020
HUNTERS LODGE RETIREMENT HOME LTD&&SSAROE40396,Residential,-6074.04,06/04/2020
HUNTERS LODGE RETIREMENT HOME LTD&&SSAROE40396,Residential,6074.04,06/04/2020
HUNTERS LODGE RETIREMENT HOME LTD&&SSAROE40396,Residential,-9834.04,06/04/2020
HUNTERS LODGE RETIREMENT HOME LTD&&SSAROE40396,Residential,9834.04,06/04/2020
HUNTERS LODGE RETIREMENT HOME LTD&&SSAROE40396,Residential,-6445.66,06/04/2020
HUNTERS LODGE RETIREMENT HOME LTD&&SSAROE40396,Residential,-12891.32,06/04/2020
HUNTERS LODGE RETIREMENT HOME LTD&&SSAROE40396,Residential,74466.26,06/04/2020
HUNTERS LODGE RETIREMENT HOME LTD&&SSAROE40396,Residential,-12891.32,06/04/2020
HUNTERS LODGE RETIREMENT HOME LTD&&SSAROE40396,Residential,-15177.03,06/04/2020
HUNTERS LODGE RETIREMENT HOME LTD&&SSAROE40396,Residential,-13577.03,06/04/2020
HUNTERS LODGE RETIREMENT HOME LTD&&SSAROE40396,Residential,11096.23,06/04/2020
HUNTERS LODGE RETIREMENT HOME LTD&&SSAROE40396,Residential,-12891.32,06/04/2020
HUNTERS LODGE RETIREMENT HOME LTD&&SSAROE40396,Residential,-1745.71,06/04/2020
HUNTERS LODGE RETIREMENT HOME LTD&&SSAROE40396,Residential,1745.72,06/04/2020
HUNTERS LODGE RETIREMENT HOME LTD&&SSAROE40396,Residential,-3567.56,06/04/2020
HUNTERS LODGE RETIREMENT HOME LTD&&SSAROE40396,Residential,3567.56,06/04/2020
HUNTERS LODGE RETIREMENT HOME LTD&&SSAROE40396,Residential,-6074.04,06/04/2020
HUNTERS LODGE RETIREMENT HOME LTD&&SSAROE40396,Residential,6074.04,06/04/2020
HUNTERS LODGE RETIREMENT HOME LTD&&SSAROE40396,Residential,-914.29,06/04/2020
HUNTERS LODGE RETIREMENT HOME LTD&&SSAROE40396,Residential,-6074.04,06/04/2020
HUNTERS LODGE RETIREMENT HOME LTD&&SSAROE40396,Residential,6074.04,06/04/2020
HUNTERS LODGE RETIREMENT HOME LTD&&SSAROE40396,Residential,-6074.04,06/04/2020
HUNTERS LODGE RETIREMENT HOME LTD&&SSAROE40396,Residential,6074.04,06/04/2020
HUNTERS LODGE RETIREMENT HOME LTD&&SSAROE40396,Residential,-2402.15,06/04/2020
HUNTERS LODGE RETIREMENT HOME LTD&&SSAROE40396,Residential,2911.29,06/04/2020
HUNTERS LODGE RETIREMENT HOME LTD&&SSAROE40396,Residential,5256.13,06/04/2020
HUNTERS LODGE RETIREMENT HOME LTD&&SSAROE40396,Residential,-1942.86,06/04/2020
HUNTERS LODGE RETIREMENT HOME LTD&&SSAROE40396,Residential,5828.57,06/04/2020
HUSKARDS NEW CARE LTD&&SSARO1910,Private Contractors,4736.42,06/04/2020
HUSKARDS NEW CARE LTD&&SSARO1910,Residential,4736.42,06/04/2020
HUSKARDS NEW CARE LTD&&SSARO1910,Private Contractors,2243.58,06/04/2020
HUSKARDS NEW CARE LTD&&SSARO1910,Residential,2243.58,06/04/2020
Ibstock Community College Academy,Payment to Ext SEN Providers,1928,24/04/2020
I Care Community Meals,Private Contractors,1486.85,03/04/2020
I Care Community Meals,Private Contractors,1277.25,23/04/2020
IDEAL CARE HOMES LTD T/AS MOUNTVIEW CARE HOME&&SSARO3374,Residential,-7800,06/04/2020
IDEAL CARE HOMES LTD T/AS MOUNTVIEW CARE HOME&&SSARO3374,Residential,-7800,06/04/2020
IDEAL CARE HOMES LTD T/AS MOUNTVIEW CARE HOME&&SSARO3374,Residential,58500,06/04/2020
IDEAL CARE HOMES LTD T/AS MOUNTVIEW CARE HOME&&SSARO3374,Residential,-7800,06/04/2020
IDEAL CARE HOMES LTD T/AS MOUNTVIEW CARE HOME&&SSARO3374,Residential,-5800,06/04/2020
IDEAL CARE HOMES LTD T/AS MOUNTVIEW CARE HOME&&SSARO3374,Residential,-7800,06/04/2020
IDEAL CARE HOMES LTD T/AS MOUNTVIEW CARE HOME&&SSARO3374,Residential,-7800,06/04/2020
IDEAL CARE HOMES LTD T/AS MOUNTVIEW CARE HOME&&SSARO3374,Residential,-7800,06/04/2020
IDEAL CARE HOMES LTD T/AS MOUNTVIEW CARE HOME&&SSARO3374,Residential,-7800,06/04/2020
IDEAL CARE HOMES LTD T/AS MOUNTVIEW CARE HOME&&SSARO3374,Residential,950,06/04/2020
IDEAL CARE HOMES LTD T/AS MOUNTVIEW CARE HOME&&SSARO3374,Residential,5292.85,06/04/2020
IDEAL CARE HOMES LTD T/AS MOUNTVIEW CARE HOME&&SSARO3374,Residential,-11600,06/04/2020
IDEAL CARE HOMES LTD T/AS MOUNTVIEW CARE HOME&&SSARO3374,Residential,-7800,06/04/2020
IDEAL CARE HOMES LTD T/AS MOUNTVIEW CARE HOME&&SSARO3374,Residential,7800,06/04/2020
IDEAL CARE HOMES LTD T/AS MOUNTVIEW CARE HOME&&SSARO3374,Residential,-7800,06/04/2020
IDEAL CARE HOMES LTD T/AS MOUNTVIEW CARE HOME&&SSARO3374,Residential,7800,06/04/2020
IDEAL CARE HOMES LTD T/AS MOUNTVIEW CARE HOME&&SSARO3374,Residential,-542.85,06/04/2020
IDEAL CARE HOMES LTD T/AS MOUNTVIEW CARE HOME&&SSARO3374,Residential,6242.86,06/04/2020
IDEAL CARE HOMES LTD T/AS MOUNTVIEW CARE HOME&&SSARO3374,Residential,-7800,06/04/2020
IDEAL CARE HOMES LTD T/AS MOUNTVIEW CARE HOME&&SSARO3374,Residential,7800,06/04/2020
IDEAL CARE HOMES LTD T/AS MOUNTVIEW CARE HOME&&SSARO3374,Residential,-7800,06/04/2020
IDEAL CARE HOMES LTD T/AS MOUNTVIEW CARE HOME&&SSARO3374,Residential,15600,06/04/2020
IDEAL CARE HOMES LTD T/AS MOUNTVIEW CARE HOME&&SSARO3374,Residential,2507.15,06/04/2020
IDEAL CAREHOMES NUMBER 1 LTD T/A COPPICE LODGE&&SSARO3303,Residential,1642.14,06/04/2020
IDEAL CAREHOMES NUMBER 1 LTD T/A COPPICE LODGE&&SSARO3303,Residential,777.86,06/04/2020
IDEAL CARE HOMES (NUMBER ONE) LTD&&SSARO2786,Residential,6543.88,06/04/2020
IDEAL CARE HOMES (NUMBER ONE) LTD&&SSARO2786,Residential,3099.72,06/04/2020
REDACTED PERSONAL DATA,Other Transfer Payments,666,03/04/2020
REDACTED PERSONAL DATA,S.E.N. Taxi Hire,2501.64,27/04/2020
REDACTED PERSONAL DATA,S.E.N. Taxi Hire,2478,27/04/2020
REDACTED PERSONAL DATA,S.E.N. Taxi Hire,1980,27/04/2020
Inchcape Fleet Solutions Ltd,Operational Leasing,1133.21,30/04/2020
Inn Farm Private Day Nursery,Other Transfer Payments,2718.26,16/04/2020
Inn Farm Private Day Nursery,Other Transfer Payments,3648.19,24/04/2020
Inspirations Leicestershire Ltd,Private Contractors,11220,15/04/2020
Inspirations Leicestershire Ltd,Private Contractors,15810,15/04/2020
Inspirations Leicestershire Ltd,Private Contractors,14790,15/04/2020
Instalaw Solicitors,Provisions Expenditure,12500,20/04/2020
Integrated Services Programme,Other Agency & Cont Services,5567.15,30/04/2020
Integrated Services Programme,Other Agency & Cont Services,7067.15,30/04/2020
REDACTED PERSONAL DATA,S.E.N. Taxi Hire,759,16/04/2020
REDACTED PERSONAL DATA,S.E.N. Taxi Hire,2068,16/04/2020
REDACTED PERSONAL DATA,S.E.N. Taxi Hire,649,16/04/2020
REDACTED PERSONAL DATA,Recharge of Pooled Transp Cost,869,16/04/2020
Iraad Taxis Ltd,S.E.N. Taxi Hire,2425.5,17/04/2020
Iraad Taxis Ltd,S.E.N. Taxi Hire,1093.95,17/04/2020
Island Project School,Payment to Ext SEN Providers,22543.27,30/04/2020
Island Project School,Payment to Ext SEN Providers,16083.11,30/04/2020
Ivanhoe College Specialist Technology Academy,Payment to Ext SEN Providers,8986,24/04/2020
REDACTED PERSONAL DATA,Residential,1158,06/04/2020
REDACTED PERSONAL DATA,Residential,35383.4,06/04/2020
REDACTED PERSONAL DATA,Residential,16760.6,06/04/2020
REDACTED PERSONAL DATA,Other Transfer Payments,500,17/04/2020
REDACTED PERSONAL DATA,Residential,1740.78,06/04/2020
REDACTED PERSONAL DATA,Residential,824.58,06/04/2020
REDACTED PERSONAL DATA,Sales-Trading,680,14/04/2020
REDACTED PERSONAL DATA,Sales-Trading,600,17/04/2020
REDACTED PERSONAL DATA,Sales-Trading,680,21/04/2020
REDACTED PERSONAL DATA,Sales-Trading,680,21/04/2020
Jani Homes Nottingham Ltd,Other Transfer Payments,2783.2,09/04/2020
Jani Homes Nottingham Ltd,Other Agency & Cont Services,7291.2,06/04/2020
REDACTED PERSONAL DATA,S.E.N. Taxi Hire,674.25,24/04/2020
JAY Fostering Ltd,Other Agency & Cont Services,2665.25,30/04/2020
JAY Fostering Ltd,Other Agency & Cont Services,5019.38,30/04/2020
JAY Fostering Ltd,Other Agency & Cont Services,3090.2,30/04/2020
JAY Fostering Ltd,Other Agency & Cont Services,2873.27,30/04/2020
JAY Fostering Ltd,Other Agency & Cont Services,3072.13,30/04/2020
JAY Fostering Ltd,Other Agency & Cont Services,3252.85,30/04/2020
JAY Fostering Ltd,Other Agency & Cont Services,3252.85,30/04/2020
JAY Fostering Ltd,Other Agency & Cont Services,3071.15,30/04/2020
JAY Fostering Ltd,Other Agency & Cont Services,3252.85,30/04/2020
JAY Fostering Ltd,Other Agency & Cont Services,3238.42,30/04/2020
JAY Fostering Ltd,Other Agency & Cont Services,3338.57,30/04/2020
JAY Fostering Ltd,Other Agency & Cont Services,3072.13,30/04/2020
JAY Fostering Ltd,Other Agency & Cont Services,3157.4,30/04/2020
JAY Fostering Ltd,Other Agency & Cont Services,2855.42,30/04/2020
JAY Fostering Ltd,Other Agency & Cont Services,5082.85,30/04/2020
JAY Fostering Ltd,Other Agency & Cont Services,2347.12,30/04/2020
JAY Fostering Ltd,Other Agency & Cont Services,3072.13,30/04/2020
JAY Fostering Ltd,Other Agency & Cont Services,3072.13,30/04/2020
JAY Fostering Ltd,Other Agency & Cont Services,3090.2,30/04/2020
JAY Fostering Ltd,Other Agency & Cont Services,3090.2,30/04/2020
JAY Fostering Ltd,Other Agency & Cont Services,3238.42,30/04/2020
JAY Fostering Ltd,Other Agency & Cont Services,4332.85,30/04/2020
JAY Fostering Ltd,Other Agency & Cont Services,3072.13,30/04/2020
JAY Fostering Ltd,Other Agency & Cont Services,3338.57,30/04/2020
JAY Fostering Ltd,Other Agency & Cont Services,3072.13,30/04/2020
JAY Fostering Ltd,Other Agency & Cont Services,3167.15,30/04/2020
JAY Fostering Ltd,Other Agency & Cont Services,3238.42,30/04/2020
JAY Fostering Ltd,Other Agency & Cont Services,3238.42,30/04/2020
JAY Fostering Ltd,Other Agency & Cont Services,3155.27,30/04/2020
JAY Fostering Ltd,Other Agency & Cont Services,5198.57,30/04/2020
JAY Fostering Ltd,Other Agency & Cont Services,3338.57,30/04/2020
JAY Fostering Ltd,Other Agency & Cont Services,3155.27,30/04/2020
JAY Fostering Ltd,Other Agency & Cont Services,3387.9,30/04/2020
JAY Fostering Ltd,Other Agency & Cont Services,3252.85,30/04/2020
JAY Fostering Ltd,Other Agency & Cont Services,3167.15,30/04/2020
JAY Fostering Ltd,Other Agency & Cont Services,3171.64,30/04/2020
JAY Fostering Ltd,Other Agency & Cont Services,3100.33,30/04/2020
JAY Fostering Ltd,Other Agency & Cont Services,3238.42,30/04/2020
JAY Fostering Ltd,Other Agency & Cont Services,3072.13,30/04/2020
JAY Fostering Ltd,Other Agency & Cont Services,3171.65,30/04/2020
JAY Fostering Ltd,Other Agency & Cont Services,3167.15,30/04/2020
JAY Fostering Ltd,Other Agency & Cont Services,5040,30/04/2020
JAY Fostering Ltd,Other Agency & Cont Services,3252.85,30/04/2020
REDACTED PERSONAL DATA,R&M of Vehicles-Non Contract,569.76,27/04/2020
JCS Online Resources Ltd,Books,4117.5,07/04/2020
REDACTED PERSONAL DATA,Nursing,2100,02/04/2020
REDACTED PERSONAL DATA,Nursing,11105.5,06/04/2020
REDACTED PERSONAL DATA,Private Contractors,11105.5,06/04/2020
REDACTED PERSONAL DATA,Residential,11105.5,06/04/2020
REDACTED PERSONAL DATA,Residential,17516.05,06/04/2020
REDACTED PERSONAL DATA,Nursing,5260.5,06/04/2020
REDACTED PERSONAL DATA,Private Contractors,5260.5,06/04/2020
REDACTED PERSONAL DATA,Residential,5260.5,06/04/2020
REDACTED PERSONAL DATA,Residential,8297.11,06/04/2020
Jigsaw Psychology Ltd,Other Agency & Cont Services,1112.5,28/04/2020
Jigsaw Therapeutic Care Ltd,Private Contractors,-16000,23/04/2020
Jigsaw Therapeutic Care Ltd,Personal Accounts - Other,16000,23/04/2020
REDACTED PERSONAL DATA,Grants,7380,01/04/2020
REDACTED PERSONAL DATA,Other Premises Expenses,3795.9,07/04/2020
John Ferneley College,Payment to Ext SEN Providers,12000,24/04/2020
REDACTED PERSONAL DATA,Control Accounts,695.64,20/04/2020
REDACTED PERSONAL DATA,Personal Accounts - Govt Depts,1747.2,24/04/2020
REDACTED PERSONAL DATA,Recharge of Pooled Transp Cost,1747.2,24/04/2020
REDACTED PERSONAL DATA,Minimum Cost Contracts,15850,17/04/2020
REDACTED PERSONAL DATA,Payments in Advance,2540,17/04/2020
REDACTED PERSONAL DATA,Day / CLC Services,1111.04,17/04/2020
REDACTED PERSONAL DATA,Day / CLC Services,555.52,17/04/2020
John Wycliffe Primary School (Inspiring Primaries Academy Trust),Payment to Ext SEN Providers,2301,24/04/2020
REDACTED PERSONAL DATA,Home to Sch Trans - Buses,1177.35,23/04/2020
REDACTED PERSONAL DATA,Recharge of Pooled Transp Cost,1848,23/04/2020
REDACTED PERSONAL DATA,Sales-Trading,680,21/04/2020
REDACTED PERSONAL DATA,Other Transfer Payments,2328.29,03/04/2020
REDACTED PERSONAL DATA,Other Agency & Cont Services,6164.58,03/04/2020
REDACTED PERSONAL DATA,Other Agency & Cont Services,6164.58,03/04/2020
JR Education Ltd,Payment to Ext SEN Providers,265850,27/04/2020
REDACTED PERSONAL DATA,S.E.N. Taxi Hire,3746.16,16/04/2020
REDACTED PERSONAL DATA,S.E.N. Taxi Hire,1731.51,16/04/2020
REDACTED PERSONAL DATA,S.E.N. Taxi Hire,1916.42,16/04/2020
REDACTED PERSONAL DATA,Recharge of Pooled Transp Cost,1894.66,16/04/2020
REDACTED PERSONAL DATA,S.E.N. Taxi Hire,1611.51,16/04/2020
Jubilee Taxis Ltd,Recharge of Pooled Transp Cost,858.6,24/04/2020
Jubilee Taxis Ltd,S.E.N. Taxi Hire,1142.4,24/04/2020
REDACTED PERSONAL DATA,Sales-Trading,535,14/04/2020
REDACTED PERSONAL DATA,S.E.N. Taxi Hire,1960,29/04/2020
REDACTED PERSONAL DATA,Sales-Trading,703.94,21/04/2020
REDACTED PERSONAL DATA,Other Transfer Payments,668.63,24/04/2020
Julie Leather Clinical Psychology Consultancy Ltd,Advertising,3266.64,15/04/2020
REDACTED PERSONAL DATA,Other Transfer Payments,600,03/04/2020
REDACTED PERSONAL DATA,S.E.N. Taxi Hire,1650,01/04/2020
REDACTED PERSONAL DATA,S.E.N. Taxi Hire,653.4,27/04/2020
REDACTED PERSONAL DATA,Residential,592,03/04/2020
KCH Barristers Ltd,Advertising,720,17/04/2020
KCH Barristers Ltd,Advertising,600,06/04/2020
KCH Barristers Ltd,Advertising,1200,24/04/2020
KEENGLEN CARE HOMES LTD&&SSARO3220,Residential,13100.5,06/04/2020
KEENGLEN CARE HOMES LTD&&SSARO3220,Residential,6205.5,06/04/2020
Kegworth Community Library,Voluntary Associations,661,09/04/2020
Key2 Futures Ltd,Other Agency & Cont Services,3380.47,02/04/2020
Key2 Futures Ltd,Private Contractors,3613.61,30/04/2020
Key2 Futures Ltd,Other Agency & Cont Services,3613.61,30/04/2020
Key2 Futures Ltd,Other Transfer Payments,3613.61,30/04/2020
Key2 Futures Ltd,Other Agency & Cont Services,3613.61,30/04/2020
Key2 Futures Ltd,Private Contractors,3613.61,30/04/2020
Key2 Futures Ltd,Private Contractors,3613.61,30/04/2020
Key2 Futures Ltd,Private Contractors,3613.61,30/04/2020
Key2 Futures Ltd,Other Agency & Cont Services,3613.61,30/04/2020
Key2 Futures Ltd,Other Agency & Cont Services,3613.61,30/04/2020
Key2 Futures Ltd,Other Agency & Cont Services,3613.61,30/04/2020
Keys PCE Ltd,Payment to Ext SEN Providers,5253.6,22/04/2020
Keys PCE Ltd,Private Contractors,22585.72,20/04/2020
Kibworth CE Primary School Academy T/A Discovery Schools Academy Trust,Children&Families Spprt Servs,1101.3,03/04/2020
Kibworth CE Primary School Academy T/A Discovery Schools Academy Trust,Payment to Ext SEN Providers,5041,24/04/2020
Kibworth High School Academy,Payment to Ext SEN Providers,8205,24/04/2020
KIBWORTH KNOLL LTD&&SSAROE76184,Residential,1965.15,06/04/2020
KIBWORTH KNOLL LTD&&SSAROE76184,Residential,8932.71,06/04/2020
KIBWORTH KNOLL LTD&&SSAROE76184,Residential,930.85,06/04/2020
KIBWORTH KNOLL LTD&&SSAROE76184,Residential,4231.29,06/04/2020
Kids OT Works Ltd,Other Expenditure,614.4,03/04/2020
Kinchbus Ltd,Minimum Cost Contracts,53458.91,03/04/2020
Kinchbus Ltd,Minimum Cost Contracts,10908.9,03/04/2020
Kinchbus Ltd,Minimum Cost Contracts,78296.53,30/04/2020
Kinchbus Ltd,Minimum Cost Contracts,13947.01,30/04/2020
KINGLEY PARTNERSHIP LTD T/A KINGLEY HOUSE&&SSARO1232,Residential,-3297.06,06/04/2020
KINGLEY PARTNERSHIP LTD T/A KINGLEY HOUSE&&SSARO1232,Residential,3297.06,06/04/2020
KINGLEY PARTNERSHIP LTD T/A KINGLEY HOUSE&&SSARO1232,Residential,-3297.06,06/04/2020
KINGLEY PARTNERSHIP LTD T/A KINGLEY HOUSE&&SSARO1232,Residential,3297.06,06/04/2020
KINGLEY PARTNERSHIP LTD T/A KINGLEY HOUSE&&SSARO1232,Residential,-2658.86,06/04/2020
KINGLEY PARTNERSHIP LTD T/A KINGLEY HOUSE&&SSARO1232,Residential,2057,06/04/2020
KINGLEY PARTNERSHIP LTD T/A KINGLEY HOUSE&&SSARO1232,Residential,-3297.06,06/04/2020
KINGLEY PARTNERSHIP LTD T/A KINGLEY HOUSE&&SSARO1232,Residential,33997.57,06/04/2020
KINGLEY PARTNERSHIP LTD T/A KINGLEY HOUSE&&SSARO1232,Residential,-3340.53,06/04/2020
KINGLEY PARTNERSHIP LTD T/A KINGLEY HOUSE&&SSARO1232,Residential,-3297.06,06/04/2020
KINGLEY PARTNERSHIP LTD T/A KINGLEY HOUSE&&SSARO1232,Residential,-3297.06,06/04/2020
KINGLEY PARTNERSHIP LTD T/A KINGLEY HOUSE&&SSARO1232,Residential,-6681.06,06/04/2020
KINGLEY PARTNERSHIP LTD T/A KINGLEY HOUSE&&SSARO1232,Residential,-6681.06,06/04/2020
KINGLEY PARTNERSHIP LTD T/A KINGLEY HOUSE&&SSARO1232,Residential,13709.49,06/04/2020
KINGLEY PARTNERSHIP LTD T/A KINGLEY HOUSE&&SSARO1232,Residential,-6681.06,06/04/2020
KINGLEY PARTNERSHIP LTD T/A KINGLEY HOUSE&&SSARO1232,Residential,-3297.06,06/04/2020
KINGLEY PARTNERSHIP LTD T/A KINGLEY HOUSE&&SSARO1232,Residential,3297.06,06/04/2020
KINGLEY PARTNERSHIP LTD T/A KINGLEY HOUSE&&SSARO1232,Residential,-3297.06,06/04/2020
KINGLEY PARTNERSHIP LTD T/A KINGLEY HOUSE&&SSARO1232,Residential,3297.06,06/04/2020
KINGLEY PARTNERSHIP LTD T/A KINGLEY HOUSE&&SSARO1232,Residential,-3297.06,06/04/2020
KINGLEY PARTNERSHIP LTD T/A KINGLEY HOUSE&&SSARO1232,Residential,3297.06,06/04/2020
KINGLEY PARTNERSHIP LTD T/A KINGLEY HOUSE&&SSARO1232,Residential,-3297.06,06/04/2020
KINGLEY PARTNERSHIP LTD T/A KINGLEY HOUSE&&SSARO1232,Residential,3297.06,06/04/2020
KINGLEY PARTNERSHIP LTD T/A KINGLEY HOUSE&&SSARO1232,Residential,6493.97,06/04/2020
KINGLY CARE PARTNERSHIP&&SSARO3198,Residential,-4635.6,06/04/2020
KINGLY CARE PARTNERSHIP&&SSARO3198,Residential,-4635.6,06/04/2020
KINGLY CARE PARTNERSHIP&&SSARO3198,Residential,-4635.6,06/04/2020
KINGLY CARE PARTNERSHIP&&SSARO3198,Residential,30131.4,06/04/2020
KINGLY CARE PARTNERSHIP&&SSARO3198,Residential,-2317.8,06/04/2020
KINGLY CARE PARTNERSHIP&&SSARO3198,Residential,-4635.6,06/04/2020
KINGLY CARE PARTNERSHIP&&SSARO3198,Residential,-4635.6,06/04/2020
KINGLY CARE PARTNERSHIP&&SSARO3198,Residential,-4635.6,06/04/2020
KINGLY CARE PARTNERSHIP&&SSARO3198,Residential,-4635.6,06/04/2020
KINGLY CARE PARTNERSHIP&&SSARO3198,Residential,3145.59,06/04/2020
KINGLY CARE PARTNERSHIP&&SSARO3198,Residential,-4635.6,06/04/2020
KINGLY CARE PARTNERSHIP&&SSARO3198,Residential,-4635.6,06/04/2020
KINGLY CARE PARTNERSHIP&&SSARO3198,Residential,-4635.6,06/04/2020
KINGLY CARE PARTNERSHIP&&SSARO3198,Residential,-4635.6,06/04/2020
KINGLY CARE PARTNERSHIP&&SSARO3198,Residential,-4635.6,06/04/2020
KINGLY CARE PARTNERSHIP&&SSARO3198,Residential,29303.61,06/04/2020
KINGLY CARE PARTNERSHIP&&SSARO3232,Residential,2385.96,06/04/2020
KINGLY CARE PARTNERSHIP&&SSARO3232,Residential,1130.2,06/04/2020
Kings Chambers,Advertising,1500,30/04/2020
KINGS RESIDENTIAL CARE HOMES LTD&&SSARO1726,Residential,21650.28,06/04/2020
KINGS RESIDENTIAL CARE HOMES LTD&&SSARO1726,Residential,10255.4,06/04/2020
Kingsway Primary School,Payment to Ext SEN Providers,2270,24/04/2020
KINGSWOOD LODGE&&SSAROE40284,Residential,744.43,06/04/2020
KINGSWOOD LODGE&&SSAROE40284,Residential,1158,06/04/2020
KINGSWOOD LODGE&&SSAROE40284,Residential,17433.84,06/04/2020
KINGSWOOD LODGE&&SSAROE40284,Residential,9002.59,06/04/2020
REDACTED PERSONAL DATA,Payment to Ext SEN Providers,780,15/04/2020
Kirby Cars Ltd,S.E.N. Taxi Hire,1140.48,15/04/2020
Kirby Cars Ltd,Home to Sch Trans - Buses,712.62,09/04/2020
Kirby Cars Ltd,Home to Sch Trans - Buses,763.29,09/04/2020
Kirby Cars Ltd,S.E.N. Taxi Hire,763.29,09/04/2020
Kirby Cars Ltd,S.E.N. Taxi Hire,1330.56,09/04/2020
Kirby Cars Ltd,S.E.N. Taxi Hire,513.22,09/04/2020
Kirby Cars Ltd,S.E.N. Taxi Hire,648.65,09/04/2020
KIRBY GRANGE LTD (KIRBY GRANGE RESIDENTIAL HOME)&&SSAROE40286,Residential,27756.27,06/04/2020
KIRBY GRANGE LTD (KIRBY GRANGE RESIDENTIAL HOME)&&SSAROE40286,Residential,12923.73,06/04/2020
Kirby Muxloe Primary School Academy,Payment to Ext SEN Providers,5692,24/04/2020
Kisimul Group Ltd,Payment to Ext SEN Providers,39434.5,30/04/2020
Kisimul Group Ltd,Payment to Ext SEN Providers,72884.67,30/04/2020
KISIMUL GROUP LTD&&SSARO5691,Residential,4638.55,06/04/2020
KISIMUL GROUP LTD&&SSARO5691,Residential,2197.21,06/04/2020
REDACTED PERSONAL DATA,S.E.N. Taxi Hire,2903.56,27/04/2020
Knighton Janitorial,Cleaning Materials,790.2,03/04/2020
Knighton Janitorial,Cleaning Materials,525.78,08/04/2020
KNIGHTON MANOR LTD&&SSAROE68249,Residential,1403.29,06/04/2020
KNIGHTON MANOR LTD&&SSAROE68249,Residential,664.71,06/04/2020
REDACTED PERSONAL DATA,Payments in Advance,132210,17/04/2020
REDACTED PERSONAL DATA,Home Care / Domiciliary,557.71,17/04/2020
REDACTED PERSONAL DATA,Home Care / Domiciliary,1465.89,17/04/2020
REDACTED PERSONAL DATA,Home Care / Domiciliary,1781.47,17/04/2020
REDACTED PERSONAL DATA,Home Care / Domiciliary,693.55,17/04/2020
REDACTED PERSONAL DATA,Home Care / Domiciliary,538.35,17/04/2020
REDACTED PERSONAL DATA,Home Care / Domiciliary,50837.55,17/04/2020
REDACTED PERSONAL DATA,S.E.N. Taxi Hire,4004,23/04/2020
REDACTED PERSONAL DATA,S.E.N. Taxi Hire,3300,23/04/2020
REDACTED PERSONAL DATA,Recharge of Pooled Transp Cost,1696,27/04/2020
REDACTED PERSONAL DATA,Home to Sch Trans - Buses,1524.6,09/04/2020
KRIS CARERS LTD&&ISHC3937,Payments in Advance,46800,17/04/2020
KRIS CARERS LTD&&ISHC3937,Home Care / Domiciliary,15132.26,17/04/2020
KRIS CARERS LTD&&ISHC3937,Home Care / Domiciliary,1637.14,17/04/2020
KRIS CARERS LTD&&ISHC3937,Home Care / Domiciliary,1206.9,17/04/2020
KRIS CARERS LTD&&ISHC3937,Home Care / Domiciliary,620.21,17/04/2020
KROSS INVESTEMENT LTD T/A BELTON HOUSE&&SSAROE74367,Residential,1359.86,06/04/2020
KROSS INVESTEMENT LTD T/A BELTON HOUSE&&SSAROE74367,Residential,644.14,06/04/2020
KTS Taxis,Recharge of Pooled Transp Cost,816,15/04/2020
KTS Taxis,Recharge of Pooled Transp Cost,1872,15/04/2020
Kully T/A Taxis Leicester,S.E.N. Taxi Hire,2395.8,20/04/2020
Lady Jane Grey Academy,Payment to Ext SEN Providers,1702,24/04/2020
LANGDALE HOUSE LTD (EVERDALE GRANGE LTD)&&SSARO3390,Nursing,-711,06/04/2020
LANGDALE HOUSE LTD (EVERDALE GRANGE LTD)&&SSARO3390,Private Contractors,-711,06/04/2020
LANGDALE HOUSE LTD (EVERDALE GRANGE LTD)&&SSARO3390,Residential,2385.71,06/04/2020
LANGDALE HOUSE LTD (EVERDALE GRANGE LTD)&&SSARO3390,Nursing,11053.09,06/04/2020
LANGDALE HOUSE LTD (EVERDALE GRANGE LTD)&&SSARO3390,Private Contractors,11053.09,06/04/2020
LANGDALE HOUSE LTD (EVERDALE GRANGE LTD)&&SSARO3390,Residential,11053.09,06/04/2020
LANGDALE HOUSE LTD (EVERDALE GRANGE LTD)&&SSARO3390,Residential,1578.58,06/04/2020
LANGDALE HOUSE LTD (EVERDALE GRANGE LTD)&&SSARO3390,Nursing,5235.71,06/04/2020
LANGDALE HOUSE LTD (EVERDALE GRANGE LTD)&&SSARO3390,Private Contractors,5235.71,06/04/2020
LANGDALE HOUSE LTD (EVERDALE GRANGE LTD)&&SSARO3390,Residential,5235.71,06/04/2020
LANGDALE HOUSE LTD&&SSAROE40271,Residential,31512.21,06/04/2020
LANGDALE HOUSE LTD&&SSAROE40271,Residential,2971.42,06/04/2020
LANGDALE HOUSE LTD&&SSAROE40271,Residential,14926.87,06/04/2020
LANGDALE VIEW LTD&&SSARO1356,Private Contractors,20777.89,06/04/2020
LANGDALE VIEW LTD&&SSARO1356,Residential,20777.89,06/04/2020
LANGDALE VIEW LTD&&SSARO1356,Private Contractors,5737.76,06/04/2020
LANGDALE VIEW LTD&&SSARO1356,Residential,5737.76,06/04/2020
LANGDALE VIEW LTD&&SSARO1356,Private Contractors,4196.98,06/04/2020
LANGDALE VIEW LTD&&SSARO1356,Residential,4196.98,06/04/2020
LANGDALE VIEW LTD&&SSARO1356,Residential,3200,06/04/2020
LANGDALE VIEW LTD&&SSARO1356,Residential,1142.85,06/04/2020
LANGDALE VIEW LTD&&SSARO1356,Private Contractors,9499.37,06/04/2020
LANGDALE VIEW LTD&&SSARO1356,Residential,9499.37,06/04/2020
Langmoor Primary School,Payment to Ext SEN Providers,1536,24/04/2020
Launde Primary School Academy Trust T/A Launde Primary School,Payment to Ext SEN Providers,5729,24/04/2020
Lawson West Solicitors Ltd,Other Expenditure,20000,17/04/2020
LAXTON HALL&&SSAROE58522,Residential,1693.71,06/04/2020
LAXTON HALL&&SSAROE58522,Residential,802.29,06/04/2020
LCC Ashby De La Zouch Woodcote Primary School A/C,Buildings - Operational,16500,28/04/2020
LCC Central Imprest Account,Cash in Hand of Acc Officers,2500,02/04/2020
LCC Central Imprest Account,Cash in Hand of Acc Officers,2500,09/04/2020
LCC Central Imprest Account,Cash in Hand of Acc Officers,2500,20/04/2020
LCC Customer Direct Payments A/C,Cash in Hand of Acc Officers,2243.39,02/04/2020
LCC Customer Direct Payments A/C,Cash in Hand of Acc Officers,1860.36,02/04/2020
LCC Customer Direct Payments A/C,Cash in Hand of Acc Officers,814.49,28/04/2020
LCC Customer Rep Direct Payments A/C,Cash in Hand of Acc Officers,2600,02/04/2020
LCC Customer Rep Direct Payments A/C,Cash in Hand of Acc Officers,11992.74,02/04/2020
LCC Customer Rep Direct Payments A/C,Cash in Hand of Acc Officers,1710,02/04/2020
LCC Customer Rep Direct Payments A/C,Cash in Hand of Acc Officers,2748.89,02/04/2020
LCC Customer Rep Direct Payments A/C,Cash in Hand of Acc Officers,3255.79,28/04/2020
LCC Customer Rep Direct Payments A/C,Cash in Hand of Acc Officers,1976.96,28/04/2020
LCC Customer Rep Direct Payments A/C,Cash in Hand of Acc Officers,10904.57,28/04/2020
LCC Customer Rep Direct Payments A/C,Cash in Hand of Acc Officers,5407.35,28/04/2020
LCC Customer Rep Direct Payments A/C,Cash in Hand of Acc Officers,6442.38,28/04/2020
LCC Customer Rep Direct Payments A/C,Cash in Hand of Acc Officers,6486.06,28/04/2020
LCC Leicestershire South Area Imprest,Cash in Hand of Acc Officers,1674,21/04/2020
LCC Leicestershire South Area Imprest,Other Expenditure,1674,21/04/2020
LCC Leicestershire South Area Imprest,Cash in Hand of Acc Officers,1350.78,27/04/2020
LCC Leicestershire South Area Imprest,Other Expenditure,1350.78,27/04/2020
LCC Leicestershire South Area Imprest,Cash in Hand of Acc Officers,1645.61,07/04/2020
LCC Leicestershire South Area Imprest,Other Expenditure,1645.61,07/04/2020
LCC Leicestershire South Area Imprest,Cash in Hand of Acc Officers,2258.26,15/04/2020
LCC Leicestershire South Area Imprest,Other Expenditure,2258.26,15/04/2020
LCC Managed Finances Pooled Account,Residential,1797.36,28/04/2020
LCC Managed Finances Pooled Account,Shared Lives Residential,606,27/04/2020
LCC Market Harborough Social Services Imprest A/C,Cash in Hand of Acc Officers,3224.95,23/04/2020
LCC Market Harborough Social Services Imprest A/C,Other Expenditure,3224.95,23/04/2020
LCC Melton Divisional Office Imprest A/C,Cash in Hand of Acc Officers,2055.5,24/04/2020
LCC Melton Divisional Office Imprest A/C,Other Expenditure,2055.5,24/04/2020
LCC Melton Divisional Office Imprest A/C,Cash in Hand of Acc Officers,2950.5,07/04/2020
LCC Melton Divisional Office Imprest A/C,Other Expenditure,2950.5,07/04/2020
LCC Melton Divisional Office Imprest A/C,Cash in Hand of Acc Officers,1820.5,14/04/2020
LCC Melton Divisional Office Imprest A/C,Other Expenditure,1820.5,14/04/2020
LCC Melton Divisional Office Imprest A/C,Cash in Hand of Acc Officers,2078,21/04/2020
LCC Melton Divisional Office Imprest A/C,Other Expenditure,2078,21/04/2020
LCC Melton Supported Living & Short Breaks Imprest A/C,Cash in Hand of Acc Officers,1022.57,01/04/2020
LCC Melton Supported Living & Short Breaks Imprest A/C,Other Expenditure,1022.57,01/04/2020
LCC Melton Supported Living & Short Breaks Imprest A/C,Postal Services,1022.57,01/04/2020
LCC Melton Supported Living & Short Breaks Imprest A/C,Provisions,1022.57,01/04/2020
LCC North Charnwood Area Office Imprest A/C,Cash in Hand of Acc Officers,5344.1,29/04/2020
LCC North Charnwood Area Office Imprest A/C,Other Expenditure,5344.1,29/04/2020
LCC North Charnwood Area Office Imprest A/C,Cash in Hand of Acc Officers,7851.89,01/04/2020
LCC North Charnwood Area Office Imprest A/C,Other Expenditure,7851.89,01/04/2020
LCC North Charnwood Area Office Imprest A/C,Cash in Hand of Acc Officers,9943.62,21/04/2020
LCC North Charnwood Area Office Imprest A/C,Other Expenditure,9943.62,21/04/2020
LCC North Charnwood Area Office Imprest A/C,Cash in Hand of Acc Officers,5471.6,08/04/2020
LCC North Charnwood Area Office Imprest A/C,Other Expenditure,5471.6,08/04/2020
LCC North Charnwood Area Office Imprest A/C,Cash in Hand of Acc Officers,3485.9,23/04/2020
LCC North Charnwood Area Office Imprest A/C,Other Expenditure,3485.9,23/04/2020
LCC North West Leics Area Office Imprest A/C,Cash in Hand of Acc Officers,3554.76,02/04/2020
LCC North West Leics Area Office Imprest A/C,Other Expenditure,3554.76,02/04/2020
LCC North West Leics Area Office Imprest A/C,Cash in Hand of Acc Officers,1806.9,03/04/2020
LCC North West Leics Area Office Imprest A/C,Other Expenditure,1806.9,03/04/2020
LCC North West Leics Area Office Imprest A/C,Cash in Hand of Acc Officers,2034.59,14/04/2020
LCC North West Leics Area Office Imprest A/C,Other Expenditure,2034.59,14/04/2020
LCC North West Leics Area Office Imprest A/C,Cash in Hand of Acc Officers,3015.99,24/04/2020
LCC North West Leics Area Office Imprest A/C,Other Expenditure,3015.99,24/04/2020
LCC Oadby Woodland Grange Primary School A/C,Payment to Ext SEN Providers,6010,24/04/2020
LCC Social Services Hinckley & Bosworth Area Imprest A/C,Cash in Hand of Acc Officers,3285.75,07/04/2020
LCC Social Services Hinckley & Bosworth Area Imprest A/C,Other Expenditure,3285.75,07/04/2020
LCC Social Services Hinckley & Bosworth Area Imprest A/C,Cash in Hand of Acc Officers,5267.2,08/04/2020
LCC Social Services Hinckley & Bosworth Area Imprest A/C,Other Expenditure,5267.2,08/04/2020
LCC Social Services Hinckley & Bosworth Area Imprest A/C,Cash in Hand of Acc Officers,3616.96,15/04/2020
LCC Social Services Hinckley & Bosworth Area Imprest A/C,Other Expenditure,3616.96,15/04/2020
LCC Social Services Hinckley & Bosworth Area Imprest A/C,Cash in Hand of Acc Officers,1296.8,16/04/2020
LCC Social Services Hinckley & Bosworth Area Imprest A/C,Other Expenditure,1296.8,16/04/2020
LCC Social Services Hinckley & Bosworth Area Imprest A/C,Cash in Hand of Acc Officers,1025,20/04/2020
LCC Social Services Hinckley & Bosworth Area Imprest A/C,Other Expenditure,1025,20/04/2020
LCC Trees Hostel For Adults With Learning Difficulties Imprest A/C,Cash in Hand of Acc Officers,969.24,01/04/2020
LCC Trees Hostel For Adults With Learning Difficulties Imprest A/C,Other Expenditure,969.24,01/04/2020
LCC Trees Hostel For Adults With Learning Difficulties Imprest A/C,Provisions,969.24,01/04/2020
LCHAA (LEEDS AUTISM SERVICES)&&SSAROE81,Residential,5176.04,06/04/2020
LCHAA (LEEDS AUTISM SERVICES)&&SSAROE81,Residential,2453.88,06/04/2020
Learn Academies Trust Husbands Bosworth CE Primary School,Payment to Ext SEN Providers,1217,24/04/2020
Learn Academies Trust T/A Red Hill Field Primary School,Payment to Ext SEN Providers,4132,24/04/2020
Leicester City Council,Personal Accounts - Other,859.31,16/04/2020
Leicester City Council,Personal Accounts - Other,1341.29,16/04/2020
Leicester City Council,Suspense,17355.24,07/04/2020
Leicester City Council,Other Transfer Payments,500,17/04/2020
Leicester Forest East Community Library,Voluntary Associations,1416,09/04/2020
Leicester Grammar School,Payment to Ext SEN Providers,30734.78,30/04/2020
Leicestershire Cares Ltd,Reserve Debtors,530,08/04/2020
LEICESTERSHIRE COUNTY CARE LIMITED&&SSARO3258,Residential,3998.69,06/04/2020
LEICESTERSHIRE COUNTY CARE LIMITED&&SSARO3258,Residential,1894.11,06/04/2020
LEICESTERSHIRE COUNTY CARE LTD&&SSARO2541,Residential,1378.86,06/04/2020
LEICESTERSHIRE COUNTY CARE LTD&&SSARO2541,Residential,653.14,06/04/2020
LEICESTERSHIRE COUNTY CARE LTD&&SSARO2541,Residential,29859.83,06/04/2020
LEICESTERSHIRE COUNTY CARE LTD&&SSARO2541,Residential,14144.17,06/04/2020
LEICESTERSHIRE COUNTY CARE LTD&&SSARO2541,Residential,-10400,06/04/2020
LEICESTERSHIRE COUNTY CARE LTD&&SSARO2541,Residential,10828,06/04/2020
LEICESTERSHIRE COUNTY CARE LTD&&SSARO2541,Residential,-10400,06/04/2020
LEICESTERSHIRE COUNTY CARE LTD&&SSARO2541,Residential,10736.86,06/04/2020
LEICESTERSHIRE COUNTY CARE LTD&&SSARO2541,Residential,7972,06/04/2020
LEICESTERSHIRE COUNTY CARE LTD&&SSARO2541,Residential,-10400,06/04/2020
LEICESTERSHIRE COUNTY CARE LTD&&SSARO2541,Residential,10592,06/04/2020
LEICESTERSHIRE COUNTY CARE LTD&&SSARO2541,Residential,-3890,06/04/2020
LEICESTERSHIRE COUNTY CARE LTD&&SSARO2541,Residential,-10400,06/04/2020
LEICESTERSHIRE COUNTY CARE LTD&&SSARO2541,Residential,46260.43,06/04/2020
LEICESTERSHIRE COUNTY CARE LTD&&SSARO2541,Residential,-10400,06/04/2020
LEICESTERSHIRE COUNTY CARE LTD&&SSARO2541,Residential,-10400,06/04/2020
LEICESTERSHIRE COUNTY CARE LTD&&SSARO2541,Residential,-10306.42,06/04/2020
LEICESTERSHIRE COUNTY CARE LTD&&SSARO2541,Residential,32286.4,06/04/2020
LEICESTERSHIRE COUNTY CARE LTD&&SSARO2541,Residential,-7780,06/04/2020
LEICESTERSHIRE COUNTY CARE LTD&&SSARO2541,Residential,-10400,06/04/2020
LEICESTERSHIRE COUNTY CARE LTD&&SSARO2541,Residential,9862.28,06/04/2020
LEICESTERSHIRE COUNTY CARE LTD&&SSARO2541,Residential,-10400,06/04/2020
LEICESTERSHIRE COUNTY CARE LTD&&SSARO2541,Residential,10524,06/04/2020
LEICESTERSHIRE COUNTY CARE LTD&&SSARO2541,Residential,-10400,06/04/2020
LEICESTERSHIRE COUNTY CARE LTD&&SSARO2541,Residential,10524,06/04/2020
LEICESTERSHIRE COUNTY CARE LTD&&SSARO2541,Residential,-10400,06/04/2020
LEICESTERSHIRE COUNTY CARE LTD&&SSARO2541,Residential,10828,06/04/2020
LEICESTERSHIRE COUNTY CARE LTD&&SSARO2541,Residential,15293.6,06/04/2020
LEICESTERSHIRE COUNTY CARE LTD&&SSARO2541,Residential,-1240.71,06/04/2020
LEICESTERSHIRE COUNTY CARE LTD&&SSARO2541,Residential,31431.4,06/04/2020
LEICESTERSHIRE COUNTY CARE LTD&&SSARO2541,Residential,14888.6,06/04/2020
LEICESTERSHIRE COUNTY CARE LTD&&SSARO2541,Residential,30378.81,06/04/2020
LEICESTERSHIRE COUNTY CARE LTD&&SSARO2541,Residential,14389.99,06/04/2020
LEICESTERSHIRE COUNTY CARE LTD&&SSARO2541,Residential,992.57,06/04/2020
LEICESTERSHIRE COUNTY CARE LTD&&SSARO2541,Residential,-909.86,06/04/2020
LEICESTERSHIRE COUNTY CARE LTD&&SSARO2541,Residential,32793.37,06/04/2020
LEICESTERSHIRE COUNTY CARE LTD&&SSARO2541,Residential,3308.57,06/04/2020
LEICESTERSHIRE COUNTY CARE LTD&&SSARO2541,Residential,579,06/04/2020
LEICESTERSHIRE COUNTY CARE LTD&&SSARO2541,Residential,14623.89,06/04/2020
LEICESTERSHIRE COUNTY CARE LTD&&SSARO2541,Residential,-2220,06/04/2020
LEICESTERSHIRE COUNTY CARE LTD&&SSARO2541,Residential,-2220,06/04/2020
LEICESTERSHIRE COUNTY CARE LTD&&SSARO2541,Residential,2316,06/04/2020
LEICESTERSHIRE COUNTY CARE LTD&&SSARO2541,Residential,2316,06/04/2020
LEICESTERSHIRE COUNTY CARE LTD&&SSARO2541,Residential,-2220,06/04/2020
LEICESTERSHIRE COUNTY CARE LTD&&SSARO2541,Residential,2316,06/04/2020
LEICESTERSHIRE COUNTY CARE LTD&&SSARO2541,Residential,-2220,06/04/2020
LEICESTERSHIRE COUNTY CARE LTD&&SSARO2541,Residential,10422,06/04/2020
LEICESTERSHIRE COUNTY CARE LTD&&SSARO2541,Residential,-2220,06/04/2020
LEICESTERSHIRE COUNTY CARE LTD&&SSARO2541,Residential,-2220,06/04/2020
LEICESTERSHIRE COUNTY CARE LTD&&SSARO2541,Residential,-2220,06/04/2020
LEICESTERSHIRE COUNTY CARE LTD&&SSARO2541,Residential,24037.69,06/04/2020
LEICESTERSHIRE COUNTY CARE LTD&&SSARO2541,Residential,-2220,06/04/2020
LEICESTERSHIRE COUNTY CARE LTD&&SSARO2541,Residential,-951.43,06/04/2020
LEICESTERSHIRE COUNTY CARE LTD&&SSARO2541,Residential,-2220,06/04/2020
LEICESTERSHIRE COUNTY CARE LTD&&SSARO2541,Residential,4632,06/04/2020
LEICESTERSHIRE COUNTY CARE LTD&&SSARO2541,Residential,-2220,06/04/2020
LEICESTERSHIRE COUNTY CARE LTD&&SSARO2541,Residential,4549.29,06/04/2020
LEICESTERSHIRE COUNTY CARE LTD&&SSARO2541,Residential,-2220,06/04/2020
LEICESTERSHIRE COUNTY CARE LTD&&SSARO2541,Residential,2316,06/04/2020
LEICESTERSHIRE COUNTY CARE LTD&&SSARO2541,Residential,-2220,06/04/2020
LEICESTERSHIRE COUNTY CARE LTD&&SSARO2541,Residential,4632,06/04/2020
LEICESTERSHIRE COUNTY CARE LTD&&SSARO2541,Residential,12130.74,06/04/2020
LEICESTERSHIRE COUNTY CARE LTD&&SSARO2541,Residential,-1864,06/04/2020
LEICESTERSHIRE COUNTY CARE LTD&&SSARO2541,Residential,2316,06/04/2020
LEICESTERSHIRE COUNTY CARE LTD&&SSARO2541,Residential,-1864,06/04/2020
LEICESTERSHIRE COUNTY CARE LTD&&SSARO2541,Residential,2316,06/04/2020
LEICESTERSHIRE COUNTY CARE LTD&&SSARO2541,Residential,2316,06/04/2020
LEICESTERSHIRE COUNTY CARE LTD&&SSARO2541,Residential,-1864,06/04/2020
LEICESTERSHIRE COUNTY CARE LTD&&SSARO2541,Residential,2316,06/04/2020
LEICESTERSHIRE COUNTY CARE LTD&&SSARO2541,Residential,-932,06/04/2020
LEICESTERSHIRE COUNTY CARE LTD&&SSARO2541,Residential,-1864,06/04/2020
LEICESTERSHIRE COUNTY CARE LTD&&SSARO2541,Residential,10422,06/04/2020
LEICESTERSHIRE COUNTY CARE LTD&&SSARO2541,Residential,-1864,06/04/2020
LEICESTERSHIRE COUNTY CARE LTD&&SSARO2541,Residential,-1864,06/04/2020
LEICESTERSHIRE COUNTY CARE LTD&&SSARO2541,Residential,-1864,06/04/2020
LEICESTERSHIRE COUNTY CARE LTD&&SSARO2541,Residential,37507.61,06/04/2020
LEICESTERSHIRE COUNTY CARE LTD&&SSARO2541,Residential,-1864,06/04/2020
LEICESTERSHIRE COUNTY CARE LTD&&SSARO2541,Residential,-1864,06/04/2020
LEICESTERSHIRE COUNTY CARE LTD&&SSARO2541,Residential,2316,06/04/2020
LEICESTERSHIRE COUNTY CARE LTD&&SSARO2541,Residential,-1864,06/04/2020
LEICESTERSHIRE COUNTY CARE LTD&&SSARO2541,Residential,2316,06/04/2020
LEICESTERSHIRE COUNTY CARE LTD&&SSARO2541,Residential,-1864,06/04/2020
LEICESTERSHIRE COUNTY CARE LTD&&SSARO2541,Residential,2316,06/04/2020
LEICESTERSHIRE COUNTY CARE LTD&&SSARO2541,Residential,-1864,06/04/2020
LEICESTERSHIRE COUNTY CARE LTD&&SSARO2541,Residential,2316,06/04/2020
LEICESTERSHIRE COUNTY CARE LTD&&SSARO2541,Residential,17766.82,06/04/2020
LEICESTERSHIRE COUNTY CARE LTD&&SSARO2541,Residential,1737,06/04/2020
LEICESTERSHIRE COUNTY CARE LTD&&SSARO2541,Residential,771.43,06/04/2020
LEICESTERSHIRE COUNTY CARE LTD&&SSARO2541,Residential,-1028.57,06/04/2020
LEICESTERSHIRE COUNTY CARE LTD&&SSARO2541,Residential,36650.97,06/04/2020
LEICESTERSHIRE COUNTY CARE LTD&&SSARO2541,Residential,3804.86,06/04/2020
LEICESTERSHIRE COUNTY CARE LTD&&SSARO2541,Residential,4544.57,06/04/2020
LEICESTERSHIRE COUNTY CARE LTD&&SSARO2541,Residential,2316,06/04/2020
LEICESTERSHIRE COUNTY CARE LTD&&SSARO2541,Residential,2316,06/04/2020
LEICESTERSHIRE COUNTY CARE LTD&&SSARO2541,Residential,17361.03,06/04/2020
LEICESTERSHIRE COUNTY CARE LTD&&SSARO2541,Residential,-992.57,06/04/2020
LEICESTERSHIRE COUNTY CARE LTD&&SSARO2541,Residential,25145.12,06/04/2020
LEICESTERSHIRE COUNTY CARE LTD&&SSARO2541,Residential,2977.71,06/04/2020
LEICESTERSHIRE COUNTY CARE LTD&&SSARO2541,Residential,11910.88,06/04/2020
LEICESTERSHIRE COUNTY CARE LTD&&SSARO3206,Residential,1552.57,06/04/2020
LEICESTERSHIRE COUNTY CARE LTD&&SSARO3206,Residential,1388.57,06/04/2020
LEICESTERSHIRE LEICESTER AND RUTLAND HEADWAY&&CLCD3328,Payments in Advance,3330,17/04/2020
LEICESTERSHIRE LEICESTER AND RUTLAND HEADWAY&&CLCD3328,Day / CLC Services,1587.2,17/04/2020
Leicester YMCA,Private Contractors,14000,03/04/2020
Leicester YMCA,Private Contractors,14000,03/04/2020
REDACTED PERSONAL DATA,Residential,-30944.56,06/04/2020
REDACTED PERSONAL DATA,Residential,253190.72,06/04/2020
REDACTED PERSONAL DATA,Residential,-641.36,06/04/2020
REDACTED PERSONAL DATA,Residential,-30944.56,06/04/2020
REDACTED PERSONAL DATA,Residential,575.82,06/04/2020
REDACTED PERSONAL DATA,Residential,-3637.6,06/04/2020
REDACTED PERSONAL DATA,Residential,-30944.56,06/04/2020
REDACTED PERSONAL DATA,Residential,-17112.31,06/04/2020
REDACTED PERSONAL DATA,Residential,-1225.97,06/04/2020
REDACTED PERSONAL DATA,Residential,-30944.56,06/04/2020
REDACTED PERSONAL DATA,Residential,-3328.11,06/04/2020
REDACTED PERSONAL DATA,Residential,9984.33,06/04/2020
REDACTED PERSONAL DATA,Residential,-26397.56,06/04/2020
REDACTED PERSONAL DATA,Residential,-28561.17,06/04/2020
REDACTED PERSONAL DATA,Residential,-29787.14,06/04/2020
REDACTED PERSONAL DATA,Residential,31856.9,06/04/2020
REDACTED PERSONAL DATA,Residential,-34224.62,06/04/2020
REDACTED PERSONAL DATA,Residential,-26040.8,06/04/2020
REDACTED PERSONAL DATA,Residential,23876.12,06/04/2020
REDACTED PERSONAL DATA,Residential,-26455,06/04/2020
REDACTED PERSONAL DATA,Residential,24290.32,06/04/2020
REDACTED PERSONAL DATA,Residential,-26455,06/04/2020
REDACTED PERSONAL DATA,Residential,24607.69,06/04/2020
REDACTED PERSONAL DATA,Residential,-30944.56,06/04/2020
REDACTED PERSONAL DATA,Residential,29787.14,06/04/2020
REDACTED PERSONAL DATA,Residential,15092.14,06/04/2020
REDACTED PERSONAL DATA,Residential,14375.25,06/04/2020
REDACTED PERSONAL DATA,Residential,6809.35,06/04/2020
REDACTED PERSONAL DATA,Residential,-14325.64,06/04/2020
REDACTED PERSONAL DATA,Residential,121767.94,06/04/2020
REDACTED PERSONAL DATA,Residential,-686.66,06/04/2020
REDACTED PERSONAL DATA,Residential,-14325.64,06/04/2020
REDACTED PERSONAL DATA,Residential,-14325.64,06/04/2020
REDACTED PERSONAL DATA,Residential,-7162.82,06/04/2020
REDACTED PERSONAL DATA,Residential,-14325.64,06/04/2020
REDACTED PERSONAL DATA,Residential,-14325.64,06/04/2020
REDACTED PERSONAL DATA,Residential,-14325.64,06/04/2020
REDACTED PERSONAL DATA,Residential,-14325.64,06/04/2020
REDACTED PERSONAL DATA,Residential,16165.53,06/04/2020
REDACTED PERSONAL DATA,Residential,-14325.64,06/04/2020
REDACTED PERSONAL DATA,Residential,-9519,06/04/2020
REDACTED PERSONAL DATA,Residential,9519,06/04/2020
REDACTED PERSONAL DATA,Residential,-9519,06/04/2020
REDACTED PERSONAL DATA,Residential,34050.31,06/04/2020
REDACTED PERSONAL DATA,Residential,-9519,06/04/2020
REDACTED PERSONAL DATA,Residential,-14325.64,06/04/2020
REDACTED PERSONAL DATA,Residential,7657.35,06/04/2020
LESTER HALL APARTMENTS LTD&&SSAROE434,Residential,9942.74,06/04/2020
LESTER HALL APARTMENTS LTD&&SSAROE434,Residential,2000,06/04/2020
LESTER HALL APARTMENTS LTD&&SSAROE434,Residential,4709.74,06/04/2020
REDACTED PERSONAL DATA,Payment to Ext SEN Providers,19950,30/04/2020
REDACTED PERSONAL DATA,Payment to Ext SEN Providers,-19950,30/04/2020
REDACTED PERSONAL DATA,Payment to Ext SEN Providers,19667,30/04/2020
REDACTED PERSONAL DATA,Payment to Ext SEN Providers,156846,30/04/2020
REDACTED PERSONAL DATA,Payment to Ext SEN Providers,95450,30/04/2020
Lex Autolease Ltd,Operational Leasing,3307.1,30/04/2020
Lex Autolease Ltd,Operational Leasing,-872.78,02/04/2020
Lex Autolease Ltd,Operational Leasing,872.78,02/04/2020
Lex Autolease Ltd,Operational Leasing,872.78,02/04/2020
Lex Autolease Ltd,Operational Leasing,-557.7,30/04/2020
Lex Autolease Ltd,Operational Leasing,-707.33,30/04/2020
LGPS Central Ltd,Addtnl Pensions(Post LGR),1288.5,16/04/2020
LIFEWAYS COMMUNITY CARE LTD T/A WYCARE LEYS (BULWELL)&&SSAROE948,Residential,10439.45,06/04/2020
LIFEWAYS COMMUNITY CARE LTD T/A WYCARE LEYS (BULWELL)&&SSAROE948,Residential,4944.99,06/04/2020
Limehurst Academy,Payment to Ext SEN Providers,6930,30/04/2020
Limehurst Academy,Payment to Ext SEN Providers,12390,30/04/2020
Limehurst Academy,Payment to Ext SEN Providers,8154,27/04/2020
LINCOLNSHIRE HOUSE ASSOCIATION LTD&&SSARO2305,Residential,2663.66,06/04/2020
LINCOLNSHIRE HOUSE ASSOCIATION LTD&&SSARO2305,Residential,1261.74,06/04/2020
Lincolnshire Wolds Community Trust - St Lawrence School,Other Local Authorities,2026.66,02/04/2020
LINDEN CARE HOMES LTD T/A LINDEN LODGE&&SSARO3400,Residential,1431.19,06/04/2020
LINDEN CARE HOMES LTD T/A LINDEN LODGE&&SSARO3400,Residential,677.93,06/04/2020
LINGDALE LODGE RESIDENTIAL HOME&&SSAROE461,Residential,-827.14,06/04/2020
LINGDALE LODGE RESIDENTIAL HOME&&SSAROE461,Residential,-744.43,06/04/2020
LINGDALE LODGE RESIDENTIAL HOME&&SSAROE461,Residential,28923.39,06/04/2020
LINGDALE LODGE RESIDENTIAL HOME&&SSAROE461,Residential,13700.61,06/04/2020
LINKAGE COMMUNITY TRUST CARE SERVICES A/C&&SSAROE1329,Residential,2508.76,06/04/2020
LINKAGE COMMUNITY TRUST CARE SERVICES A/C&&SSAROE1329,Residential,1188.36,06/04/2020
LINKAGE COMMUNITY TRUST CARE SERVICES A/C&&SSAROE1329,Residential,4248.43,06/04/2020
LINKAGE COMMUNITY TRUST CARE SERVICES A/C&&SSAROE1329,Residential,2014.49,06/04/2020
LINKAGE COMMUNITY TRUST CARE SERVICES A/C&&SSAROE1329,Residential,882.8,06/04/2020
LINKAGE COMMUNITY TRUST CARE SERVICES A/C&&SSAROE1329,Residential,882.8,06/04/2020
LINKAGE COMMUNITY TRUST CARE SERVICES A/C&&SSAROE1329,Residential,882.8,06/04/2020
LINKAGE COMMUNITY TRUST CARE SERVICES A/C&&SSAROE1329,Residential,-4052.94,06/04/2020
LINKAGE COMMUNITY TRUST CARE SERVICES A/C&&SSAROE1329,Residential,882.8,06/04/2020
LINKAGE COMMUNITY TRUST CARE SERVICES A/C&&SSAROE1329,Residential,882.8,06/04/2020
LINKAGE COMMUNITY TRUST CARE SERVICES A/C&&SSAROE1329,Residential,882.8,06/04/2020
LINKAGE COMMUNITY TRUST CARE SERVICES A/C&&SSAROE1329,Residential,882.8,06/04/2020
LINKAGE COMMUNITY TRUST CARE SERVICES A/C&&SSAROE1329,Residential,8077.8,06/04/2020
LINKAGE COMMUNITY TRUST CARE SERVICES A/C&&SSAROE1329,Residential,882.8,06/04/2020
LINKAGE COMMUNITY TRUST CARE SERVICES A/C&&SSAROE1329,Residential,4494.34,06/04/2020
LINKAGE COMMUNITY TRUST CARE SERVICES A/C&&SSAROE1329,Residential,882.8,06/04/2020
LINKAGE COMMUNITY TRUST CARE SERVICES A/C&&SSAROE1329,Residential,882.8,06/04/2020
LINKAGE COMMUNITY TRUST CARE SERVICES A/C&&SSAROE1329,Residential,882.8,06/04/2020
LINKAGE COMMUNITY TRUST CARE SERVICES A/C&&SSAROE1329,Residential,882.8,06/04/2020
LINKAGE COMMUNITY TRUST CARE SERVICES A/C&&SSAROE1329,Residential,3828.4,06/04/2020
REDACTED PERSONAL DATA,Other Agency & Cont Services,1233.77,08/04/2020
REDACTED PERSONAL DATA,Other Agency & Cont Services,1437.5,08/04/2020
REDACTED PERSONAL DATA,Materials,3297.38,15/04/2020
Little Hill Primary School Academy,Children&Families Spprt Servs,1458,24/04/2020
Little Hill Primary School Academy,Payment to Ext SEN Providers,7142,24/04/2020
LIVING LIFE UK LTD TA THE BANYON TREE&&SSARO3368,Residential,3619.5,06/04/2020
LIVING LIFE UK LTD TA THE BANYON TREE&&SSARO3368,Residential,1714.5,06/04/2020
LJW Consultants Ltd,Provisions,573.95,23/04/2020
Local Government Association,Administration Expenses,1854,08/04/2020
LODGE RESIDENTIAL HOME&&SSAROE40440,Residential,11736.56,06/04/2020
LODGE RESIDENTIAL HOME&&SSAROE40440,Residential,2895,06/04/2020
LODGE RESIDENTIAL HOME&&SSAROE40440,Residential,5559.44,06/04/2020
LODGE TRUST&&SSAROE40324,Residential,15645.35,06/04/2020
LODGE TRUST&&SSAROE40324,Residential,7411.01,06/04/2020
Lodge Tyre Co Ltd,R&M of Vehicles-Non Contract,577.92,23/04/2020
Lodge Tyre Co Ltd,R&M of Vehicles-Non Contract,1109.64,23/04/2020
Lodge Tyre Co Ltd,R&M of Vehicles-Non Contract,568.92,24/04/2020
Lookers Leasing Ltd,Operational Leasing,4549.25,02/04/2020
LOROS Enterprises Ltd,Voluntary Associations,776.41,24/04/2020
REDACTED PERSONAL DATA,Residential,2910.8,06/04/2020
REDACTED PERSONAL DATA,Residential,1378.8,06/04/2020
Loughborough CE Primary School Academy,Payment to Ext SEN Providers,1973,27/04/2020
Loughborough Holywell Primary Academy,Children&Families Spprt Servs,1105,24/04/2020
Loughborough Holywell Primary Academy,Payment to Ext SEN Providers,4709,24/04/2020
Loughborough Schools Foundation,Payment to Ext SEN Providers,4642.68,03/04/2020
Loughborough Schools Foundation,Payment to Ext SEN Providers,6248.78,03/04/2020
Loughborough University,Books,1951.26,07/04/2020
REDACTED PERSONAL DATA,Sales-Trading,680,21/04/2020
LOXLEY LODGE CARE HOME LTD&&SSARO3405,Residential,1452.14,06/04/2020
LOXLEY LODGE CARE HOME LTD&&SSARO3405,Residential,687.86,06/04/2020
Lubenham All Saints Primary School Academy,Payment to Ext SEN Providers,768,24/04/2020
Lutterworth College Academy,Payment to Ext SEN Providers,8727,24/04/2020
Lutterworth High School Academy,Payment to Ext SEN Providers,7855,24/04/2020
LYDFORDS CARE HOME (TAMARIS (SOUTH EAST) LTD)&&SSARO5730,Residential,1275.85,06/04/2020
LYDFORDS CARE HOME (TAMARIS (SOUTH EAST) LTD)&&SSARO5730,Residential,604.35,06/04/2020
Lynch Healthcare Ltd,Personal Accounts - Other,-2880,29/04/2020
Lynch Healthcare Ltd,Personal Accounts - Other,-720,29/04/2020
Lynch Healthcare Ltd,Personal Accounts - Other,3600,29/04/2020
LYNDHURST LODGE LTD&&SSAROE40340,Residential,1276,06/04/2020
LYNDHURST LODGE LTD&&SSAROE40340,Residential,-1571.57,06/04/2020
LYNDHURST LODGE LTD&&SSAROE40340,Residential,1640.57,06/04/2020
LYNDHURST LODGE LTD&&SSAROE40340,Residential,-744.43,06/04/2020
LYNDHURST LODGE LTD&&SSAROE40340,Residential,1158,06/04/2020
LYNDHURST LODGE LTD&&SSAROE40340,Residential,20750.69,06/04/2020
LYNDHURST LODGE LTD&&SSAROE40340,Residential,4549.29,06/04/2020
LYNDHURST LODGE LTD&&SSAROE40340,Residential,2552,06/04/2020
LYNDHURST LODGE LTD&&SSAROE40340,Residential,2552,06/04/2020
LYNDHURST LODGE LTD&&SSAROE40340,Residential,2552,06/04/2020
LYNDHURST LODGE LTD&&SSAROE40340,Residential,661.71,06/04/2020
LYNDHURST LODGE LTD&&SSAROE40340,Residential,10325.59,06/04/2020
MacIntyre Academies Trust,Payment to Ext SEN Providers,78267.4,02/04/2020
MacIntyre Academies Trust,Payment to Ext SEN Providers,53478.11,02/04/2020
MACINTYRE CARE&&SSAROE40268,Residential,-22030.84,06/04/2020
MACINTYRE CARE&&SSAROE40268,Residential,22030.84,06/04/2020
MACINTYRE CARE&&SSAROE40268,Residential,-22030.84,06/04/2020
MACINTYRE CARE&&SSAROE40268,Residential,22030.84,06/04/2020
MACINTYRE CARE&&SSAROE40268,Residential,-22030.84,06/04/2020
MACINTYRE CARE&&SSAROE40268,Residential,-10427.72,06/04/2020
MACINTYRE CARE&&SSAROE40268,Residential,-22030.84,06/04/2020
MACINTYRE CARE&&SSAROE40268,Residential,-22030.84,06/04/2020
MACINTYRE CARE&&SSAROE40268,Residential,-22030.84,06/04/2020
MACINTYRE CARE&&SSAROE40268,Residential,-22030.84,06/04/2020
MACINTYRE CARE&&SSAROE40268,Residential,28154.95,06/04/2020
MACINTYRE CARE&&SSAROE40268,Residential,-22030.84,06/04/2020
MACINTYRE CARE&&SSAROE40268,Residential,-587.7,06/04/2020
MACINTYRE CARE&&SSAROE40268,Residential,-20045.48,06/04/2020
MACINTYRE CARE&&SSAROE40268,Residential,20045.48,06/04/2020
